Workbook

Sheet Admin
B4: Process Year
B5: 2018 | C5: I1
B7: First True Up Month
B8: =B5*100+1 -> 201801 | C8: I2 | D8: I3
B10: Second True Up Month
B11: =B8+1 -> 201802 | C11: I4 | D11: I5
B13: Third True Up Month
B14: =B11+1 -> 201803 | C14: I6 | D14: I7
B16: Fourth True Up Month
B17: =B14+1 -> 201804 | C17: I8 | D17: I9
B19: Fifth True Up Month
B20: =B17+1 -> 201805 | C20: I10 | D20: I11
B22: Sixth True Up Month
B23: =B20+1 -> 201806 | C23: I12 | D23: I13
B25: Seventh True Up Month
B26: =B23+1 -> 201807 | C26: I14 | D26: I15
B28: Eighth True Up Month
B29: =B26+1 -> 201808 | C29: I16 | D29: I17
B31: Ninth True Up Month
B32: =B29+1 -> 201809 | C32: I18 | D32: I19
B34: Tenth True Up Month
B35: =B32+1 -> 201810 | C35: I20 | D35: I21
B37: Eleventh True Up Month
B38: =B35+1 -> 201811 | C38: I22 | D38: I23
B40: Twelveth True Up Month
B41: =B38+1 -> 201812 | C41: I24 | D41: I25

Sheet I1 Reconciliation
C2: =Admin!$B$8 -> 201801 | D2: =Admin!$B$8 -> 201801 | E2: =C2+1 -> 201802 | F2: =D2+1 -> 201802 | G2: =E2+1 -> 201803 | H2: 201803 | I2: 201804 | J2: 201804 | K2: 201805 | L2: 201805 | M2: 201806 | N2: 201806 | O2: 201807 | P2: 201807 | Q2: 201808 | R2: 201808 | S2: 201809 | T2: 201809 | U2: 201810 | V2: 201810 | W2: 201811 | X2: 201811 | Y2: 201812 | Z2: 201812 | AA2: =Admin!B5 -> 2018
C3: =A4 & "Input "& C2 & " Trueup Sett" -> Input 201801 Trueup Sett | D3: =D4 & " Input Rev " & D2 & " Init" -> I3 Input Rev 201801 Init | E3: =C4 & "Input "& E2 & " Trueup Sett" -> I2Input 201802 Trueup Sett | F3: =F4 & " Input Rev " & F2 & " Init" -> I5 Input Rev 201802 Init | G3: =E4 & "Input "& G2 & " Trueup Sett" -> I4Input 201803 Trueup Sett | H3: =H4 & " Input Rev " & H2 & " Init" -> I7 Input Rev 201803 Init | I3: =G4 & "Input "& I2 & " Trueup Sett" -> I6Input 201804 Trueup Sett | J3: =J4 & " Input Rev " & J2 & " Init" -> I9 Input Rev 201804 Init | K3: =I4 & "Input "& K2 & " Trueup Sett" -> I8Input 201805 Trueup Sett | L3: =L4 & " Input Rev " & L2 & " Init" -> I11 Input Rev 201805 Init | M3: =K4 & "Input "& M2 & " Trueup Sett" -> I10Input 201806 Trueup Sett | N3: =N4 & " Input Rev " & N2 & " Init" -> I13 Input Rev 201806 Init | O3: =M4 & "Input "& O2 & " Trueup Sett" -> I12Input 201807 Trueup Sett | P3: =P4 & " Input Rev " & P2 & " Init" -> I15 Input Rev 201807 Init | Q3: =O4 & "Input "& Q2 & " Trueup Sett" -> I14Input 201808 Trueup Sett | R3: =R4 & " Input Rev " & R2 & " Init" -> I17 Input Rev 201808 Init | S3: =Q4 & "Input "& S2 & " Trueup Sett" -> I16Input 201809 Trueup Sett | T3: =T4 & " Input Rev " & T2 & " Init" -> I19 Input Rev 201809 Init | U3: =S4 & "Input "& U2 & " Trueup Sett" -> I18Input 201810 Trueup Sett | V3: =V4 & " Input Rev " & V2 & " Init" -> I21 Input Rev 201810 Init | W3: =U4 & "Input "& W2 & " Trueup Sett" -> I20Input 201811 Trueup Sett | X3: =X4 & " Input Rev " & X2 & " Init" -> I23 Input Rev 201811 Init | Y3: =W4 & "Input "& Y2 & " Trueup Sett" -> I22Input 201812 Trueup Sett | Z3: =Z4 & " Input Rev " & Z2 & " Init" -> I25 Input Rev 201812 Init | AA3: Total IESO Settlement
C4: I2 | D4: I3 | E4: I4 | F4: I5 | G4: I6 | H4: I7 | I4: I8 | J4: I9 | K4: I10 | L4: I11 | M4: I12 | N4: I13 | O4: I14 | P4: I15 | Q4: I16 | R4: I17 | S4: I18 | T4: I19 | U4: I20 | V4: I21 | W4: I22 | X4: I23 | Y4: I24 | Z4: I25
B5: RPP Revenue Prices
B6: RPPT1 | C6: ='I2 Input 01 Trueup Sett '!Z6 -> -17093.3421 | D6: ='I3 Input Rev 01 Init'!C7 -> 31743.12 | E6: ='I4 Input 02 Trueup Sett'!Z6 -> -15325.09554 | F6: ='I5 Input Rev 02 Init'!C7 -> 16972.26 | G6: ='I6 Input 03 Trueup Sett'!Z6 -> -25770.44052 | H6: ='I7 Input Rev 03 Init'!C7 -> 17644.87 | I6: ='I8 Input 04 Trueup Sett'!Z6 -> -29342.2363 | J6: ='I9 Input Rev 04 Init'!C7 -> 21137.03 | K6: ='I10 Input 05 Trueup Sett'!Z6 -> -20596.83049 | L6: ='I11 Input Rev 05 Init'!C7 -> 32763.32 | M6: ='I12 Input 06 Trueup Sett'!Z6 -> -27202.66686 | N6: ='I13 Input Rev 06 Init'!C7 -> 20688.32 | O6: ='I14 Input 07 Trueup Sett'!Z6 -> -16850.77406 | P6: ='I15 Input Rev 07 Init'!C7 -> 23828.16 | Q6: ='I16 Input 08 Trueup Sett'!Z6 -> -15820.33751 | R6: ='I17 Input Rev 08 Init'!C7 -> 20822.92 | S6: ='I18 Input 09 Trueup Sett'!Z6 -> -22972.47336 | T6: ='I19 Input Rev 09 Init'!C7 -> 16561 | U6: ='I20 Input 10 Trueup Sett'!Z6 -> -31080.34077 | V6: ='I21 Input Rev 10 Init'!C7 -> 18530.24 | W6: ='I22 Input 11 Trueup Sett'!Z6 -> -30086.96408 | X6: ='I23 Input Rev 11 Init'!C7 -> 51696.76 | Y6: ='I24 Input 12 Trueup Sett'!Z6 -> -19284.8277 | Z6: ='I25 Input Rev 12 Init'!C7 -> 30652.28 | AA6: =SUM(C6:Z6) -> 31613.95071
B7: RPPT2 | C7: ='I2 Input 01 Trueup Sett '!Z7 -> -6670.444418 | D7: ='I3 Input Rev 01 Init'!C8 -> 17030.79 | E7: ='I4 Input 02 Trueup Sett'!Z7 -> -5927.133467 | F7: ='I5 Input Rev 02 Init'!C8 -> 8194.23 | G7: ='I6 Input 03 Trueup Sett'!Z7 -> -13545.12716 | H7: ='I7 Input Rev 03 Init'!C8 -> 6237.28 | I7: ='I8 Input 04 Trueup Sett'!Z7 -> -15892.65328 | J7: ='I9 Input Rev 04 Init'!C8 -> 10973.67 | K7: ='I10 Input 05 Trueup Sett'!Z7 -> -10453.92002 | L7: ='I11 Input Rev 05 Init'!C8 -> 18278.46 | M7: ='I12 Input 06 Trueup Sett'!Z7 -> -15836.53845 | N7: ='I13 Input Rev 06 Init'!C8 -> 10321.77 | O7: ='I14 Input 07 Trueup Sett'!Z7 -> -8895.249935 | P7: ='I15 Input Rev 07 Init'!C8 -> 13785.74 | Q7: ='I16 Input 08 Trueup Sett'!Z7 -> -7482.933668 | R7: ='I17 Input Rev 08 Init'!C8 -> 11665.9 | S7: ='I18 Input 09 Trueup Sett'!Z7 -> -10066.87881 | T7: ='I19 Input Rev 09 Init'!C8 -> 8058 | U7: ='I20 Input 10 Trueup Sett'!Z7 -> -16420.29644 | V7: ='I21 Input Rev 10 Init'!C8 -> 10193.16 | W7: ='I22 Input 11 Trueup Sett'!Z7 -> -15743.46075 | X7: ='I23 Input Rev 11 Init'!C8 -> 45725.65 | Y7: ='I24 Input 12 Trueup Sett'!Z7 -> -7758.788853 | Z7: ='I25 Input Rev 12 Init'!C8 -> 16682.37 | AA7: =SUM(C7:Z7) -> 42453.59476
B8: RPPTOUMID | C8: ='I2 Input 01 Trueup Sett '!Z8 -> -5970.076988 | D8: ='I3 Input Rev 01 Init'!C9 -> 28919.7 | E8: ='I4 Input 02 Trueup Sett'!Z8 -> -9964.852411 | F8: ='I5 Input Rev 02 Init'!C9 -> 20571.31 | G8: ='I6 Input 03 Trueup Sett'!Z8 -> -30996.57845 | H8: ='I7 Input Rev 03 Init'!C9 -> 7136.3 | I8: ='I8 Input 04 Trueup Sett'!Z8 -> -48359.5988 | J8: ='I9 Input Rev 04 Init'!C9 -> 25375.97 | K8: ='I10 Input 05 Trueup Sett'!Z8 -> -34771.91463 | L8: ='I11 Input Rev 05 Init'!C9 -> 49696.2 | M8: ='I12 Input 06 Trueup Sett'!Z8 -> -57991.55869 | N8: ='I13 Input Rev 06 Init'!C9 -> 29045.17 | O8: ='I14 Input 07 Trueup Sett'!Z8 -> -24586.15607 | P8: ='I15 Input Rev 07 Init'!C9 -> 49798.54 | Q8: ='I16 Input 08 Trueup Sett'!Z8 -> -24090.42359 | R8: ='I17 Input Rev 08 Init'!C9 -> 37187.28 | S8: ='I18 Input 09 Trueup Sett'!Z8 -> -29511.48824 | T8: ='I19 Input Rev 09 Init'!C9 -> 26548.93 | U8: ='I20 Input 10 Trueup Sett'!Z8 -> -66119.1068 | V8: ='I21 Input Rev 10 Init'!C9 -> 33452.94 | W8: ='I22 Input 11 Trueup Sett'!Z8 -> -50449.81986 | X8: ='I23 Input Rev 11 Init'!C9 -> 122168.24 | Y8: ='I24 Input 12 Trueup Sett'!Z8 -> -11822.9898 | Z8: ='I25 Input Rev 12 Init'!C9 -> 53294.59 | AA8: 88560.60568
B9: RPPTOUOFF | C9: ='I2 Input 01 Trueup Sett '!Z9 -> -229041.8759 | D9: ='I3 Input Rev 01 Init'!C10 -> 309509.38 | E9: ='I4 Input 02 Trueup Sett'!Z9 -> -200510.3217 | F9: ='I5 Input Rev 02 Init'!C10 -> 283490.72 | G9: ='I6 Input 03 Trueup Sett'!Z9 -> -274761.4795 | H9: ='I7 Input Rev 03 Init'!C10 -> 205216.53 | I9: ='I8 Input 04 Trueup Sett'!Z9 -> -326514.3424 | J9: ='I9 Input Rev 04 Init'!C10 -> 246868.96 | K9: ='I10 Input 05 Trueup Sett'!Z9 -> -247564.1524 | L9: ='I11 Input Rev 05 Init'!C10 -> 320744.77 | M9: ='I12 Input 06 Trueup Sett'!Z9 -> -330830.5119 | N9: ='I13 Input Rev 06 Init'!C10 -> 219009.01 | O9: ='I14 Input 07 Trueup Sett'!Z9 -> -255050.0042 | P9: ='I15 Input Rev 07 Init'!C10 -> 313145.57 | Q9: ='I16 Input 08 Trueup Sett'!Z9 -> -258543.3834 | R9: ='I17 Input Rev 08 Init'!C10 -> 291949.12 | S9: ='I18 Input 09 Trueup Sett'!Z9 -> -237143.218 | T9: ='I19 Input Rev 09 Init'!C10 -> 264779.44 | U9: ='I20 Input 10 Trueup Sett'!Z9 -> -352156.3052 | V9: ='I21 Input Rev 10 Init'!C10 -> 260723.46 | W9: ='I22 Input 11 Trueup Sett'!Z9 -> -319609.5624 | X9: ='I23 Input Rev 11 Init'!C10 -> 452159.94 | Y9: ='I24 Input 12 Trueup Sett'!Z9 -> -212638.1618 | Z9: ='I25 Input Rev 12 Init'!C10 -> 324810.51 | AA9: 248044.0912
B10: RPPTOUON | C10: ='I2 Input 01 Trueup Sett '!Z10 -> 67518.24475 | D10: ='I3 Input Rev 01 Init'!C11 -> -38614.62 | E10: ='I4 Input 02 Trueup Sett'!Z10 -> 48935.42661 | F10: ='I5 Input Rev 02 Init'!C11 -> -51676.46 | G10: ='I6 Input 03 Trueup Sett'!Z10 -> 30186.64489 | H10: ='I7 Input Rev 03 Init'!C11 -> -57425.38 | I10: ='I8 Input 04 Trueup Sett'!Z10 -> 11404.47307 | J10: ='I9 Input Rev 04 Init'!C11 -> -32230.35 | K10: ='I10 Input 05 Trueup Sett'!Z10 -> 16285.03344 | L10: ='I11 Input Rev 05 Init'!C11 -> -7203.69 | M10: ='I12 Input 06 Trueup Sett'!Z10 -> -5773.953244 | N10: ='I13 Input Rev 06 Init'!C11 -> -18832.18 | O10: ='I14 Input 07 Trueup Sett'!Z10 -> 49147.11897 | P10: ='I15 Input Rev 07 Init'!C11 -> -5250.15 | Q10: ='I16 Input 08 Trueup Sett'!Z10 -> 48242.32988 | R10: ='I17 Input Rev 08 Init'!C11 -> -34192.01 | S10: ='I18 Input 09 Trueup Sett'!Z10 -> 30937.19835 | T10: ='I19 Input Rev 09 Init'!C11 -> -43883.24 | U10: ='I20 Input 10 Trueup Sett'!Z10 -> -8665.48933 | V10: ='I21 Input Rev 10 Init'!C11 -> -31235.33 | W10: ='I22 Input 11 Trueup Sett'!Z10 -> 13185.14377 | X10: ='I23 Input Rev 11 Init'!C11 -> 113914.52 | Y10: ='I24 Input 12 Trueup Sett'!Z10 -> 51992.88589 | Z10: ='I25 Input Rev 12 Init'!C11 -> -10445.33 | AA10: 136320.837
B11: RPPULOMID
B12: RPPULOOFF
B13: RPPULOON
B14: RPPULOOVN
B15: Total RPP For Settlement | C15: =SUM(C6:C14) -> -191257.4946 | D15: =SUM(D6:D14) -> 348588.37 | E15: -182791.9765 | F15: 277552.06 | G15: -314886.9807 | H15: 178809.6 | I15: -408704.3577 | J15: 272125.28 | K15: -297101.7841 | L15: 414279.06 | M15: -437635.2292 | N15: 260232.09 | O15: -256235.0653 | P15: 395307.86 | Q15: -257694.7483 | R15: 327433.21 | S15: -268756.8601 | T15: 272064.13 | U15: -474441.5385 | V15: 291664.47 | W15: -402704.6633 | X15: 785665.11 | Y15: -199511.8823 | Z15: 414994.42 | AA15: 546993.0794
D16: =C15+D15 -> 157330.8754 | F16: =E15+F15 -> 94760.08354 | H16: =G15+H15 -> -136077.3807 | J16: =I15+J15 -> -136579.0777 | L16: =K15+L15 -> 117177.2759 | N16: =M15+N15 -> -177403.1392 | P16: =O15+P15 -> 139072.7947 | R16: =Q15+R15 -> 69738.4617 | T16: =S15+T15 -> 3307.269934 | V16: =U15+V15 -> -182777.0685 | X16: =W15+X15 -> 382960.4467 | Z16: =Y15+Z15 -> 215482.5377
B18: Total RPP kWh For Settlement Reported
B19: Tier 1 | C19: ='I2 Input 01 Trueup Sett '!V6 -> 765158.4119 | D19: =-'I3 Input Rev 01 Init'!B7 -> -879121.19 | E19: ='I4 Input 02 Trueup Sett'!V6 -> 635189.774 | F19: =-'I5 Input Rev 02 Init'!B7 -> -666732.8 | G19: ='I6 Input 03 Trueup Sett'!V6 -> 684911.9738 | H19: =-'I7 Input Rev 03 Init'!B7 -> -766055.29 | I19: ='I8 Input 04 Trueup Sett'!V6 -> 576541.3368 | J19: =-'I9 Input Rev 04 Init'!B7 -> -583942.98 | K19: ='I10 Input 05 Trueup Sett'!V6 -> 505090.5148 | L19: =-'I11 Input Rev 05 Init'!B7 -> -620715.79 | M19: ='I12 Input 06 Trueup Sett'!V6 -> 468240.8328 | N19: =-'I13 Input Rev 06 Init'!B7 -> -527332.15 | O19: ='I14 Input 07 Trueup Sett'!V6 -> 542696.1739 | P19: =-'I15 Input Rev 07 Init'!B7 -> -446806.33 | Q19: ='I16 Input 08 Trueup Sett'!V6 -> 537726.0961 | R19: =-'I17 Input Rev 08 Init'!B7 -> -563491.76 | S19: ='I18 Input 09 Trueup Sett'!V6 -> 596425.8849 | T19: =-'I19 Input Rev 09 Init'!B7 -> -557198.01 | U19: ='I20 Input 10 Trueup Sett'!V6 -> 526982.2384 | V19: =-'I21 Input Rev 10 Init'!B7 -> -465326.45 | W19: ='I22 Input 11 Trueup Sett'!V6 -> 636524.2737 | X19: =-'I23 Input Rev 11 Init'!B7 -> -529133.21 | Y19: ='I24 Input 12 Trueup Sett'!V6 -> 736323.9417 | Z19: =-'I25 Input Rev 12 Init'!B7 -> -626102.3 | AA19: =SUM(C19:Z19) -> -20146.80721
B20: Tier 2 | C20: ='I2 Input 01 Trueup Sett '!V7 -> 714147.4959 | D20: =-'I3 Input Rev 01 Init'!B8 -> -737010.47 | E20: ='I4 Input 02 Trueup Sett'!V7 -> 532692.6545 | F20: =-'I5 Input Rev 02 Init'!B8 -> -657874.82 | G20: ='I6 Input 03 Trueup Sett'!V7 -> 550045.6796 | H20: =-'I7 Input Rev 03 Init'!B8 -> -621577.55 | I20: ='I8 Input 04 Trueup Sett'!V7 -> 418252.166 | J20: =-'I9 Input Rev 04 Init'!B8 -> -473070.77 | K20: ='I10 Input 05 Trueup Sett'!V7 -> 364725.9425 | L20: =-'I11 Input Rev 05 Init'!B8 -> -459455.81 | M20: ='I12 Input 06 Trueup Sett'!V7 -> 343560.1617 | N20: =-'I13 Input Rev 06 Init'!B8 -> -380908.19 | O20: ='I14 Input 07 Trueup Sett'!V7 -> 466945.3493 | P20: =-'I15 Input Rev 07 Init'!B8 -> -333572.21 | Q20: ='I16 Input 08 Trueup Sett'!V7 -> 429544.9512 | R20: =-'I17 Input Rev 08 Init'!B8 -> -467510.43 | S20: ='I18 Input 09 Trueup Sett'!V7 -> 379643.2271 | T20: =-'I19 Input Rev 09 Init'!B8 -> -454695.65 | U20: ='I20 Input 10 Trueup Sett'!V7 -> 349534.8197 | V20: =-'I21 Input Rev 10 Init'!B8 -> -366373.56 | W20: ='I22 Input 11 Trueup Sett'!V7 -> 446404.1176 | X20: =-'I23 Input Rev 11 Init'!B8 -> -394528.04 | Y20: ='I24 Input 12 Trueup Sett'!V7 -> 546757.2282 | Z20: =-'I25 Input Rev 12 Init'!B8 -> -451400.91 | AA20: =SUM(C20:Z20) -> -255724.6166
B21: TOU Off-peak | C21: ='I2 Input 01 Trueup Sett '!V8 -> 1902212.217 | D21: =-'I3 Input Rev 01 Init'!B9 -> -1767094.65 | E21: ='I4 Input 02 Trueup Sett'!V8 -> 1517595.406 | F21: =-'I5 Input Rev 02 Init'!B9 -> -1893513.87 | G21: ='I6 Input 03 Trueup Sett'!V8 -> 1617805.328 | H21: =-'I7 Input Rev 03 Init'!B9 -> -1654855.73 | I21: ='I8 Input 04 Trueup Sett'!V8 -> 1598049.154 | J21: =-'I9 Input Rev 04 Init'!B9 -> -1518985.33 | K21: ='I10 Input 05 Trueup Sett'!V8 -> 1345498.146 | L21: =-'I11 Input Rev 05 Init'!B9 -> -1530100.44 | M21: ='I12 Input 06 Trueup Sett'!V8 -> 1381419.861 | N21: =-'I13 Input Rev 06 Init'!B9 -> -1260173.95 | O21: ='I14 Input 07 Trueup Sett'!V8 -> 1800594.376 | P21: =-'I15 Input Rev 07 Init'!B9 -> -1444533.69 | Q21: ='I16 Input 08 Trueup Sett'!V8 -> 1764456.675 | R21: =-'I17 Input Rev 08 Init'!B9 -> -1788418.77 | S21: ='I18 Input 09 Trueup Sett'!V8 -> 1530586.458 | T21: =-'I19 Input Rev 09 Init'!B9 -> -1719307.94 | U21: ='I20 Input 10 Trueup Sett'!V8 -> 1510652.113 | V21: =-'I21 Input Rev 10 Init'!B9 -> -1628677.78 | W21: ='I22 Input 11 Trueup Sett'!V8 -> 1662353.135 | X21: =-'I23 Input Rev 11 Init'!B9 -> -1447704.63 | Y21: ='I24 Input 12 Trueup Sett'!V8 -> 1632765.319 | Z21: =-'I25 Input Rev 12 Init'!B9 -> -1673179.37 | AA21: -62557.96107
B22: TOU Mid-peak | C22: ='I2 Input 01 Trueup Sett '!V9 -> 6905414.502 | D22: =-'I3 Input Rev 01 Init'!B10 -> -6669812.32 | E22: ='I4 Input 02 Trueup Sett'!V9 -> 5483436.438 | F22: =-'I5 Input Rev 02 Init'!B10 -> -6936612.3 | G22: ='I6 Input 03 Trueup Sett'!V9 -> 5589135.476 | H22: =-'I7 Input Rev 03 Init'!B10 -> -5980050.33 | I22: ='I8 Input 04 Trueup Sett'!V9 -> 5429395.933 | J22: =-'I9 Input Rev 04 Init'!B10 -> -5281865.16 | K22: ='I10 Input 05 Trueup Sett'!V9 -> 4501951.801 | L22: =-'I11 Input Rev 05 Init'!B10 -> -5138106.76 | M22: ='I12 Input 06 Trueup Sett'!V9 -> 4660906.665 | N22: =-'I13 Input Rev 06 Init'!B10 -> -4191810.38 | O22: ='I14 Input 07 Trueup Sett'!V9 -> 5979398.598 | P22: =-'I15 Input Rev 07 Init'!B10 -> -4934599.08 | Q22: ='I16 Input 08 Trueup Sett'!V9 -> 6061515.024 | R22: =-'I17 Input Rev 08 Init'!B10 -> -5863841.06 | S22: ='I18 Input 09 Trueup Sett'!V9 -> 4911720.055 | T22: =-'I19 Input Rev 09 Init'!B10 -> -5958363.35 | U22: ='I20 Input 10 Trueup Sett'!V9 -> 4839425.616 | V22: =-'I21 Input Rev 10 Init'!B10 -> -5263267.96 | W22: ='I22 Input 11 Trueup Sett'!V9 -> 5385329.758 | X22: =-'I23 Input Rev 11 Init'!B10 -> -4652857.2 | Y22: ='I24 Input 12 Trueup Sett'!V9 -> 5867257.88 | Z22: =-'I25 Input Rev 12 Init'!B10 -> -5337917.77 | AA22: -594215.9229
B23: TOU On-peak | C23: ='I2 Input 01 Trueup Sett '!V10 -> 1993969.464 | D23: =-'I3 Input Rev 01 Init'!B11 -> -1872100.77 | E23: ='I4 Input 02 Trueup Sett'!V10 -> 1607935.071 | F23: =-'I5 Input Rev 02 Init'!B11 -> -1977401.08 | G23: ='I6 Input 03 Trueup Sett'!V10 -> 1692077.833 | H23: =-'I7 Input Rev 03 Init'!B11 -> -1756532.65 | I23: ='I8 Input 04 Trueup Sett'!V10 -> 1661968.113 | J23: =-'I9 Input Rev 04 Init'!B11 -> -1589133.78 | K23: ='I10 Input 05 Trueup Sett'!V10 -> 1355959.98 | L23: =-'I11 Input Rev 05 Init'!B11 -> -1574886.12 | M23: ='I12 Input 06 Trueup Sett'!V10 -> 1450916.957 | N23: =-'I13 Input Rev 06 Init'!B11 -> -1275520.95 | O23: ='I14 Input 07 Trueup Sett'!V10 -> 2018713.502 | P23: =-'I15 Input Rev 07 Init'!B11 -> -1485316.27 | Q23: ='I16 Input 08 Trueup Sett'!V10 -> 1981447.204 | R23: =-'I17 Input Rev 08 Init'!B11 -> -1988256.15 | S23: ='I18 Input 09 Trueup Sett'!V10 -> 1652704.701 | T23: =-'I19 Input Rev 09 Init'!B11 -> -1945205.24 | U23: ='I20 Input 10 Trueup Sett'!V10 -> 1502440.926 | V23: =-'I21 Input Rev 10 Init'!B11 -> -1788800.39 | W23: ='I22 Input 11 Trueup Sett'!V10 -> 1722973.088 | X23: =-'I23 Input Rev 11 Init'!B11 -> -1449269.91 | Y23: ='I24 Input 12 Trueup Sett'!V10 -> 1690317.568 | Z23: =-'I25 Input Rev 12 Init'!B11 -> -1699858.38 | AA23: -70857.28401
W24: ='I22 Input 11 Trueup Sett'!V11 -> 0 | Y24: ='I24 Input 12 Trueup Sett'!V11 -> 0 | AA24: 0
W25: ='I22 Input 11 Trueup Sett'!V12 -> 0 | Y25: ='I24 Input 12 Trueup Sett'!V12 -> 0 | AA25: 0
W26: ='I22 Input 11 Trueup Sett'!V13 -> 0 | Y26: ='I24 Input 12 Trueup Sett'!V13 -> 0 | AA26: 0
W27: ='I22 Input 11 Trueup Sett'!V14 -> 0 | Y27: ='I24 Input 12 Trueup Sett'!V14 -> 0 | AA27: 0
B28: Total RPP For Settlement | C28: =SUM(C19:C27) -> 12280902.09 | D28: -11925139.4 | E28: 9776849.344 | F28: -12132134.87 | G28: 10133976.29 | H28: -10779071.55 | I28: 9684206.704 | J28: -9446998.02 | K28: 8073226.385 | L28: -9323264.92 | M28: 8305044.477 | N28: -7635745.62 | O28: 10808348 | P28: -8644827.58 | Q28: 10774689.95 | R28: -10671518.17 | S28: 9071080.326 | T28: -10634770.19 | U28: 8729035.713 | V28: -9512446.14 | W28: =SUM(W19:W27) -> 9853584.372 | X28: =SUM(X19:X27) -> -8473492.99 | Y28: =SUM(Y19:Y27) -> 10473421.94 | Z28: =SUM(Z19:Z27) -> -9788458.73 | AA28: =SUM(AA19:AA27) -> -1003502.592
D29: =C28+D28 -> 355762.6906 | F29: =E28+F28 -> -2355285.526 | H29: =G28+H28 -> -645095.2589 | J29: =I28+J28 -> 237208.6838 | L29: =K28+L28 -> -1250038.535 | N29: =M28+N28 -> 669298.8573 | P29: =O28+P28 -> 2163520.418 | R29: =Q28+R28 -> 103171.7808 | T29: =S28+T28 -> -1563689.864 | V29: =U28+V28 -> -783410.4265 | X29: =W28+X28 -> 1380091.382 | Z29: =Y28+Z28 -> 684963.2066

Sheet I1a ER Summary
AR3: MAB
B4: kWh Volumes | C4: $ RPP Revenue | D4: $ RPP Energy | E4: $ GA | F4: $ RPP Settlement | G4: Rev RPP Settlement | H4: Net RPP Sett | J4: IESO Energy kWh | K4: IESO Energy Cost | L4: FIT/mFIT kWh | M4: FIT/mFIT kWh | N4: Total Energy kWh | O4: Total Energy Cost | Q4: CT 148 | S4: Wholesale kWh | T4: Retail kWh | U4: Diff kWh | V4: Diff % | X4: RPP kWh | Y4: COP kWh | Z4: Diff kWh | AA4: Diff % | AC4: RPP/WHSL | AE4: Energy Purchases | AF4: Energy Revenue | AG4: RPP Revenue | AH4: Non RPP Revenue | AJ4: RPP kWh | AK4: Non RPP kWh | AL4: Total kWh | AN4: Class A kWh | AP4: Non RPP Class B | AR4: Class B | AS4: Diff
A5: =Admin!B8 -> 201801 | B5: ='I2 Input 01 Trueup Sett '!V15 -> 12280902.09 | C5: ='I2 Input 01 Trueup Sett '!W15 -> 1015753.537 | D5: ='I2 Input 01 Trueup Sett '!X15 -> 379278.2592 | E5: ='I2 Input 01 Trueup Sett '!Y15 -> 827732.7728 | F5: ='I2 Input 01 Trueup Sett '!Z15 -> -191257.4946 | G5: ='I3 Input Rev 01 Init'!C12 -> 348588.37 | H5: =F5+G5 -> 157330.8754 | J5: ='I2 Input 01 Trueup Sett '!C10 -> 24199728.41 | K5: ='I2 Input 01 Trueup Sett '!D10 -> 783460.62 | L5: =N5-J5 -> 149447 | M5: =O5-K5 -> 4045.37 | N5: ='I2 Input 01 Trueup Sett '!C11 -> 24349175.41 | O5: ='I2 Input 01 Trueup Sett '!D11 -> 787505.99 | Q5: ='I2 Input 01 Trueup Sett '!B65 -> 1249604.37 | S5: ='I2 Input 01 Trueup Sett '!$C$11 -> 24349175.41 | T5: ='I2 Input 01 Trueup Sett '!$C$30 -> 24171467.22 | U5: =S5-T5 -> 177708.1865 | V5: =T5/S5-1 -> -0.007298324624 | X5: =SUM('I2 Input 01 Trueup Sett '!C20:C25) -> 12163240.33 | Y5: ='I2 Input 01 Trueup Sett '!C41 -> 12140145.33 | Z5: =X5-Y5 -> 23095.00126 | AA5: =Y5/X5-1 -> -0.001898754002 | AC5: =X5/S5 -> 0.4995339731 | AE5: ='I2 Input 01 Trueup Sett '!D11 -> 787505.99 | AF5: ='I2 Input 01 Trueup Sett '!D30 -> 1377636.487 | AG5: =C5 -> 1015753.537 | AH5: =AF5-AG5 -> 361882.9497 | AJ5: =X5 -> 12163240.33 | AK5: =T5-X5 -> 12008226.89 | AL5: =SUM(AJ5:AK5) -> 24171467.22 | AN5: ='I2 Input 01 Trueup Sett '!B57 -> 5800949.48 | AP5: =AK5-AN5 -> 6207277.409 | AR5: 6766968.728 | AS5: =AP5-AR5 -> -559691.3183 | AU5: =X5 -> 12163240.33 | AV5: ='I2 Input 01 Trueup Sett '!V15 -> 12280902.09 | AW5: =AV5/AU5-1 -> 0.009673553513
A6: =A5+1 -> 201802 | B6: ='I4 Input 02 Trueup Sett'!V15 -> 9776849.344 | C6: ='I4 Input 02 Trueup Sett'!W15 -> 809696.5338 | D6: ='I4 Input 02 Trueup Sett'!X15 -> 193719.9113 | E6: ='I4 Input 02 Trueup Sett'!Y15 -> 798768.5989 | F6: ='I4 Input 02 Trueup Sett'!Z15 -> -182791.9765 | G6: ='I5 Input Rev 02 Init'!C12 -> 277552.06 | H6: =F6+G6 -> 94760.08354 | J6: ='I4 Input 02 Trueup Sett'!C10 -> 20774413.3 | K6: ='I4 Input 02 Trueup Sett'!D10 -> 395293.48 | L6: =N6-J6 -> 182060.14 | M6: =O6-K6 -> 2384.56 | N6: ='I4 Input 02 Trueup Sett'!C11 -> 20956473.44 | O6: ='I4 Input 02 Trueup Sett'!D11 -> 397678.04 | Q6: ='I4 Input 02 Trueup Sett'!B77 -> 1250565.67 | S6: ='I4 Input 02 Trueup Sett'!C11 -> 20956473.44 | T6: ='I4 Input 02 Trueup Sett'!C30 -> 21282435.32 | U6: =S6-T6 -> -325961.8757 | V6: =T6/S6-1 -> 0.01555423324 | X6: =SUM('I4 Input 02 Trueup Sett'!C20:C25) -> 9983387.481 | Y6: ='I4 Input 02 Trueup Sett'!C44 -> 9966880.774 | Z6: =X6-Y6 -> 16506.70672 | AA6: =Y6/X6-1 -> -0.001653417415 | AC6: =X6/S6 -> 0.4763868076 | AE6: ='I4 Input 02 Trueup Sett'!D11 -> 397678.04 | AF6: ='I4 Input 02 Trueup Sett'!D30 -> 1039491.95 | AG6: 809696.5338 | AH6: =AF6-AG6 -> 229795.4165 | AJ6: =X6 -> 9983387.481 | AK6: =T6-X6 -> 11299047.84 | AL6: =SUM(AJ6:AK6) -> 21282435.32 | AN6: ='I4 Input 02 Trueup Sett'!B64 -> 5526489.39 | AP6: =AK6-AN6 -> 5772558.445 | AR6: 6189134.882 | AS6: -416576.4374 | AU6: =X6 -> 9983387.481 | AV6: ='I4 Input 02 Trueup Sett'!V15 -> 9776849.344 | AW6: =AV6/AU6-1 -> -0.02068818193
A7: =A6+1 -> 201803 | B7: ='I6 Input 03 Trueup Sett'!V15 -> 10133976.29 | C7: ='I6 Input 03 Trueup Sett'!W15 -> 842583.1691 | D7: ='I6 Input 03 Trueup Sett'!X15 -> 196769.2438 | E7: ='I6 Input 03 Trueup Sett'!Y15 -> 960700.906 | F7: ='I6 Input 03 Trueup Sett'!Z15 -> -314886.9807 | G7: ='I7 Input Rev 03 Init'!C12 -> 178809.6 | H7: =F7+G7 -> -136077.3807 | J7: ='I6 Input 03 Trueup Sett'!C10 -> 21629301.29 | K7: ='I6 Input 03 Trueup Sett'!D10 -> 375756.1 | L7: 572239.97 | M7: 7787.83 | N7: ='I6 Input 03 Trueup Sett'!C11 -> 22201541.26 | O7: ='I6 Input 03 Trueup Sett'!D11 -> 383543.93 | Q7: ='I6 Input 03 Trueup Sett'!B76 -> 1512535.39 | S7: ='I6 Input 03 Trueup Sett'!C11 -> 22201541.26 | T7: ='I6 Input 03 Trueup Sett'!C30 -> 22357425.17 | U7: -155883.9064 | V7: 0.007021310122 | X7: =SUM('I6 Input 03 Trueup Sett'!C20:C25) -> 10233000.34 | Y7: ='I6 Input 03 Trueup Sett'!C44 -> 10229281.3 | Z7: 3719.036059 | AA7: -0.0003634355454 | AC7: 0.4609139617 | AE7: ='I6 Input 03 Trueup Sett'!D11 -> 383543.93 | AF7: ='I6 Input 03 Trueup Sett'!D30 -> 1071432.623 | AG7: 842583.1691 | AH7: 228849.4542 | AJ7: 10233000.34 | AK7: 12124424.83 | AL7: 22357425.17 | AN7: ='I6 Input 03 Trueup Sett'!B64 -> 6248610.02 | AP7: 5875814.808 | AR7: 6799351.878 | AS7: -923537.0695 | AU7: 10233000.34 | AV7: ='I6 Input 03 Trueup Sett'!V15 -> 10133976.29 | AW7: =AV7/AU7-1 -> -0.00967693185
A8: 201804 | B8: ='I8 Input 04 Trueup Sett'!V15 -> 9684206.704 | C8: ='I8 Input 04 Trueup Sett'!W15 -> 805902.9397 | D8: ='I8 Input 04 Trueup Sett'!X15 -> 250060.306 | E8: ='I8 Input 04 Trueup Sett'!Y15 -> 964546.9914 | F8: ='I8 Input 04 Trueup Sett'!Z15 -> -408704.3577 | G8: ='I9 Input Rev 04 Init'!C12 -> 272125.28 | H8: -136579.0777 | J8: ='I8 Input 04 Trueup Sett'!C10 -> 20399707.71 | K8: ='I8 Input 04 Trueup Sett'!D10 -> 608147.27 | L8: 581328.89 | M8: 15840.3 | N8: ='I8 Input 04 Trueup Sett'!C11 -> 20981036.6 | O8: ='I8 Input 04 Trueup Sett'!D11 -> 623987.57 | Q8: ='I8 Input 04 Trueup Sett'!B76 -> 1683605.45 | S8: ='I8 Input 04 Trueup Sett'!C11 -> 20981036.6 | T8: ='I8 Input 04 Trueup Sett'!C30 -> 22196816.68 | U8: -1215780.084 | V8: 0.05794661662 | X8: =SUM('I8 Input 04 Trueup Sett'!C20:C25) -> 10484579.9 | Y8: ='I8 Input 04 Trueup Sett'!C44 -> 9120984.815 | Z8: 1363595.083 | AA8: -0.1300571979 | AC8: 0.4997169634 | AE8: ='I8 Input 04 Trueup Sett'!D11 -> 623987.57 | AF8: ='I8 Input 04 Trueup Sett'!D30 -> 1207244.15 | AG8: 805902.9397 | AH8: 401341.2104 | AJ8: 10484579.9 | AK8: 11712236.79 | AL8: 22196816.68 | AN8: ='I8 Input 04 Trueup Sett'!B64 -> 6270566.87 | AP8: 5441669.917 | AR8: 5857784.718 | AS8: -416114.8012 | AU8: 10484579.9 | AV8: ='I8 Input 04 Trueup Sett'!V15 -> 9684206.704 | AW8: =AV8/AU8-1 -> -0.07633812721
A9: 201805 | B9: ='I10 Input 05 Trueup Sett'!V15 -> 8073226.385 | C9: ='I10 Input 05 Trueup Sett'!W15 -> 669685.4261 | D9: ='I10 Input 05 Trueup Sett'!X15 -> 95686.08637 | E9: ='I10 Input 05 Trueup Sett'!Y15 -> 871101.1238 | F9: ='I10 Input 05 Trueup Sett'!Z15 -> -297101.7841 | G9: ='I11 Input Rev 05 Init'!C12 -> 414279.06 | H9: 117177.2759 | J9: ='I10 Input 05 Trueup Sett'!C10 -> 19312191.88 | K9: ='I10 Input 05 Trueup Sett'!D10 -> 251072.58 | L9: 817964.32 | M9: 12472.73 | N9: ='I10 Input 05 Trueup Sett'!C11 -> 20130156.2 | O9: ='I10 Input 05 Trueup Sett'!D11 -> 263545.31 | Q9: ='I10 Input 05 Trueup Sett'!B76 -> 1448166.72 | S9: ='I10 Input 05 Trueup Sett'!C11 -> 20130156.2 | T9: ='I10 Input 05 Trueup Sett'!C30 -> 20238962.5 | U9: -108806.3044 | V9: 0.005405139599 | X9: =SUM('I10 Input 05 Trueup Sett'!C20:C25) -> 8138668.484 | Y9: ='I10 Input 05 Trueup Sett'!C44 -> 8133014.664 | Z9: 5653.819317 | AA9: -0.0006946860322 | AC9: 0.4043023016 | AE9: ='I10 Input 05 Trueup Sett'!D11 -> 263545.31 | AF9: ='I10 Input 05 Trueup Sett'!D30 -> 816561.1582 | AG9: 669685.4261 | AH9: 146875.7321 | AJ9: 8138668.484 | AK9: 12100294.02 | AL9: 20238962.5 | AN9: ='I10 Input 05 Trueup Sett'!B64 -> 6707329.89 | AP9: 5392964.131 | AR9: 6011389.318 | AS9: -618425.1868 | AU9: 8138668.484 | AV9: ='I10 Input 05 Trueup Sett'!V15 -> 8073226.385 | AW9: -0.008040885199
A10: 201806 | B10: ='I12 Input 06 Trueup Sett'!V15 -> 8305044.477 | C10: ='I12 Input 06 Trueup Sett'!W15 -> 690967.3798 | D10: ='I12 Input 06 Trueup Sett'!X15 -> 140302.3479 | E10: ='I12 Input 06 Trueup Sett'!Y15 -> 988300.2611 | F10: ='I12 Input 06 Trueup Sett'!Z15 -> -437635.2292 | G10: ='I13 Input Rev 06 Init'!C12 -> 260232.09 | H10: -177403.1392 | J10: ='I12 Input 06 Trueup Sett'!C10 -> 19271102.23 | K10: ='I12 Input 06 Trueup Sett'!D10 -> 347679.95 | L10: 793945.37 | M10: 16313.97 | N10: ='I12 Input 06 Trueup Sett'!C11 -> 20065047.6 | O10: ='I12 Input 06 Trueup Sett'!D11 -> 363993.92 | Q10: ='I12 Input 06 Trueup Sett'!B76 -> 1627077.93 | S10: ='I12 Input 06 Trueup Sett'!C11 -> 20065047.6 | T10: ='I12 Input 06 Trueup Sett'!C30 -> 20720095.53 | U10: -655047.9288 | V10: 0.03264621853 | X10: =SUM('I12 Input 06 Trueup Sett'!C20:C25) -> 8702858.487 | Y10: ='I12 Input 06 Trueup Sett'!C44 -> 8694464.48 | Z10: 8394.007909 | AA10: -0.0009645115937 | AC10: 0.4337322622 | AE10: ='I12 Input 06 Trueup Sett'!D11 -> 363993.92 | AF10: ='I12 Input 06 Trueup Sett'!D30 -> 923098.285 | AG10: 690967.3798 | AH10: 232130.9051 | AJ10: 8702858.487 | AK10: 12017237.04 | AL10: 20720095.53 | AN10: ='I12 Input 06 Trueup Sett'!B64 -> 6389807.3 | AP10: 5627429.741 | AR10: 6142902.903 | AS10: -515473.1616 | AU10: 8702858.487 | AV10: ='I12 Input 06 Trueup Sett'!V15 -> 8305044.477 | AW10: -0.04571072949
A11: 201807 | B11: ='I14 Input 07 Trueup Sett'!V15 -> 10808348 | C11: ='I14 Input 07 Trueup Sett'!W15 -> 907735.5762 | D11: ='I14 Input 07 Trueup Sett'!X15 -> 327404.5312 | E11: ='I14 Input 07 Trueup Sett'!Y15 -> 836566.1103 | F11: ='I14 Input 07 Trueup Sett'!Z15 -> -256235.0653 | G11: ='I15 Input Rev 07 Init'!C12 -> 395307.86 | H11: 139072.7947 | J11: ='I14 Input 07 Trueup Sett'!C10 -> 22315542.25 | K11: ='I14 Input 07 Trueup Sett'!D10 -> 684072.42 | L11: 911331.83 | M11: 30135.5 | N11: ='I14 Input 07 Trueup Sett'!C11 -> 23226874.08 | O11: ='I14 Input 07 Trueup Sett'!D11 -> 714207.92 | Q11: ='I14 Input 07 Trueup Sett'!B76 -> 1313572.16 | S11: ='I14 Input 07 Trueup Sett'!C11 -> 23226874.08 | T11: ='I14 Input 07 Trueup Sett'!C30 -> 23008952.05 | U11: 217922.0319 | V11: -0.00938232287 | X11: =SUM('I14 Input 07 Trueup Sett'!C20:C25) -> 10667796.46 | Y11: ='I14 Input 07 Trueup Sett'!C44 -> 10662004.33 | Z11: 5792.126559 | AA11: -0.0005429543564 | AC11: 0.4592867908 | AE11: ='I14 Input 07 Trueup Sett'!D11 -> 714207.92 | AF11: ='I14 Input 07 Trueup Sett'!D30 -> 1268112.849 | AG11: 907735.5762 | AH11: 360377.2732 | AJ11: 10667796.46 | AK11: 12341155.59 | AL11: 23008952.05 | AN11: ='I14 Input 07 Trueup Sett'!B64 -> 6468771.54 | AP11: 5872384.052 | AR11: 6625667.557 | AS11: -753283.5051 | AU11: 10667796.46 | AV11: ='I14 Input 07 Trueup Sett'!V15 -> 10808348 | AW11: 0.01317531159
A12: 201808 | B12: ='I16 Input 08 Trueup Sett'!V15 -> 10774689.95 | C12: ='I16 Input 08 Trueup Sett'!W15 -> 901044.3111 | D12: ='I16 Input 08 Trueup Sett'!X15 -> 351714.8068 | E12: ='I16 Input 08 Trueup Sett'!Y15 -> 807024.2527 | F12: ='I16 Input 08 Trueup Sett'!Z15 -> -257694.7483 | G12: ='I17 Input Rev 08 Init'!C12 -> 327433.21 | H12: 69738.4617 | J12: ='I16 Input 08 Trueup Sett'!C10 -> 22796500.54 | K12: ='I16 Input 08 Trueup Sett'!D10 -> 697098.07 | L12: 715916.48 | M12: 25518.65 | N12: ='I16 Input 08 Trueup Sett'!C11 -> 23512417.02 | O12: ='I16 Input 08 Trueup Sett'!D11 -> 722616.72 | Q12: ='I16 Input 08 Trueup Sett'!B76 -> 1267821.97 | S12: ='I16 Input 08 Trueup Sett'!C11 -> 23512417.02 | T12: ='I16 Input 08 Trueup Sett'!C30 -> 23365026.48 | U12: 147390.5418 | V12: -0.006268625707 | X12: =SUM('I16 Input 08 Trueup Sett'!C20:C25) -> 10679403.35 | Y12: ='I16 Input 08 Trueup Sett'!C44 -> 10674521.09 | Z12: 4882.253631 | AA12: -0.0004571653932 | AC12: 0.4542027023 | AE12: ='I16 Input 08 Trueup Sett'!D11 -> 722616.72 | AF12: ='I16 Input 08 Trueup Sett'!D30 -> 1275092.869 | AG12: 901044.3111 | AH12: 374048.5576 | AJ12: 10679403.35 | AK12: 12685623.13 | AL12: 23365026.48 | AN12: ='I16 Input 08 Trueup Sett'!B64 -> 6845988.12 | AP12: 5839635.01 | AR12: 6475196.01 | AS12: -635560.9998 | AU12: 10679403.35 | AV12: ='I16 Input 08 Trueup Sett'!V15 -> 10774689.95 | AW12: 0.008922465012
A13: 201809 | B13: ='I18 Input 09 Trueup Sett'!V15 -> 9071080.326 | C13: ='I18 Input 09 Trueup Sett'!W15 -> 761008.8581 | D13: ='I18 Input 09 Trueup Sett'!X15 -> 251467.0332 | E13: ='I18 Input 09 Trueup Sett'!Y15 -> 778298.685 | F13: ='I18 Input 09 Trueup Sett'!Z15 -> -268756.8601 | G13: ='I19 Input Rev 09 Init'!C12 -> 272064.13 | H13: 3307.269934 | J13: ='I18 Input 09 Trueup Sett'!C10 -> 20589196.15 | K13: ='I18 Input 09 Trueup Sett'!D10 -> 611381.56 | L13: 622869.9 | M13: 21043.93 | N13: ='I18 Input 09 Trueup Sett'!C11 -> 21212066.05 | O13: ='I18 Input 09 Trueup Sett'!D11 -> 632425.49 | Q13: ='I18 Input 09 Trueup Sett'!B76 -> 1240008.5 | S13: ='I18 Input 09 Trueup Sett'!C11 -> 21212066.05 | T13: ='I18 Input 09 Trueup Sett'!C30 -> 21288708.31 | U13: -76642.26062 | V13: 0.003613144539 | X13: =SUM('I18 Input 09 Trueup Sett'!C20:C25) -> 9119210.622 | Y13: ='I18 Input 09 Trueup Sett'!C44 -> 9012687.637 | Z13: 106522.9851 | AA13: -0.01168116293 | AC13: 0.4299067616 | AE13: ='I18 Input 09 Trueup Sett'!D11 -> 632425.49 | AF13: ='I18 Input 09 Trueup Sett'!D30 -> 1106383.745 | AG13: 761008.8581 | AH13: 345374.8866 | AJ13: 9119210.622 | AK13: 12169497.69 | AL13: 21288708.31 | AN13: ='I18 Input 09 Trueup Sett'!B64 -> 6767357.55 | AP13: 5402140.139 | AR13: 6202121.122 | AS13: -799980.9838 | AU13: 9119210.622 | AV13: ='I18 Input 09 Trueup Sett'!V15 -> 9071080.326 | AW13: -0.005277901614
A14: 201810 | B14: ='I20 Input 10 Trueup Sett'!V15 -> 8729035.713 | C14: ='I20 Input 10 Trueup Sett'!W15 -> 726572.912 | D14: ='I20 Input 10 Trueup Sett'!X15 -> 148292.7068 | E14: ='I20 Input 10 Trueup Sett'!Y15 -> 1052721.744 | F14: ='I20 Input 10 Trueup Sett'!Z15 -> -474441.5385 | G14: ='I21 Input Rev 10 Init'!C12 -> 291664.47 | H14: -182777.0685 | J14: ='I20 Input 10 Trueup Sett'!C10 -> 20418670.07 | K14: ='I20 Input 10 Trueup Sett'!D10 -> 284016.5 | L14: 359886.43 | M14: 4535.94 | N14: ='I20 Input 10 Trueup Sett'!C11 -> 20778556.5 | O14: ='I20 Input 10 Trueup Sett'!D11 -> 288552.44 | Q14: ='I20 Input 10 Trueup Sett'!B76 -> 1663646.19 | S14: ='I20 Input 10 Trueup Sett'!C11 -> 20778556.5 | T14: ='I20 Input 10 Trueup Sett'!C30 -> 20863331.39 | U14: -84774.8887 | V14: 0.004079921947 | X14: =SUM('I20 Input 10 Trueup Sett'!C20:C25) -> 8781776.681 | Y14: ='I20 Input 10 Trueup Sett'!C44 -> 8637085.233 | Z14: 144691.4481 | AA14: -0.01647632972 | AC14: 0.4226365138 | AE14: ='I20 Input 10 Trueup Sett'!D11 -> 288552.44 | AF14: ='I20 Input 10 Trueup Sett'!D30 -> 900305.3755 | AG14: 726572.912 | AH14: 173732.4635 | AJ14: 8781776.681 | AK14: 12081554.71 | AL14: 20863331.39 | AN14: ='I20 Input 10 Trueup Sett'!B64 -> 6747660.48 | AP14: 5333894.228 | AR14: 6145165.96 | AS14: -811271.7323 | AU14: 8781776.681 | AV14: ='I20 Input 10 Trueup Sett'!V15 -> 8729035.713 | AW14: -0.006005728615
A15: 201811 | B15: ='I22 Input 11 Trueup Sett'!V15 -> 9853584.372 | C15: ='I22 Input 11 Trueup Sett'!W15 -> 822484.0093 | D15: ='I22 Input 11 Trueup Sett'!X15 -> 253625.2874 | E15: ='I22 Input 11 Trueup Sett'!Y15 -> 971563.3853 | F15: ='I22 Input 11 Trueup Sett'!Z15 -> -402704.6633 | G15: ='I23 Input Rev 11 Init'!C12 -> 785665.11 | H15: 382960.4467 | J15: ='I22 Input 11 Trueup Sett'!C10 -> 21385719.45 | K15: ='I22 Input 11 Trueup Sett'!D10 -> 544797.13 | L15: 186988.39 | M15: 4639.74 | N15: ='I22 Input 11 Trueup Sett'!C11 -> 21572707.84 | O15: ='I22 Input 11 Trueup Sett'!D11 -> 549436.87 | Q15: ='I22 Input 11 Trueup Sett'!B76 -> 1573108.64 | S15: ='I22 Input 11 Trueup Sett'!C11 -> 21572707.84 | T15: ='I22 Input 11 Trueup Sett'!C31 -> 21453937.35 | U15: 118770.4949 | V15: -0.005505590479 | X15: =SUM('I22 Input 11 Trueup Sett'!C20:C25) -> 8067424.936 | Y15: ='I22 Input 11 Trueup Sett'!C44 -> 8516231.752 | Z15: -448806.8153 | AA15: 0.05563197908 | AC15: 0.3739644089 | AE15: ='I22 Input 11 Trueup Sett'!D11 -> 549436.87 | AF15: ='I22 Input 11 Trueup Sett'!D31 -> 1109855.851 | AG15: 822484.0093 | AH15: 287371.8414 | AJ15: 8067424.936 | AK15: 13386512.41 | AL15: 21453937.35 | AN15: ='I22 Input 11 Trueup Sett'!B64 -> 6289711.44 | AP15: 7096800.969 | AR15: 6209418.74 | AS15: 887382.2288 | AU15: 8067424.936 | AV15: ='I22 Input 11 Trueup Sett'!V15 -> 9853584.372 | AW15: 0.2214039114
A16: 201812 | B16: ='I24 Input 12 Trueup Sett'!V15 -> 10473421.94 | C16: ='I24 Input 12 Trueup Sett'!W15 -> 863334.8852 | D16: ='I24 Input 12 Trueup Sett'!X15 -> 287813.5342 | E16: ='I24 Input 12 Trueup Sett'!Y15 -> 775033.2333 | F16: ='I24 Input 12 Trueup Sett'!Z15 -> -199511.8823 | G16: ='I25 Input Rev 12 Init'!C12 -> 414994.42 | H16: 215482.5377 | J16: ='I24 Input 12 Trueup Sett'!C10 -> 21478911.76 | K16: ='I24 Input 12 Trueup Sett'!D10 -> 611525.75 | L16: 178118.02 | M16: 5487.71 | N16: ='I24 Input 12 Trueup Sett'!C11 -> 21657029.78 | O16: ='I24 Input 12 Trueup Sett'!D11 -> 617013.46 | Q16: ='I24 Input 12 Trueup Sett'!B76 -> 911384.6 | S16: ='I24 Input 12 Trueup Sett'!C11 -> 21657029.78 | T16: ='I24 Input 12 Trueup Sett'!C31 -> 20617283.89 | U16: 1039745.894 | V16: -0.04800962573 | X16: =SUM('I24 Input 12 Trueup Sett'!C20:C25) -> 8224442.058 | Y16: ='I24 Input 12 Trueup Sett'!C44 -> 8605158.12 | Z16: -380716.0627 | AA16: 0.04629080733 | AC16: 0.3797585422 | AE16: ='I24 Input 12 Trueup Sett'!D11 -> 617013.46 | AF16: ='I24 Input 12 Trueup Sett'!D31 -> 1123256.02 | AG16: 863334.8852 | AH16: 259921.1351 | AJ16: 8224442.058 | AK16: 12392841.83 | AL16: 20617283.89 | AN16: ='I24 Input 12 Trueup Sett'!B64 -> 5310488.18 | AP16: 7082353.648 | AR16: 6004138.1 | AS16: 1078215.548 | AU16: 8224442.058 | AV16: ='I24 Input 12 Trueup Sett'!V15 -> 10473421.94 | AW16: 0.2734507537
B17: =SUM(B5:B16) -> 117964365.6 | C17: 9816769.538 | D17: 2876134.054 | E17: 10632358.06 | F17: =SUM(F5:F16) -> -3691722.581 | G17: =SUM(G5:G16) -> 4238715.66 | H17: =SUM(H5:H16) -> 546993.0794 | J17: 254570985 | K17: 6194301.43 | L17: 6072096.74 | M17: 150206.23 | N17: 260643081.8 | O17: 6344507.66 | Q17: 16741097.59 | S17: =SUM(S5:S16) -> 260643081.8 | T17: 261564441.9 | U17: -921360.0997 | V17: =T17/S17-1 -> 0.003534949378 | X17: =SUM(X5:X16) -> 115245789.1 | Y17: 114392459.5 | Z17: 853329.5897 | AA17: =Y17/X17-1 -> -0.007404431834 | AC17: 0.4421594018 | AE17: =SUM(AE5:AE16) -> 6344507.66 | AF17: 13218471.36 | AG17: 9816769.538 | AH17: 3401701.825 | AJ17: =SUM(AJ5:AJ16) -> 115245789.1 | AK17: 146318652.8 | AL17: 261564441.9 | AN17: 75373730.26 | AP17: =SUM(AP5:AP16) -> 70944922.5 | AR17: =SUM(AR5:AR16) -> 75429239.92 | AS17: =SUM(AS5:AS16) -> -4484317.419 | AU17: =SUM(AU5:AU16) -> 115245789.1 | AV17: =SUM(AV5:AV16) -> 117964365.6 | AW17: 0.02358937785
A20: 4705 GA | B20: ='Rec1 1588 Commodity'!F23 -> 1482359.064
A22: 4707 GA | B22: ='Rec2 1589 Class B'!J23 -> 607639.2958
A24: Should Be $0 | B24: =SUM(B20:B23) -> 2089998.36
A26: (Owed To)/Owed From IESO | B26: =-H17 -> -546993.0794
A28: (Owed To)/Owed From Power Consumer | B28: ='Rec1 1588 Commodity'!L20 -> 66671.78054
A30: (Owed To)/Owed From Class B | B30: ='Rec2 1589 Class B'!K20 -> -133440.4552
A32: (Owed To)/Owed From | B32: =SUM(B26:B31) -> -613761.754
A35: Unresolved Difference as % of Expected GA Payments to IESO | B35: ='Rev3 GA Analysis '!D67 -> 0.00981113397
A37: Account 1588 as % of Account 4705 | B37: ='Rev3 GA Analysis '!G99 -> 0.005018521804

Sheet I1b RPP Rates
A3: RPP Rates | P3: RPP Rates Split
B4: =Admin!B8 -> 201801 | C4: =B4+1 -> 201802 | D4: =C4+1 -> 201803 | E4: 201804 | F4: 201805 | G4: 201806 | H4: 201807 | I4: 201808 | J4: 201809 | K4: 201810 | L4: 201811 | M4: 201812 | Q4: =B4 -> 201801 | R4: =Q4+1 -> 201802 | S4: =R4+1 -> 201803 | T4: =S4+1 -> 201804 | U4: =T4+1 -> 201805 | V4: =U4+1 -> 201806 | W4: =V4+1 -> 201807 | X4: =W4+1 -> 201808 | Y4: =X4+1 -> 201809 | Z4: =Y4+1 -> 201810 | AA4: =Z4+1 -> 201811 | AB4: =AA4+1 -> 201812
A5: RPPT1 | B5: ='I2 Input 01 Trueup Sett '!Q6 -> 0.07700090526 | C5: ='I4 Input 02 Trueup Sett'!Q6 -> 0.07700006294 | D5: ='I6 Input 03 Trueup Sett'!Q6 -> 0.07699975031 | E5: ='I8 Input 04 Trueup Sett'!Q6 -> 0.07700000372 | F5: ='I10 Input 05 Trueup Sett'!Q6 -> 0.07699975245 | G5: ='I12 Input 06 Trueup Sett'!Q6 -> 0.07700014333 | H5: ='I14 Input 07 Trueup Sett'!Q6 -> 0.07699965038 | I5: ='I16 Input 08 Trueup Sett'!Q6 -> 0.07699961646 | J5: ='I18 Input 09 Trueup Sett'!Q6 -> 0.07700007974 | K5: ='I20 Input 10 Trueup Sett'!Q6 -> 0.07699950966 | L5: ='I22 Input 11 Trueup Sett'!Q6 -> 0.07699997403 | M5: ='I24 Input 12 Trueup Sett'!Q6 -> 0.07699977704 | P5: RPPT1 | Q5: ='I2 Input 01 Trueup Sett '!L18 -> 0.06230474002 | R5: ='I4 Input 02 Trueup Sett'!L18 -> 0.06496875953 | S5: ='I6 Input 03 Trueup Sett'!L18 -> 0.06758570912 | T5: ='I8 Input 04 Trueup Sett'!L18 -> 0.05953418328 | U5: ='I10 Input 05 Trueup Sett'!L18 -> 0.06256365061 | V5: ='I12 Input 06 Trueup Sett'!L18 -> 0.05638029201 | W5: ='I14 Input 07 Trueup Sett'!L18 -> 0.05021083462 | X5: ='I16 Input 08 Trueup Sett'!L18 -> 0.04990641017 | Y5: ='I18 Input 09 Trueup Sett'!L18 -> 0.06575025945 | Z5: ='I20 Input 10 Trueup Sett'!L18 -> 0.06037118597 | AA5: ='I22 Input 11 Trueup Sett'!L18 -> 0.06459824666 | AB5: ='I24 Input 12 Trueup Sett'!L18 -> 0.07030404639
A6: RPPT2 | B6: ='I2 Input 01 Trueup Sett '!Q7 -> 0.09000008772 | C6: ='I4 Input 02 Trueup Sett'!Q7 -> 0.09000011971 | D6: ='I6 Input 03 Trueup Sett'!Q7 -> 0.09000020781 | E6: ='I8 Input 04 Trueup Sett'!Q7 -> 0.08989577659 | F6: ='I10 Input 05 Trueup Sett'!Q7 -> 0.08911584867 | G6: ='I12 Input 06 Trueup Sett'!Q7 -> 0.08900021741 | H6: ='I14 Input 07 Trueup Sett'!Q7 -> 0.08899988329 | I6: ='I16 Input 08 Trueup Sett'!Q7 -> 0.08899982011 | J6: ='I18 Input 09 Trueup Sett'!Q7 -> 0.08900029281 | K6: ='I20 Input 10 Trueup Sett'!Q7 -> 0.08899990617 | L6: ='I22 Input 11 Trueup Sett'!Q7 -> 0.08900027336 | M6: ='I24 Input 12 Trueup Sett'!Q7 -> 0.08899990546 | P6: RPPT2 | Q6: ='I2 Input 01 Trueup Sett '!L19 -> 0.05815106176 | R6: ='I4 Input 02 Trueup Sett'!L19 -> 0.05448510412 | S6: ='I6 Input 03 Trueup Sett'!L19 -> 0.05427737976 | T6: ='I8 Input 04 Trueup Sett'!L19 -> 0.0431890994 | U6: ='I10 Input 05 Trueup Sett'!L19 -> 0.04517722223 | V6: ='I12 Input 06 Trueup Sett'!L19 -> 0.04136764862 | W6: ='I14 Input 07 Trueup Sett'!L19 -> 0.04320228673 | X6: ='I16 Input 08 Trueup Sett'!L19 -> 0.03986610781 | Y6: ='I18 Input 09 Trueup Sett'!L19 -> 0.04185204116 | Z6: ='I20 Input 10 Trueup Sett'!L19 -> 0.04004277576 | AA6: ='I22 Input 11 Trueup Sett'!L19 -> 0.04530372915 | AB6: ='I24 Input 12 Trueup Sett'!L19 -> 0.0522042587
A7: RPPTOUMID | B7: ='I2 Input 01 Trueup Sett '!Q8 -> 0.09500033902 | C7: ='I4 Input 02 Trueup Sett'!Q8 -> 0.09500047293 | D7: ='I6 Input 03 Trueup Sett'!Q8 -> 0.09500039133 | E7: ='I8 Input 04 Trueup Sett'!Q8 -> 0.09487679417 | F7: ='I10 Input 05 Trueup Sett'!Q8 -> 0.09414748489 | G7: ='I12 Input 06 Trueup Sett'!Q8 -> 0.09400040565 | H7: ='I14 Input 07 Trueup Sett'!Q8 -> 0.09400046942 | I7: ='I16 Input 08 Trueup Sett'!Q8 -> 0.09400019841 | J7: ='I18 Input 09 Trueup Sett'!Q8 -> 0.09400010815 | K7: ='I20 Input 10 Trueup Sett'!Q8 -> 0.09399967937 | L7: ='I22 Input 11 Trueup Sett'!Q8 -> 0.09399982232 | M7: ='I24 Input 12 Trueup Sett'!Q8 -> 0.09400054125 | P7: RPPTOUMID | Q7: ='I2 Input 01 Trueup Sett '!L20 -> 0.1548918966 | R7: ='I4 Input 02 Trueup Sett'!L20 -> 0.1552233601 | S7: ='I6 Input 03 Trueup Sett'!L20 -> 0.1596417124 | T7: ='I8 Input 04 Trueup Sett'!L20 -> 0.1650160104 | U7: ='I10 Input 05 Trueup Sett'!L20 -> 0.1666617634 | V7: ='I12 Input 06 Trueup Sett'!L20 -> 0.1663350346 | W7: ='I14 Input 07 Trueup Sett'!L20 -> 0.1665929313 | X7: ='I16 Input 08 Trueup Sett'!L20 -> 0.163759392 | Y7: ='I18 Input 09 Trueup Sett'!L20 -> 0.1687325438 | Z7: ='I20 Input 10 Trueup Sett'!L20 -> 0.1730605949 | AA7: ='I22 Input 11 Trueup Sett'!L20 -> 0.1687054246 | AB7: ='I24 Input 12 Trueup Sett'!L20 -> 0.15589607
A8: RPPTOUOFF | B8: ='I2 Input 01 Trueup Sett '!Q9 -> 0.06497038345 | C8: ='I4 Input 02 Trueup Sett'!Q9 -> 0.06500014009 | D8: ='I6 Input 03 Trueup Sett'!Q9 -> 0.06500011322 | E8: ='I8 Input 04 Trueup Sett'!Q9 -> 0.06500019589 | F8: ='I10 Input 05 Trueup Sett'!Q9 -> 0.06500023313 | G8: ='I12 Input 06 Trueup Sett'!Q9 -> 0.06500022001 | H8: ='I14 Input 07 Trueup Sett'!Q9 -> 0.06500014407 | I8: ='I16 Input 08 Trueup Sett'!Q9 -> 0.06500010534 | J8: ='I18 Input 09 Trueup Sett'!Q9 -> 0.06500017791 | K8: ='I20 Input 10 Trueup Sett'!Q9 -> 0.06500006237 | L8: ='I22 Input 11 Trueup Sett'!Q9 -> 0.06500007169 | M8: ='I24 Input 12 Trueup Sett'!Q9 -> 0.06500013563 | P8: RPPTOUOFF | Q8: ='I2 Input 01 Trueup Sett '!L21 -> 0.5622888654 | R8: ='I4 Input 02 Trueup Sett'!L21 -> 0.5608592549 | S8: ='I6 Input 03 Trueup Sett'!L21 -> 0.5515244279 | T8: ='I8 Input 04 Trueup Sett'!L21 -> 0.5606443666 | U8: ='I10 Input 05 Trueup Sett'!L21 -> 0.5576397325 | V8: ='I12 Input 06 Trueup Sett'!L21 -> 0.5612139318 | W8: ='I14 Input 07 Trueup Sett'!L21 -> 0.5532203995 | X8: ='I16 Input 08 Trueup Sett'!L21 -> 0.5625697864 | Y8: ='I18 Input 09 Trueup Sett'!L21 -> 0.5414702416 | Z8: ='I20 Input 10 Trueup Sett'!L21 -> 0.5544055237 | AA8: ='I22 Input 11 Trueup Sett'!L21 -> 0.5465351038 | AB8: ='I24 Input 12 Trueup Sett'!L21 -> 0.560204479
A9: RPPTOUON | B9: ='I2 Input 01 Trueup Sett '!Q10 -> 0.1320000536 | C9: ='I4 Input 02 Trueup Sett'!Q10 -> 0.1320003925 | D9: ='I6 Input 03 Trueup Sett'!Q10 -> 0.132000024 | E9: ='I8 Input 04 Trueup Sett'!Q10 -> 0.1320004696 | F9: ='I10 Input 05 Trueup Sett'!Q10 -> 0.1320006042 | G9: ='I12 Input 06 Trueup Sett'!Q10 -> 0.1320005619 | H9: ='I14 Input 07 Trueup Sett'!Q10 -> 0.1320006984 | I9: ='I16 Input 08 Trueup Sett'!Q10 -> 0.1320003841 | J9: ='I18 Input 09 Trueup Sett'!Q10 -> 0.1320004045 | K9: ='I20 Input 10 Trueup Sett'!Q10 -> 0.1320006579 | L9: ='I22 Input 11 Trueup Sett'!Q10 -> 0.1320008131 | M9: ='I24 Input 12 Trueup Sett'!Q10 -> 0.1320008659 | P9: RPPTOUON | Q9: ='I2 Input 01 Trueup Sett '!L22 -> 0.1623634362 | R9: ='I4 Input 02 Trueup Sett'!L22 -> 0.1644635214 | S9: ='I6 Input 03 Trueup Sett'!L22 -> 0.1669707708 | T9: ='I8 Input 04 Trueup Sett'!L22 -> 0.1716163403 | U9: ='I10 Input 05 Trueup Sett'!L22 -> 0.1679576313 | V9: ='I12 Input 06 Trueup Sett'!L22 -> 0.1747030929 | W9: ='I14 Input 07 Trueup Sett'!L22 -> 0.1867735478 | X9: ='I16 Input 08 Trueup Sett'!L22 -> 0.1838983036 | Y9: ='I18 Input 09 Trueup Sett'!L22 -> 0.1821949141 | Z9: ='I20 Input 10 Trueup Sett'!L22 -> 0.1721199196 | AA9: ='I22 Input 11 Trueup Sett'!L22 -> 0.1748574958 | AB9: ='I24 Input 12 Trueup Sett'!L22 -> 0.1613911459
A10: RPPULOMID | B10: ='I2 Input 01 Trueup Sett '!Q11 -> 0 | C10: ='I4 Input 02 Trueup Sett'!Q11 -> 0 | D10: ='I6 Input 03 Trueup Sett'!Q11 -> 0 | E10: ='I8 Input 04 Trueup Sett'!Q11 -> 0 | F10: ='I10 Input 05 Trueup Sett'!Q11 -> 0 | G10: ='I12 Input 06 Trueup Sett'!Q11 -> 0 | H10: ='I14 Input 07 Trueup Sett'!Q11 -> 0 | I10: ='I16 Input 08 Trueup Sett'!Q11 -> 0 | J10: ='I18 Input 09 Trueup Sett'!Q11 -> 0 | K10: ='I20 Input 10 Trueup Sett'!Q11 -> 0 | L10: ='I22 Input 11 Trueup Sett'!Q11 -> 0 | M10: ='I24 Input 12 Trueup Sett'!Q11 -> 0 | P10: RPPULOMID | Q10: ='I2 Input 01 Trueup Sett '!AF11 -> 0 | R10: ='I4 Input 02 Trueup Sett'!AF11 -> 0 | S10: ='I6 Input 03 Trueup Sett'!AF11 -> 0 | T10: ='I8 Input 04 Trueup Sett'!AF11 -> 0 | U10: ='I10 Input 05 Trueup Sett'!AF11 -> 0 | V10: ='I12 Input 06 Trueup Sett'!AF11 -> 0 | W10: ='I14 Input 07 Trueup Sett'!AF11 -> 0 | X10: ='I16 Input 08 Trueup Sett'!AF11 -> 0 | Y10: ='I18 Input 09 Trueup Sett'!AF11 -> 0 | Z10: ='I20 Input 10 Trueup Sett'!AF11 -> 0 | AA10: ='I22 Input 11 Trueup Sett'!AF11 -> 0 | AB10: ='I24 Input 12 Trueup Sett'!AF11 -> 0
A11: RPPULOOFF | B11: ='I2 Input 01 Trueup Sett '!Q12 -> 0 | C11: ='I4 Input 02 Trueup Sett'!Q12 -> 0 | D11: ='I6 Input 03 Trueup Sett'!Q12 -> 0 | E11: ='I8 Input 04 Trueup Sett'!Q12 -> 0 | F11: ='I10 Input 05 Trueup Sett'!Q12 -> 0 | G11: ='I12 Input 06 Trueup Sett'!Q12 -> 0 | H11: ='I14 Input 07 Trueup Sett'!Q12 -> 0 | I11: ='I16 Input 08 Trueup Sett'!Q12 -> 0 | J11: ='I18 Input 09 Trueup Sett'!Q12 -> 0 | K11: ='I20 Input 10 Trueup Sett'!Q12 -> 0 | L11: ='I22 Input 11 Trueup Sett'!Q12 -> 0 | M11: ='I24 Input 12 Trueup Sett'!Q12 -> 0 | P11: RPPULOOFF | Q11: ='I2 Input 01 Trueup Sett '!AF12 -> 0 | R11: ='I4 Input 02 Trueup Sett'!AF12 -> 0 | S11: ='I6 Input 03 Trueup Sett'!AF12 -> 0 | T11: ='I8 Input 04 Trueup Sett'!AF12 -> 0 | U11: ='I10 Input 05 Trueup Sett'!AF12 -> 0 | V11: ='I12 Input 06 Trueup Sett'!AF12 -> 0 | W11: ='I14 Input 07 Trueup Sett'!AF12 -> 0 | X11: ='I16 Input 08 Trueup Sett'!AF12 -> 0 | Y11: ='I18 Input 09 Trueup Sett'!AF12 -> 0 | Z11: ='I20 Input 10 Trueup Sett'!AF12 -> 0 | AA11: ='I22 Input 11 Trueup Sett'!AF12 -> 0 | AB11: ='I24 Input 12 Trueup Sett'!AF12 -> 0
A12: RPPULOON | B12: ='I2 Input 01 Trueup Sett '!Q13 -> 0 | C12: ='I4 Input 02 Trueup Sett'!Q13 -> 0 | D12: ='I6 Input 03 Trueup Sett'!Q13 -> 0 | E12: ='I8 Input 04 Trueup Sett'!Q13 -> 0 | F12: ='I10 Input 05 Trueup Sett'!Q13 -> 0 | G12: ='I12 Input 06 Trueup Sett'!Q13 -> 0 | H12: ='I14 Input 07 Trueup Sett'!Q13 -> 0 | I12: ='I16 Input 08 Trueup Sett'!Q13 -> 0 | J12: ='I18 Input 09 Trueup Sett'!Q13 -> 0 | K12: ='I20 Input 10 Trueup Sett'!Q13 -> 0 | L12: ='I22 Input 11 Trueup Sett'!Q13 -> 0 | M12: ='I24 Input 12 Trueup Sett'!Q13 -> 0 | P12: RPPULOON | Q12: ='I2 Input 01 Trueup Sett '!AF13 -> 0 | R12: ='I4 Input 02 Trueup Sett'!AF13 -> 0 | S12: ='I6 Input 03 Trueup Sett'!AF13 -> 0 | T12: ='I8 Input 04 Trueup Sett'!AF13 -> 0 | U12: ='I10 Input 05 Trueup Sett'!AF13 -> 0 | V12: ='I12 Input 06 Trueup Sett'!AF13 -> 0 | W12: ='I14 Input 07 Trueup Sett'!AF13 -> 0 | X12: ='I16 Input 08 Trueup Sett'!AF13 -> 0 | Y12: ='I18 Input 09 Trueup Sett'!AF13 -> 0 | Z12: ='I20 Input 10 Trueup Sett'!AF13 -> 0 | AA12: ='I22 Input 11 Trueup Sett'!AF13 -> 0 | AB12: ='I24 Input 12 Trueup Sett'!AF13 -> 0
A13: RPPULOOVN | B13: ='I2 Input 01 Trueup Sett '!Q14 -> 0 | C13: ='I4 Input 02 Trueup Sett'!Q14 -> 0 | D13: ='I6 Input 03 Trueup Sett'!Q14 -> 0 | E13: ='I8 Input 04 Trueup Sett'!Q14 -> 0 | F13: ='I10 Input 05 Trueup Sett'!Q14 -> 0 | G13: ='I12 Input 06 Trueup Sett'!Q14 -> 0 | H13: ='I14 Input 07 Trueup Sett'!Q14 -> 0 | I13: ='I16 Input 08 Trueup Sett'!Q14 -> 0 | J13: ='I18 Input 09 Trueup Sett'!Q14 -> 0 | K13: ='I20 Input 10 Trueup Sett'!Q14 -> 0 | L13: ='I22 Input 11 Trueup Sett'!Q14 -> 0 | M13: ='I24 Input 12 Trueup Sett'!Q14 -> 0 | P13: RPPULOOVN | Q13: ='I2 Input 01 Trueup Sett '!AF14 -> 0 | R13: ='I4 Input 02 Trueup Sett'!AF14 -> 0 | S13: ='I6 Input 03 Trueup Sett'!AF14 -> 0 | T13: ='I8 Input 04 Trueup Sett'!AF14 -> 0 | U13: ='I10 Input 05 Trueup Sett'!AF14 -> 0 | V13: ='I12 Input 06 Trueup Sett'!AF14 -> 0 | W13: ='I14 Input 07 Trueup Sett'!AF14 -> 0 | X13: ='I16 Input 08 Trueup Sett'!AF14 -> 0 | Y13: ='I18 Input 09 Trueup Sett'!AF14 -> 0 | Z13: ='I20 Input 10 Trueup Sett'!AF14 -> 0 | AA13: ='I22 Input 11 Trueup Sett'!AF14 -> 0 | AB13: ='I24 Input 12 Trueup Sett'!AF14 -> 0
Q14: =SUM(Q5:Q13) -> 1 | R14: =SUM(R5:R13) -> 1 | S14: 1 | T14: 1 | U14: 1 | V14: 1 | W14: 1 | X14: 1 | Y14: 1 | Z14: 1 | AA14: 1 | AB14: 1

Sheet I2 Input 01 Trueup Sett
A1: Date: | B1: =Admin!B8 -> 201801 | C1: Trueup | K1: ="Data for 1st True up of RPP Settlement based on Actual IESO Invoice" -> Data for 1st True up of RPP Settlement based on Actual IESO Invoice | P1: For Reconciliation
A3: Wholesale Electricty | B3: Year | C3: 2018 | E3: Rate | P3: Actual RPP Revenue and GA
A4: Redshift Wholesale Report.xlsm | B4: dateref | C4: 201801 | K4: Wholesale Volume data per IESO Power Bill: | L4: GA RPP/non-RPP Ratios | M4: GA Volumes | N4: Energy Volumes | P4: =B1 -> 201801
K5: AQEW | M5: =C10 -> 24199728.41 | N5: =+M5 -> 24199728.41 | P5: RPP Revenue Prices | Q5: RPP Rate | R5: Estimated RPP Energy Price | S5: GA actual IESO billed | T5: Total Commodity | U5: Difference | V5: kWh Volumes | W5: $ Estimated RPP Revenue | X5: $ Estimated RPP Energy | Y5: $ Estimated GA | Z5: $ Estimated RPP Settlement
B6: Wholesale | K6: Embedded Generation | M6: =SUM(C8:C9) -> 149447 | N6: =+M6 -> 149447 | P6: RPPT1 | Q6: =E20 -> 0.07700090526 | R6: =E39 -> 0.03194051962 | S6: =L32 -> 0.06739999771 | T6: =R6+S6 -> 0.09934051733 | U6: =+Q6-T6 -> -0.02233961208 | V6: =M18 -> 765158.4119 | W6: =Q6*V6 -> 58917.89038 | X6: =R6*V6 -> 24439.55727 | Y6: =+V6*S6 -> 51571.67521 | Z6: =W6-X6-Y6 -> -17093.3421
B7: Source | C7: kWh | D7: Total Cost | K7: Class A customer Volumes for GA (TLF included) | M7: =-B57 -> -5800949.48 | P7: RPPT2 | Q7: =E21 -> 0.09000008772 | R7: =R6 -> 0.03194051962 | S7: =S6 -> 0.06739999771 | T7: =R7+S7 -> 0.09934051733 | U7: =+Q7-T7 -> -0.009340429612 | V7: =M19 -> 714147.4959 | W7: =Q7*V7 -> 64273.33728 | X7: =R7*V7 -> 22810.24211 | Y7: =+V7*S7 -> 48133.53959 | Z7: =W7-X7-Y7 -> -6670.444418
B8: FIT | C8: 141722.5 | D8: 3823.31 | E8: =D8/C8 -> 0.0269774383 | M8: =+M5+M6+M7 -> 18548225.93 | N8: =+N5+N6+N7 -> 24349175.41 | P8: RPPTOUMID | Q8: =E23 -> 0.09500033902 | R8: =E40 -> 0.03073883287 | S8: =S7 -> 0.06739999771 | T8: 0.09813883058 | U8: -0.00313849156 | V8: 1902212.217 | W8: 180710.8055 | X8: 58471.78342 | Y8: 128209.0991 | Z8: -5970.076988
B9: microFIT | C9: 7724.5 | D9: 222.06 | E9: =D9/C9 -> 0.02874749175 | P9: RPPTOUOFF | Q9: =E24 -> 0.06497038345 | R9: =R8 -> 0.03073883287 | S9: 0.06739999771 | T9: 0.09813883058 | U9: -0.03316844713 | V9: 6905414.502 | W9: 448647.4281 | X9: 212264.3823 | Y9: 465424.9216 | Z9: -229041.8759
B10: WHOLESALE | C10: 24199728.41 | D10: 783460.62 | E10: =D10/C10 -> 0.03237476912 | K10: Estimated Retail Volume Revenue Data (TLF Included) | L10: RPP/non-RPP Ratios | M10: GA Volumes | N10: Energy Volumes | P10: RPPTOUON | Q10: 0.1320000536 | R10: =R9 -> 0.03073883287 | S10: 0.06739999771 | T10: 0.09813883058 | U10: 0.03386122304 | V10: 1993969.464 | W10: 263204.0761 | X10: 61292.2941 | Y10: 134393.5373 | Z10: 67518.24475
B11: Grand Total | C11: 24349175.41 | D11: 787505.99 | K11: Estimated Retail Revenue Data (Net of Retail Billed/Unbilled) | M11: =+M15 -> 18548225.93 | N11: =+N15 -> 24349175.41 | P11: RPPULOMID | Q11: 0 | R11: 0 | S11: 0 | T11: 0 | U11: 0 | V11: 0 | W11: 0 | X11: 0 | Y11: 0 | Z11: 0
P12: RPPULOOFF | Q12: 0 | R12: 0 | S12: 0 | T12: 0 | U12: 0 | V12: 0 | W12: 0 | X12: 0 | Y12: 0 | Z12: 0
K13: Estimated RPP Sales Quantities | L13: =SUM(C20:C25)/(C30-B57) -> 0.6621065614 | M13: =M8*L13 -> 12280902.09 | N13: =M13 -> 12280902.09 | P13: RPPULOON | Q13: 0 | R13: 0 | S13: 0 | T13: 0 | U13: 0 | V13: 0 | W13: 0 | X13: 0 | Y13: 0 | Z13: 0
A14: RPP Revenue Volume and Price Data | K14: Estimated non-RPP Sales Quantities | L14: =1-L13 -> 0.3378934386 | M14: =M8*L14 -> 6267323.839 | N14: =N8-N13 -> 12068273.32 | P14: RPPULOOVN | Q14: 0 | R14: 0 | S14: 0 | T14: 0 | U14: 0 | V14: 0 | W14: 0 | X14: 0 | Y14: 0 | Z14: 0
A15: ER Summary.xlsm | B15: bill_year | C15: 2018 | K15: Estimated Retail Revenue kWh Volumes | L15: =+L13+L14 -> 1 | M15: =+M13+M14 -> 18548225.93 | N15: =+N13+N14 -> 24349175.41 | V15: =SUM(V6:V14) -> 12280902.09 | W15: =SUM(W6:W14) -> 1015753.537 | X15: =SUM(X6:X14) -> 379278.2592 | Y15: =SUM(Y6:Y14) -> 827732.7728 | Z15: =SUM(Z6:Z14) -> -191257.4946
B16: bill_month | C16: 1 | Z16: =W15-X15-Y15-Z15 -> 0
K17: Estimated RPP Revenue Volume and Price Data | L17: Actual % | M17: kWh Volumes
B18: Row Labels | C18: usagebilled | D18: amountbilled | E18: Rate | K18: RPPT1 | L18: =C20/SUM($C$20:$C$25) -> 0.06230474002 | M18: =$M$13*L18 -> 765158.4119
B19: RPPTIER | K19: RPPT2 | L19: =C21/SUM($C$20:$C$25) -> 0.05815106176 | M19: =$M$13*L19 -> 714147.4959
B20: RPPT1 | C20: 757827.5268 | D20: 58353.40559 | E20: =D20/C20 -> 0.07700090526 | K20: RPPTOUMID | L20: =C23/SUM($C$20:$C$25) -> 0.1548918966 | M20: 1902212.217
B21: RPPT2 | C21: 707305.3399 | D21: 63657.54263 | E21: =D21/C21 -> 0.09000008772 | K21: RPPTOUOFF | L21: =C24/SUM($C$20:$C$25) -> 0.5622888654 | M21: 6905414.502
B22: RPPTOU | K22: RPPTOUON | L22: 0.1623634362 | M22: 1993969.464
B23: RPPTOUMID | C23: 1883987.364 | D23: 178979.4383 | E23: 0.09500033902 | K23: RPPULOMID | L23: 0 | M23: 0
B24: RPPTOUOFF | C24: 6839254.607 | D24: 444348.9943 | E24: 0.06497038345 | K24: RPPULOOFF | L24: 0 | M24: 0
B25: RPPTOUON | C25: 1974865.497 | D25: 260682.3515 | E25: 0.1320000536 | K25: RPPULOON | L25: 0 | M25: 0
B26: RETAIL | K26: RPPULOOVN | L26: 0 | M26: 0
B27: NSLS | C27: 4459804.948 | D27: 140032.2503 | E27: 0.03139873872 | L27: =SUM(L18:L26) -> 1 | M27: =SUM(M18:M26) -> 12280902.09
B28: INTERVAL
B29: HOEP | C29: 7548421.941 | D29: 231582.5044 | E29: 0.03067959187
B30: Grand Total | C30: 24171467.22 | D30: 1377636.487
K31: Global Adjustment | L31: per kWh
C32: =C30/C11-1 -> -0.007298324624 | K32: Class B - GA actual8 | L32: =B49/100 -> 0.06739999771 | N32: GA Posted Price
K33: Class B - GA actual IESO billed | L33: =+M33/M8 -> 0.06737056011 | M33: =B65 -> 1249604.37 | N33: GA Billed by IESO CT 148
A34: RPP COP Volume and Price Data
A35: ER COP Summary.xlsm | B35: bill_year | C35: 2018
B36: bill_month | C36: 1
B38: Row Labels | C38: usagebilled | D38: amountbilled | E38: Rate
B39: RPPTIERED | C39: 1460350.324 | D39: 46644.34817 | E39: =D39/C39 -> 0.03194051962
B40: RPPTOU | C40: 10679795.01 | D40: 328284.4339 | E40: 0.03073883287
B41: Grand Total | C41: 12140145.33 | D41: 374928.7821
C43: =SUM(C20:C25)-C41 -> 23095.00126
C44: =C43/C41 -> 0.001902366127
A45: Global Adjustment - Actual
A46: IESO GA Reconciliation.xlsm
A47: ga_actual | B47: year
A48: month | B48: 2018
A49: 201801 | B49: 6.739999771
A51: Class A kWh
A52: Redshift Class A Report.xlsm
A53: Year | B53: 2018
A55: Class A | B55: Value
A56: kWh
A57: 201801 | B57: 5800949.48
A59: IESO Class B
A60: IESO Invoice Reconciliation.xlsm
A61: chargetype | B61: 148
A63: Sum of chargeamount | B63: year
A64: month | B64: 2018
A65: 201801 | B65: 1249604.37

Sheet I3 Input Rev 01 Init
A1: Reverse IESO Posted
A2: Reverse Previously submitted CT142 By Date Ref.xlsx
A5: =Admin!B8 -> 201801
A6: RPP Revenue Prices | B6: kWh Volumes | C6: $ RPP Settlement
A7: RPPTiered_1 | B7: 879121.19 | C7: 31743.12
A8: RPPTiered_2 | B8: 737010.47 | C8: 17030.79
A9: RPPTOU_MID | B9: 1767094.65 | C9: 28919.7
A10: RPPTOU_OFF | B10: 6669812.32 | C10: 309509.38
A11: RPPTOU_ON | B11: 1872100.77 | C11: -38614.62
A12: Grand Total | B12: 11925139.4 | C12: 348588.37

Sheet I4 Input 02 Trueup Sett
A1: Date: | B1: =Admin!B8+1 -> 201802 | C1: Trueup | K1: ="Data for 1st True up of RPP Settlement based on Actual IESO Invoice" -> Data for 1st True up of RPP Settlement based on Actual IESO Invoice | P1: For Reconciliation
A3: Wholesale Electricty | B3: Year | C3: 2018 | E3: Rate | P3: Actual RPP Revenue and GA
B4: dateref | C4: 201802 | K4: Wholesale Volume data per IESO Power Bill: | L4: GA RPP/non-RPP Ratios | M4: GA Volumes | N4: Energy Volumes | P4: =B1 -> 201802
K5: AQEW | M5: =C10 -> 20774413.3 | N5: =+M5 -> 20774413.3 | P5: RPP Revenue Prices | Q5: RPP Rate | R5: Estimated RPP Energy Price | S5: GA actual IESO billed | T5: Total Commodity | U5: Difference | V5: kWh Volumes | W5: $ Estimated RPP Revenue | X5: $ Estimated RPP Energy | Y5: $ Estimated GA | Z5: $ Estimated RPP Settlement
B6: Wholesale | K6: Embedded Generation | M6: =SUM(C8:C9) -> 182060.14 | N6: =+M6 -> 182060.14 | P6: RPPT1 | Q6: =E20 -> 0.07700006294 | R6: =E42 -> 0.01942686045 | S6: =L32 -> 0.08170000076 | T6: =R6+S6 -> 0.1011268612 | U6: =+Q6-T6 -> -0.02412679827 | V6: =M18 -> 635189.774 | W6: =Q6*V6 -> 48909.65258 | X6: =R6*V6 -> 12339.7431 | Y6: =+V6*S6 -> 51895.00502 | Z6: =W6-X6-Y6 -> -15325.09554
A7: FIT/mFIT | B7: Source | C7: kWh | D7: Total Cost | K7: Class A customer Volumes for GA (TLF included) | M7: =-B64 -> -5526489.39 | P7: RPPT2 | Q7: =E21 -> 0.09000011971 | R7: =R6 -> 0.01942686045 | S7: =S6 -> 0.08170000076 | T7: =R7+S7 -> 0.1011268612 | U7: =+Q7-T7 -> -0.0111267415 | V7: =M19 -> 532692.6545 | W7: =Q7*V7 -> 47942.40267 | X7: =R7*V7 -> 10348.54586 | Y7: =+V7*S7 -> 43520.99028 | Z7: =W7-X7-Y7 -> -5927.133467
B8: FIT | C8: 172027.77 | D8: 2241.81 | E8: =D8/C8 -> 0.01303167506 | M8: =+M5+M6+M7 -> 15429984.05 | N8: =+N5+N6+N7 -> 20956473.44 | P8: RPPTOUMID | Q8: =E23 -> 0.09500047293 | R8: =E43 -> 0.01986668366 | S8: =S7 -> 0.08170000076 | T8: 0.1015666844 | U8: -0.006566211501 | V8: 1517595.406 | W8: 144172.2813 | X8: 30149.58787 | Y8: 123987.5459 | Z8: -9964.852411
B9: microFIT | C9: 10032.37 | D9: 142.75 | E9: =D9/C9 -> 0.01422894092 | P9: RPPTOUOFF | Q9: =E24 -> 0.06500014009 | R9: =R8 -> 0.01986668366 | S9: 0.08170000076 | T9: 0.1015666844 | U9: -0.03656654434 | V9: 5483436.438 | W9: 356424.1367 | X9: 108937.6971 | Y9: 447996.7612 | Z9: -200510.3217
B10: WHOLESALE | C10: 20774413.3 | D10: 395293.48 | E10: =D10/C10 -> 0.01902790102 | K10: Estimated Retail Volume Revenue Data (TLF Included) | L10: RPP/non-RPP Ratios | M10: GA Volumes | N10: Energy Volumes | P10: RPPTOUON | Q10: 0.1320003925 | R10: =R9 -> 0.01986668366 | S10: 0.08170000076 | T10: 0.1015666844 | U10: 0.03043370811 | V10: 1607935.071 | W10: 212248.0605 | X10: 31944.33741 | Y10: 131368.2965 | Z10: 48935.42661
A11: Total Wholesale Electricity | B11: Grand Total | C11: 20956473.44 | D11: 397678.04 | K11: Estimated Retail Revenue Data (Net of Retail Billed/Unbilled) | M11: =+M15 -> 15429984.05 | N11: =+N15 -> 20956473.44 | P11: RPPULOMID | Q11: 0 | R11: 0 | S11: 0 | T11: 0 | U11: 0 | V11: 0 | W11: 0 | X11: 0 | Y11: 0 | Z11: 0
P12: RPPULOOFF | Q12: 0 | R12: 0 | S12: 0 | T12: 0 | U12: 0 | V12: 0 | W12: 0 | X12: 0 | Y12: 0 | Z12: 0
K13: Estimated RPP Sales Quantities | L13: =SUM(C20:C25)/(C30-B64) -> 0.6336266656 | M13: =M8*L13 -> 9776849.344 | N13: =M13 -> 9776849.344 | P13: RPPULOON | Q13: 0 | R13: 0 | S13: 0 | T13: 0 | U13: 0 | V13: 0 | W13: 0 | X13: 0 | Y13: 0 | Z13: 0
A14: RPP Revenue Volume and Price Data | K14: Estimated non-RPP Sales Quantities | L14: =1-L13 -> 0.3663733344 | M14: =M8*L14 -> 5653134.706 | N14: =N8-N13 -> 11179624.1 | P14: RPPULOOVN | Q14: 0 | R14: 0 | S14: 0 | T14: 0 | U14: 0 | V14: 0 | W14: 0 | X14: 0 | Y14: 0 | Z14: 0
B15: bill_year | C15: 2018 | K15: Estimated Retail Revenue kWh Volumes | L15: =+L13+L14 -> 1 | M15: =+M13+M14 -> 15429984.05 | N15: =+N13+N14 -> 20956473.44 | V15: =SUM(V6:V14) -> 9776849.344 | W15: =SUM(W6:W14) -> 809696.5338 | X15: =SUM(X6:X14) -> 193719.9113 | Y15: =SUM(Y6:Y14) -> 798768.5989 | Z15: =SUM(Z6:Z14) -> -182791.9765
B16: bill_month | C16: 2 | Z16: =W15-X15-Y15-Z15 -> 0
K17: Estimated RPP Revenue Volume and Price Data | L17: Actual % | M17: kWh Volumes
B18: Row Labels | C18: usagebilled | D18: amountbilled | E18: Rate | K18: RPPT1 | L18: =C20/SUM($C$20:$C$25) -> 0.06496875953 | M18: =$M$13*L18 -> 635189.774
B19: RPPTIER | K19: RPPT2 | L19: =C21/SUM($C$20:$C$25) -> 0.05448510412 | M19: =$M$13*L19 -> 532692.6545
B20: RPPT1 | C20: 648608.3005 | D20: 49942.87996 | E20: =D20/C20 -> 0.07700006294 | K20: RPPTOUMID | L20: =C23/SUM($C$20:$C$25) -> 0.1552233601 | M20: 1517595.406
B21: RPPT2 | C21: 543945.9064 | D21: 48955.19669 | E21: =D21/C21 -> 0.09000011971 | K21: RPPTOUOFF | L21: =C24/SUM($C$20:$C$25) -> 0.5608592549 | M21: 5483436.438
B22: RPPTOU | K22: RPPTOUON | L22: 0.1644635214 | M22: 1607935.071
B23: RPPTOUMID | C23: 1549654.95 | D23: 147217.9531 | E23: 0.09500047293 | K23: RPPULOMID | L23: 0 | M23: 0
B24: RPPTOUOFF | C24: 5599275.264 | D24: 363953.6765 | E24: 0.06500014009 | K24: RPPULOOFF | L24: 0 | M24: 0
B25: RPPTOUON | C25: 1641903.06 | D25: 216731.8485 | E25: 0.1320003925 | K25: RPPULOON | L25: 0 | M25: 0
B26: RETAIL | K26: RPPULOOVN | L26: 0 | M26: 0
B27: NSLS | C27: 4206432.014 | D27: 79803.17329 | E27: 0.01897170168 | L27: =SUM(L18:L26) -> 1 | M27: =SUM(M18:M26) -> 9776849.344
B28: INTERVAL
B29: HOEP | C29: 7092615.821 | D29: 132887.2222 | E29: 0.01873599608
B30: Grand Total | C30: 21282435.32 | D30: 1039491.95
K31: Global Adjustment | L31: per kWh
C32: =C30/C11-1 -> 0.01555423324 | K32: Class B - GA actual8 | L32: =B69/100 -> 0.08170000076 | N32: GA Posted Price
K33: Class B - GA actual IESO billed | L33: =+M33/M8 -> 0.08104776168 | M33: =B77 -> 1250565.67 | N33: GA Billed by IESO CT 148
A37: RPP COP Volume and Price Data
B38: bill_year | C38: 2018
B39: bill_month | C39: 2
B41: Row Labels | C41: usagebilled | D41: amountbilled | E41: Rate
B42: RPPTIERED | C42: 1184103.747 | D42: 23003.41825 | E42: =D42/C42 -> 0.01942686045
B43: RPPTOU | C43: 8782777.027 | D43: 174484.6529 | E43: 0.01986668366
B44: Grand Total | C44: 9966880.774 | D44: 197488.0711
C46: =SUM(C20:C25)-C44 -> 16506.70672
C47: =C46/C44 -> 0.001656155732
A60: Year | B60: 2018
A62: Class A | B62: Value
A63: kWh
A64: 201802 | B64: 5526489.39
A67: ga_actual | B67: year
A68: month | B68: 2018
A69: 201802 | B69: 8.170000076
A73: chargetype | B73: 148
A75: Sum of chargeamount | B75: year
A76: month | B76: 2018
A77: 201802 | B77: 1250565.67
A80: Posted | B80: -839432.69

Sheet I5 Input Rev 02 Init
A1: Reverse IESO Posted
A5: =Admin!B11 -> 201802
A6: RPP Revenue Prices | B6: kWh Volumes | C6: $ RPP Settlement
A7: RPPTiered_1 | B7: 666732.8 | C7: 16972.26
A8: RPPTiered_2 | B8: 657874.82 | C8: 8194.23
A9: RPPTOU_MID | B9: 1893513.87 | C9: 20571.31
A10: RPPTOU_OFF | B10: 6936612.3 | C10: 283490.72
A11: RPPTOU_ON | B11: 1977401.08 | C11: -51676.46
A12: Grand Total | B12: 12132134.87 | C12: 277552.06

Sheet I6 Input 03 Trueup Sett
A1: Date: | B1: =Admin!B8+2 -> 201803 | C1: Trueup | K1: ="Data for 1st True up of RPP Settlement based on Actual IESO Invoice" -> Data for 1st True up of RPP Settlement based on Actual IESO Invoice | P1: For Reconciliation
A3: Wholesale Electricty | B3: Year | C3: 2018 | E3: Rate | P3: Actual RPP Revenue and GA
B4: dateref | C4: 201803 | K4: Wholesale Volume data per IESO Power Bill: | L4: GA RPP/non-RPP Ratios | M4: GA Volumes | N4: Energy Volumes | P4: =B1 -> 201803
K5: AQEW | M5: =C10 -> 21629301.29 | N5: =+M5 -> 21629301.29 | P5: RPP Revenue Prices | Q5: RPP Rate | R5: Estimated RPP Energy Price | S5: GA actual IESO billed | T5: Total Commodity | U5: Difference | V5: kWh Volumes | W5: $ Estimated RPP Revenue | X5: $ Estimated RPP Energy | Y5: $ Estimated GA | Z5: $ Estimated RPP Settlement
B6: Wholesale | K6: Embedded Generation | M6: =SUM(C8:C9) -> 572239.97 | N6: =+M6 -> 572239.97 | P6: RPPT1 | Q6: =E20 -> 0.07699975031 | R6: =E42 -> 0.01982567108 | S6: =L32 -> 0.09479999542 | T6: =R6+S6 -> 0.1146256665 | U6: =+Q6-T6 -> -0.03762591619 | V6: =M18 -> 684911.9738 | W6: =Q6*V6 -> 52738.05097 | X6: =R6*V6 -> 13578.83951 | Y6: =+V6*S6 -> 64929.65198 | Z6: =W6-X6-Y6 -> -25770.44052
A7: FIT/mFIT | B7: Source | C7: kWh | D7: Total Cost | K7: Class A customer Volumes for GA (TLF included) | M7: =-B64 -> -6248610.02 | P7: RPPT2 | Q7: =E21 -> 0.09000020781 | R7: =R6 -> 0.01982567108 | S7: =S6 -> 0.09479999542 | T7: =R7+S7 -> 0.1146256665 | U7: =+Q7-T7 -> -0.02462545869 | V7: =M19 -> 550045.6796 | W7: =Q7*V7 -> 49504.22547 | X7: =R7*V7 -> 10905.02472 | Y7: =+V7*S7 -> 52144.32791 | Z7: =W7-X7-Y7 -> -13545.12716
B8: FIT | C8: 547676.27 | D8: 7459.94 | E8: =D8/C8 -> 0.01362107582 | M8: =+M5+M6+M7 -> 15952931.24 | N8: =+N5+N6+N7 -> 22201541.26 | P8: RPPTOUMID | Q8: =E23 -> 0.09500039133 | R8: =E43 -> 0.01936004256 | S8: =S7 -> 0.09479999542 | T8: 0.114160038 | U8: -0.01915964665 | V8: 1617805.328 | W8: 153692.1393 | X8: 31320.78001 | Y8: 153367.9377 | Z8: -30996.57845
B9: microFIT | C9: 24563.7 | D9: 327.89 | E9: =D9/C9 -> 0.01334855905 | P9: RPPTOUOFF | Q9: =E24 -> 0.06500011322 | R9: =R8 -> 0.01936004256 | S9: 0.09479999542 | T9: 0.114160038 | U9: -0.04915992476 | V9: 5589135.476 | W9: 363294.4388 | X9: 108205.9007 | Y9: 529850.0176 | Z9: -274761.4795
B10: WHOLESALE | C10: 21629301.29 | D10: 375756.1 | E10: =D10/C10 -> 0.01737254916 | K10: Estimated Retail Volume Revenue Data (TLF Included) | L10: RPP/non-RPP Ratios | M10: GA Volumes | N10: Energy Volumes | P10: RPPTOUON | Q10: 0.132000024 | R10: =R9 -> 0.01936004256 | S10: 0.09479999542 | T10: 0.114160038 | U10: 0.01783998603 | V10: 1692077.833 | W10: 223354.3146 | X10: 32758.69886 | Y10: 160408.9708 | Z10: 30186.64489
A11: Total Wholesale Electricity | B11: Grand Total | C11: 22201541.26 | D11: 383543.93 | K11: Estimated Retail Revenue Data (Net of Retail Billed/Unbilled) | M11: =+M15 -> 15952931.24 | N11: =+N15 -> 22201541.26 | P11: RPPULOMID | Q11: 0 | R11: 0 | S11: 0 | T11: 0 | U11: 0 | V11: 0 | W11: 0 | X11: 0 | Y11: 0 | Z11: 0
P12: RPPULOOFF | Q12: 0 | R12: 0 | S12: 0 | T12: 0 | U12: 0 | V12: 0 | W12: 0 | X12: 0 | Y12: 0 | Z12: 0
K13: Estimated RPP Sales Quantities | L13: =SUM(C20:C25)/(C30-B64) -> 0.6352422723 | M13: =M8*L13 -> 10133976.29 | N13: =M13 -> 10133976.29 | P13: RPPULOON | Q13: 0 | R13: 0 | S13: 0 | T13: 0 | U13: 0 | V13: 0 | W13: 0 | X13: 0 | Y13: 0 | Z13: 0
A14: RPP Revenue Volume and Price Data | K14: Estimated non-RPP Sales Quantities | L14: =1-L13 -> 0.3647577277 | M14: =M8*L14 -> 5818954.949 | N14: =N8-N13 -> 12067564.97 | P14: RPPULOOVN | Q14: 0 | R14: 0 | S14: 0 | T14: 0 | U14: 0 | V14: 0 | W14: 0 | X14: 0 | Y14: 0 | Z14: 0
B15: bill_year | C15: 2018 | K15: Estimated Retail Revenue kWh Volumes | L15: =+L13+L14 -> 1 | M15: =+M13+M14 -> 15952931.24 | N15: =+N13+N14 -> 22201541.26 | V15: =SUM(V6:V14) -> 10133976.29 | W15: =SUM(W6:W14) -> 842583.1691 | X15: =SUM(X6:X14) -> 196769.2438 | Y15: =SUM(Y6:Y14) -> 960700.906 | Z15: =SUM(Z6:Z14) -> -314886.9807
B16: bill_month | C16: 3 | Z16: =W15-X15-Y15-Z15 -> 0
K17: Estimated RPP Revenue Volume and Price Data | L17: Actual % | M17: kWh Volumes
B18: Row Labels | C18: usagebilled | D18: amountbilled | E18: Rate | K18: RPPT1 | L18: =C20/SUM($C$20:$C$25) -> 0.06758570912 | M18: =$M$13*L18 -> 684911.9738
B19: RPPTIER | K19: RPPT2 | L19: =C21/SUM($C$20:$C$25) -> 0.05427737976 | M19: =$M$13*L19 -> 550045.6796
B20: RPPT1 | C20: 691604.5842 | D20: 53253.3803 | E20: =D20/C20 -> 0.07699975031 | K20: RPPTOUMID | L20: =C23/SUM($C$20:$C$25) -> 0.1596417124 | M20: 1617805.328
B21: RPPT2 | C21: 555420.4454 | D21: 49987.95551 | E21: =D21/C21 -> 0.09000020781 | K21: RPPTOUOFF | L21: =C24/SUM($C$20:$C$25) -> 0.5515244279 | M21: 5589135.476
B22: RPPTOU | K22: RPPTOUON | L22: 0.1669707708 | M22: 1692077.833
B23: RPPTOUMID | C23: 1633613.697 | D23: 155193.9405 | E23: 0.09500039133 | K23: RPPULOMID | L23: 0 | M23: 0
B24: RPPTOUOFF | C24: 5643749.657 | D24: 366844.3667 | E24: 0.06500011322 | K24: RPPULOOFF | L24: 0 | M24: 0
B25: RPPTOUON | C25: 1708611.954 | D25: 225536.819 | E25: 0.132000024 | K25: RPPULOON | L25: 0 | M25: 0
B26: RETAIL | K26: RPPULOOVN | L26: 0 | M26: 0
B27: NSLS | C27: 4296691.643 | D27: 79811.37354 | E27: 0.01857507593 | L27: =SUM(L18:L26) -> 1 | M27: =SUM(M18:M26) -> 10133976.29
B28: INTERVAL
B29: HOEP | C29: 7827733.185 | D29: 140804.7877 | E29: 0.01798793909
B30: Grand Total | C30: 22357425.17 | D30: 1071432.623
K31: Global Adjustment | L31: per kWh
C32: =C30/C11-1 -> 0.007021310122 | K32: Class B - GA actual8 | L32: =B69/100 -> 0.09479999542 | N32: GA Posted Price
K33: Class B - GA actual IESO billed | L33: =+M33/M8 -> 0.0948123807 | M33: =B76 -> 1512535.39 | N33: GA Billed by IESO CT 148
A37: RPP COP Volume and Price Data
B38: bill_year | C38: 2018
B39: bill_month | C39: 3
B41: Row Labels | C41: usagebilled | D41: amountbilled | E41: Rate
B42: RPPTIERED | C42: 1242727.764 | D42: 24637.91188 | E42: =D42/C42 -> 0.01982567108
B43: RPPTOU | C43: 8986553.538 | D43: 173980.059 | E43: 0.01936004256
B44: Grand Total | C44: 10229281.3 | D44: 198617.9708
C46: =SUM(C20:C25)-C44 -> 3719.036059
C47: =C46/C44 -> 0.0003635676788
A60: Year | B60: 2018
A62: Class A | B62: Value
A63: kWh
A64: 201803 | B64: 6248610.02
A67: ga_actual | B67: year
A68: month | B68: 2018
A69: 201803 | B69: 9.479999542
A72: chargetype | B72: 148
A74: Sum of chargeamount | B74: year
A75: month | B75: 2018
A76: 201803 | B76: 1512535.39

Sheet I7 Input Rev 03 Init
A1: Reverse IESO Posted
A5: =Admin!B14 -> 201803
A6: RPP Revenue Prices | B6: kWh Volumes | C6: $ RPP Settlement
A7: RPPTiered_1 | B7: 766055.29 | C7: 17644.87
A8: RPPTiered_2 | B8: 621577.55 | C8: 6237.28
A9: RPPTOU_MID | B9: 1654855.73 | C9: 7136.3
A10: RPPTOU_OFF | B10: 5980050.33 | C10: 205216.53
A11: RPPTOU_ON | B11: 1756532.65 | C11: -57425.38
A12: Grand Total | B12: 10779071.55 | C12: 178809.6

Sheet I8 Input 04 Trueup Sett
A1: Date: | B1: =Admin!B8+3 -> 201804 | C1: Trueup | K1: ="Data for 1st True up of RPP Settlement based on Actual IESO Invoice" -> Data for 1st True up of RPP Settlement based on Actual IESO Invoice | P1: For Reconciliation
A3: Wholesale Electricty | B3: Year | C3: 2018 | E3: Rate | P3: Actual RPP Revenue and GA
B4: dateref | C4: 201804 | K4: Wholesale Volume data per IESO Power Bill: | L4: GA RPP/non-RPP Ratios | M4: GA Volumes | N4: Energy Volumes | P4: =B1 -> 201804
K5: AQEW | M5: =C10 -> 20399707.71 | N5: =+M5 -> 20399707.71 | P5: RPP Revenue Prices | Q5: RPP Rate | R5: Estimated RPP Energy Price | S5: GA actual IESO billed | T5: Total Commodity | U5: Difference | V5: kWh Volumes | W5: $ Estimated RPP Revenue | X5: $ Estimated RPP Energy | Y5: $ Estimated GA | Z5: $ Estimated RPP Settlement
B6: Wholesale | K6: Embedded Generation | M6: =SUM(C8:C9) -> 581328.89 | N6: =+M6 -> 581328.89 | P6: RPPT1 | Q6: =E20 -> 0.07700000372 | R6: =E42 -> 0.02829355498 | S6: =L32 -> 0.09960000038 | T6: =R6+S6 -> 0.1278935554 | U6: =+Q6-T6 -> -0.05089355165 | V6: =M18 -> 576541.3368 | W6: =Q6*V6 -> 44393.68508 | X6: =R6*V6 -> 16312.40401 | Y6: =+V6*S6 -> 57423.51737 | Z6: =W6-X6-Y6 -> -29342.2363
A7: FIT/mFIT | B7: Source | C7: kWh | D7: Total Cost | K7: Class A customer Volumes for GA (TLF included) | M7: =-B64 -> -6270566.87 | P7: RPPT2 | Q7: =E21 -> 0.08989577659 | R7: =R6 -> 0.02829355498 | S7: =S6 -> 0.09960000038 | T7: =R7+S7 -> 0.1278935554 | U7: =+Q7-T7 -> -0.03799777878 | V7: =M19 -> 418252.166 | W7: =Q7*V7 -> 37599.10327 | X7: =R7*V7 -> 11833.84066 | Y7: =+V7*S7 -> 41657.91589 | Z7: =W7-X7-Y7 -> -15892.65328
B8: FIT | C8: 557324.26 | D8: 15187.1 | E8: =D8/C8 -> 0.02725002497 | M8: =+M5+M6+M7 -> 14710469.73 | N8: =+N5+N6+N7 -> 20981036.6 | P8: RPPTOUMID | Q8: =E23 -> 0.09487679417 | R8: =E43 -> 0.02553844042 | S8: =S7 -> 0.09960000038 | T8: 0.1251384408 | U8: -0.03026164663 | V8: 1598049.154 | W8: 151617.7807 | X8: 40811.68311 | Y8: 159165.6964 | Z8: -48359.5988
B9: microFIT | C9: 24004.63 | D9: 653.2 | E9: =D9/C9 -> 0.02721141713 | P9: RPPTOUOFF | Q9: =E24 -> 0.06500019589 | R9: =R8 -> 0.02553844042 | S9: 0.09960000038 | T9: 0.1251384408 | U9: -0.06013824491 | V9: 5429395.933 | W9: 352911.7992 | X9: 138658.3045 | Y9: 540767.837 | Z9: -326514.3424
B10: WHOLESALE | C10: 20399707.71 | D10: 608147.27 | E10: =D10/C10 -> 0.02981156782 | K10: Estimated Retail Volume Revenue Data (TLF Included) | L10: RPP/non-RPP Ratios | M10: GA Volumes | N10: Energy Volumes | P10: RPPTOUON | Q10: 0.1320004696 | R10: =R9 -> 0.02553844042 | S10: 0.09960000038 | T10: 0.1251384408 | U10: 0.006862028805 | V10: 1661968.113 | W10: 219380.5714 | X10: 42444.07364 | Y10: 165532.0247 | Z10: 11404.47307
A11: Total Wholesale Electricity | B11: Grand Total | C11: 20981036.6 | D11: 623987.57 | K11: Estimated Retail Revenue Data (Net of Retail Billed/Unbilled) | M11: =+M15 -> 14710469.73 | N11: =+N15 -> 20981036.6 | P11: RPPULOMID | Q11: 0 | R11: 0 | S11: 0 | T11: 0 | U11: 0 | V11: 0 | W11: 0 | X11: 0 | Y11: 0 | Z11: 0
P12: RPPULOOFF | Q12: 0 | R12: 0 | S12: 0 | T12: 0 | U12: 0 | V12: 0 | W12: 0 | X12: 0 | Y12: 0 | Z12: 0
K13: Estimated RPP Sales Quantities | L13: =SUM(C20:C25)/(C30-B64) -> 0.6583206982 | M13: =M8*L13 -> 9684206.704 | N13: =M13 -> 9684206.704 | P13: RPPULOON | Q13: 0 | R13: 0 | S13: 0 | T13: 0 | U13: 0 | V13: 0 | W13: 0 | X13: 0 | Y13: 0 | Z13: 0
A14: RPP Revenue Volume and Price Data | K14: Estimated non-RPP Sales Quantities | L14: =1-L13 -> 0.3416793018 | M14: =M8*L14 -> 5026263.026 | N14: =N8-N13 -> 11296829.9 | P14: RPPULOOVN | Q14: 0 | R14: 0 | S14: 0 | T14: 0 | U14: 0 | V14: 0 | W14: 0 | X14: 0 | Y14: 0 | Z14: 0
B15: bill_year | C15: 2018 | K15: Estimated Retail Revenue kWh Volumes | L15: =+L13+L14 -> 1 | M15: =+M13+M14 -> 14710469.73 | N15: =+N13+N14 -> 20981036.6 | V15: =SUM(V6:V14) -> 9684206.704 | W15: =SUM(W6:W14) -> 805902.9397 | X15: =SUM(X6:X14) -> 250060.306 | Y15: =SUM(Y6:Y14) -> 964546.9914 | Z15: =SUM(Z6:Z14) -> -408704.3577
B16: bill_month | C16: 4 | Z16: =W15-X15-Y15-Z15 -> 0
K17: Estimated RPP Revenue Volume and Price Data | L17: Actual % | M17: kWh Volumes
B18: Row Labels | C18: usagebilled | D18: amountbilled | E18: Rate | K18: RPPT1 | L18: =C20/SUM($C$20:$C$25) -> 0.05953418328 | M18: =$M$13*L18 -> 576541.3368
B19: RPPTIER | K19: RPPT2 | L19: =C21/SUM($C$20:$C$25) -> 0.0431890994 | M19: =$M$13*L19 -> 418252.166
B20: RPPT1 | C20: 624190.9013 | D20: 48062.70172 | E20: =D20/C20 -> 0.07700000372 | K20: RPPTOUMID | L20: =C23/SUM($C$20:$C$25) -> 0.1650160104 | M20: 1598049.154
B21: RPPT2 | C21: 452819.5634 | D21: 40706.56631 | E21: =D21/C21 -> 0.08989577659 | K21: RPPTOUOFF | L21: =C24/SUM($C$20:$C$25) -> 0.5606443666 | M21: 5429395.933
B22: RPPTOU | K22: RPPTOUON | L22: 0.1716163403 | M22: 1661968.113
B23: RPPTOUMID | C23: 1730123.546 | D23: 164148.5755 | E23: 0.09487679417 | K23: RPPULOMID | L23: 0 | M23: 0
B24: RPPTOUOFF | C24: 5878120.656 | D24: 382078.9941 | E24: 0.06500019589 | K24: RPPULOOFF | L24: 0 | M24: 0
B25: RPPTOUON | C25: 1799325.232 | D25: 237511.7756 | E25: 0.1320004696 | K25: RPPULOON | L25: 0 | M25: 0
B26: RETAIL | K26: RPPULOOVN | L26: 0 | M26: 0
B27: NSLS | C27: 4156761.499 | D27: 118585.3143 | E27: 0.02852829405 | L27: =SUM(L18:L26) -> 1 | M27: =SUM(M18:M26) -> 9684206.704
B28: INTERVAL
B29: HOEP | C29: 7555475.288 | D29: 216150.2226 | E29: 0.02860842162
B30: Grand Total | C30: 22196816.68 | D30: 1207244.15
K31: Global Adjustment | L31: per kWh
C32: =C30/C11-1 -> 0.05794661662 | K32: Class B - GA actual8 | L32: =B69/100 -> 0.09960000038 | N32: GA Posted Price
K33: Class B - GA actual IESO billed | L33: =+M33/M8 -> 0.114449469 | M33: =B76 -> 1683605.45 | N33: GA Billed by IESO CT 148
A37: RPP COP Volume and Price Data
B38: bill_year | C38: 2018
B39: bill_month | C39: 4
B41: Row Labels | C41: usagebilled | D41: amountbilled | E41: Rate
B42: RPPTIERED | C42: 1071545.868 | D42: 30317.84193 | E42: =D42/C42 -> 0.02829355498
B43: RPPTOU | C43: 8049438.947 | D43: 205570.1169 | E43: 0.02553844042
B44: Grand Total | C44: 9120984.815 | D44: 235887.9589
C46: =SUM(C20:C25)-C44 -> 1363595.083
C47: =C46/C44 -> 0.149500861
A60: Year | B60: 2018
A62: Class A | B62: Value
A63: kWh
A64: 201804 | B64: 6270566.87
A67: ga_actual | B67: year
A68: month | B68: 2018
A69: 201804 | B69: 9.960000038
A72: chargetype | B72: 148
A74: Sum of chargeamount | B74: year
A75: month | B75: 2018
A76: 201804 | B76: 1683605.45

Sheet I9 Input Rev 04 Init
A1: Reverse IESO Posted
A5: =Admin!B17 -> 201804
A6: RPP Revenue Prices | B6: kWh Volumes | C6: $ RPP Settlement
A7: RPPTiered_1 | B7: 583942.98 | C7: 21137.03
A8: RPPTiered_2 | B8: 473070.77 | C8: 10973.67
A9: RPPTOU_MID | B9: 1518985.33 | C9: 25375.97
A10: RPPTOU_OFF | B10: 5281865.16 | C10: 246868.96
A11: RPPTOU_ON | B11: 1589133.78 | C11: -32230.35
A12: Grand Total | B12: 9446998.02 | C12: 272125.28

Sheet I10 Input 05 Trueup Sett
A1: Date: | B1: =Admin!B8+4 -> 201805 | C1: Trueup | K1: ="Data for 1st True up of RPP Settlement based on Actual IESO Invoice" -> Data for 1st True up of RPP Settlement based on Actual IESO Invoice | P1: For Reconciliation
A3: Wholesale Electricty | B3: Year | C3: 2018 | E3: Rate | P3: Actual RPP Revenue and GA
B4: dateref | C4: 201805 | K4: Wholesale Volume data per IESO Power Bill: | L4: GA RPP/non-RPP Ratios | M4: GA Volumes | N4: Energy Volumes | P4: =B1 -> 201805
K5: AQEW | M5: =C10 -> 19312191.88 | N5: =+M5 -> 19312191.88 | P5: RPP Revenue Prices | Q5: RPP Rate | R5: Estimated RPP Energy Price | S5: GA actual IESO billed | T5: Total Commodity | U5: Difference | V5: kWh Volumes | W5: $ Estimated RPP Revenue | X5: $ Estimated RPP Energy | Y5: $ Estimated GA | Z5: $ Estimated RPP Settlement
B6: Wholesale | K6: Embedded Generation | M6: =SUM(C8:C9) -> 817964.32 | N6: =+M6 -> 817964.32 | P6: RPPT1 | Q6: =E20 -> 0.07699975245 | R6: =E42 -> 0.00987824675 | S6: =L32 -> 0.1078999996 | T6: =R6+S6 -> 0.1177782464 | U6: =+Q6-T6 -> -0.04077849392 | V6: =M18 -> 505090.5148 | W6: =Q6*V6 -> 38891.84461 | X6: =R6*V6 -> 4989.408737 | Y6: =+V6*S6 -> 54499.26636 | Z6: =W6-X6-Y6 -> -20596.83049
A7: FIT/mFIT | B7: Source | C7: kWh | D7: Total Cost | K7: Class A customer Volumes for GA (TLF included) | M7: =-B64 -> -6707329.89 | P7: RPPT2 | Q7: =E21 -> 0.08911584867 | R7: =R6 -> 0.00987824675 | S7: =S6 -> 0.1078999996 | T7: =R7+S7 -> 0.1177782464 | U7: =+Q7-T7 -> -0.0286623977 | V7: =M19 -> 364725.9425 | W7: =Q7*V7 -> 32502.8619 | X7: =R7*V7 -> 3602.852856 | Y7: =+V7*S7 -> 39353.92906 | Z7: =W7-X7-Y7 -> -10453.92002
B8: FIT | C8: 773315.28 | D8: 11774.86 | E8: =D8/C8 -> 0.01522646753 | M8: =+M5+M6+M7 -> 13422826.31 | N8: =+N5+N6+N7 -> 20130156.2 | P8: RPPTOUMID | Q8: =E23 -> 0.09414748489 | R8: =E43 -> 0.01209063841 | S8: =S7 -> 0.1078999996 | T8: 0.119990638 | U8: -0.02584315314 | V8: 1345498.146 | W8: 126675.2664 | X8: 16267.93157 | Y8: 145179.2494 | Z8: -34771.91463
B9: microFIT | C9: 44649.04 | D9: 697.87 | E9: =D9/C9 -> 0.01563012329 | P9: RPPTOUOFF | Q9: =E24 -> 0.06500023313 | R9: =R8 -> 0.01209063841 | S9: 0.1078999996 | T9: 0.119990638 | U9: -0.0549904049 | V9: 4501951.801 | W9: 292627.9166 | X9: 54431.47138 | Y9: 485760.5976 | Z9: -247564.1524
B10: WHOLESALE | C10: 19312191.88 | D10: 251072.58 | E10: =D10/C10 -> 0.01300072936 | K10: Estimated Retail Volume Revenue Data (TLF Included) | L10: RPP/non-RPP Ratios | M10: GA Volumes | N10: Energy Volumes | P10: RPPTOUON | Q10: 0.1320006042 | R10: =R9 -> 0.01209063841 | S10: 0.1078999996 | T10: 0.119990638 | U10: 0.01200996613 | V10: 1355959.98 | W10: 178987.5366 | X10: 16394.42183 | Y10: 146308.0814 | Z10: 16285.03344
A11: Total Wholesale Electricity | B11: Grand Total | C11: 20130156.2 | D11: 263545.31 | K11: Estimated Retail Revenue Data (Net of Retail Billed/Unbilled) | M11: =+M15 -> 13422826.31 | N11: =+N15 -> 20130156.2 | P11: RPPULOMID | Q11: 0 | R11: 0 | S11: 0 | T11: 0 | U11: 0 | V11: 0 | W11: 0 | X11: 0 | Y11: 0 | Z11: 0
P12: RPPULOOFF | Q12: 0 | R12: 0 | S12: 0 | T12: 0 | U12: 0 | V12: 0 | W12: 0 | X12: 0 | Y12: 0 | Z12: 0
K13: Estimated RPP Sales Quantities | L13: =SUM(C20:C25)/(C30-B64) -> 0.6014550288 | M13: =M8*L13 -> 8073226.385 | N13: =M13 -> 8073226.385 | P13: RPPULOON | Q13: 0 | R13: 0 | S13: 0 | T13: 0 | U13: 0 | V13: 0 | W13: 0 | X13: 0 | Y13: 0 | Z13: 0
A14: RPP Revenue Volume and Price Data | K14: Estimated non-RPP Sales Quantities | L14: =1-L13 -> 0.3985449712 | M14: =M8*L14 -> 5349599.925 | N14: =N8-N13 -> 12056929.82 | P14: RPPULOOVN | Q14: 0 | R14: 0 | S14: 0 | T14: 0 | U14: 0 | V14: 0 | W14: 0 | X14: 0 | Y14: 0 | Z14: 0
B15: bill_year | C15: 2018 | K15: Estimated Retail Revenue kWh Volumes | L15: =+L13+L14 -> 1 | M15: =+M13+M14 -> 13422826.31 | N15: =+N13+N14 -> 20130156.2 | V15: =SUM(V6:V14) -> 8073226.385 | W15: =SUM(W6:W14) -> 669685.4261 | X15: =SUM(X6:X14) -> 95686.08637 | Y15: =SUM(Y6:Y14) -> 871101.1238 | Z15: =SUM(Z6:Z14) -> -297101.7841
B16: bill_month | C16: 5 | Z16: =W15-X15-Y15-Z15 -> 0
K17: Estimated RPP Revenue Volume and Price Data | L17: Actual % | M17: kWh Volumes
B18: Row Labels | C18: usagebilled | D18: amountbilled | E18: Rate | K18: RPPT1 | L18: =C20/SUM($C$20:$C$25) -> 0.06256365061 | M18: =$M$13*L18 -> 505090.5148
B19: RPPTIER | K19: RPPT2 | L19: =C21/SUM($C$20:$C$25) -> 0.04517722223 | M19: =$M$13*L19 -> 364725.9425
B20: RPPT1 | C20: 509184.8114 | D20: 39207.10443 | E20: =D20/C20 -> 0.07699975245 | K20: RPPTOUMID | L20: =C23/SUM($C$20:$C$25) -> 0.1666617634 | M20: 1345498.146
B21: RPPT2 | C21: 367682.4347 | D21: 32766.33221 | E21: =D21/C21 -> 0.08911584867 | K21: RPPTOUOFF | L21: =C24/SUM($C$20:$C$25) -> 0.5576397325 | M21: 4501951.801
B22: RPPTOU | K22: RPPTOUON | L22: 0.1679576313 | M22: 1355959.98
B23: RPPTOUMID | C23: 1356404.841 | D23: 127702.1043 | E23: 0.09414748489 | K23: RPPULOMID | L23: 0 | M23: 0
B24: RPPTOUOFF | C24: 4538444.916 | D24: 294999.9776 | E24: 0.06500023313 | K24: RPPULOOFF | L24: 0 | M24: 0
B25: RPPTOUON | C25: 1366951.48 | D25: 180438.4213 | E25: 0.1320006042 | K25: RPPULOON | L25: 0 | M25: 0
B26: RETAIL | K26: RPPULOOVN | L26: 0 | M26: 0
B27: NSLS | C27: 4240792.256 | D27: 50602.90802 | E27: 0.01193241851 | L27: =SUM(L18:L26) -> 1 | M27: =SUM(M18:M26) -> 8073226.385
B28: INTERVAL
B29: HOEP | C29: 7859501.765 | D29: 90844.31038 | E29: 0.01155853298
B30: Grand Total | C30: 20238962.5 | D30: 816561.1582
K31: Global Adjustment | L31: per kWh
C32: =C30/C11-1 -> 0.005405139599 | K32: Class B - GA actual8 | L32: =B69/100 -> 0.1078999996 | N32: GA Posted Price
K33: Class B - GA actual IESO billed | L33: =+M33/M8 -> 0.1078883602 | M33: =B76 -> 1448166.72 | N33: GA Billed by IESO CT 148
A37: RPP COP Volume and Price Data
B38: bill_year | C38: 2018
B39: bill_month | C39: 5
B41: Row Labels | C41: usagebilled | D41: amountbilled | E41: Rate
B42: RPPTIERED | C42: 872104.8809 | D42: 8614.867205 | E42: =D42/C42 -> 0.00987824675
B43: RPPTOU | C43: 7260909.783 | D43: 87789.03475 | E43: 0.01209063841
B44: Grand Total | C44: 8133014.664 | D44: 96403.90195
C46: =SUM(C20:C25)-C44 -> 5653.819317
C47: =C46/C44 -> 0.0006951689564
A60: Year | B60: 2018
A62: Class A | B62: Value
A63: kWh
A64: 201805 | B64: 6707329.89
A67: ga_actual | B67: year
A68: month | B68: 2018
A69: 201805 | B69: 10.78999996
A72: chargetype | B72: 148
A74: Sum of chargeamount | B74: year
A75: month | B75: 2018
A76: 201805 | B76: 1448166.72

Sheet I11 Input Rev 05 Init
A1: Reverse IESO Posted
A5: =Admin!B20 -> 201805
A6: RPP Revenue Prices | B6: kWh Volumes | C6: $ RPP Settlement
A7: RPPTiered_1 | B7: 620715.79 | C7: 32763.32
A8: RPPTiered_2 | B8: 459455.81 | C8: 18278.46
A9: RPPTOU_MID | B9: 1530100.44 | C9: 49696.2
A10: RPPTOU_OFF | B10: 5138106.76 | C10: 320744.77
A11: RPPTOU_ON | B11: 1574886.12 | C11: -7203.69
A12: Grand Total | B12: 9323264.92 | C12: 414279.06

Sheet I12 Input 06 Trueup Sett
A1: Date: | B1: =Admin!B8+5 -> 201806 | C1: Trueup | K1: ="Data for 1st True up of RPP Settlement based on Actual IESO Invoice" -> Data for 1st True up of RPP Settlement based on Actual IESO Invoice | P1: For Reconciliation
A3: Wholesale Electricty | B3: Year | C3: 2018 | E3: Rate | P3: Actual RPP Revenue and GA
B4: dateref | C4: 201806 | K4: Wholesale Volume data per IESO Power Bill: | L4: GA RPP/non-RPP Ratios | M4: GA Volumes | N4: Energy Volumes | P4: =B1 -> 201806
K5: AQEW | M5: =C10 -> 19271102.23 | N5: =+M5 -> 19271102.23 | P5: RPP Revenue Prices | Q5: RPP Rate | R5: Estimated RPP Energy Price | S5: GA actual IESO billed | T5: Total Commodity | U5: Difference | V5: kWh Volumes | W5: $ Estimated RPP Revenue | X5: $ Estimated RPP Energy | Y5: $ Estimated GA | Z5: $ Estimated RPP Settlement
B6: Wholesale | K6: Embedded Generation | M6: =SUM(C8:C9) -> 793945.37 | N6: =+M6 -> 793945.37 | P6: RPPT1 | Q6: =E20 -> 0.07700014333 | R6: =E42 -> 0.01609560777 | S6: =L32 -> 0.1189999962 | T6: =R6+S6 -> 0.135095604 | U6: =+Q6-T6 -> -0.05809546062 | V6: =M18 -> 468240.8328 | W6: =Q6*V6 -> 36054.61124 | X6: =R6*V6 -> 7536.620785 | Y6: =+V6*S6 -> 55720.65732 | Z6: =W6-X6-Y6 -> -27202.66686
A7: FIT/mFIT | B7: Source | C7: kWh | D7: Total Cost | K7: Class A customer Volumes for GA (TLF included) | M7: =-B64 -> -6389807.3 | P7: RPPT2 | Q7: =E21 -> 0.08900021741 | R7: =R6 -> 0.01609560777 | S7: =S6 -> 0.1189999962 | T7: =R7+S7 -> 0.135095604 | U7: =+Q7-T7 -> -0.04609538654 | V7: =M19 -> 343560.1617 | W7: =Q7*V7 -> 30576.92909 | X7: =R7*V7 -> 5529.809607 | Y7: =+V7*S7 -> 40883.65794 | Z7: =W7-X7-Y7 -> -15836.53845
B8: FIT | C8: 748730.29 | D8: 15373.12 | E8: =D8/C8 -> 0.02053225334 | M8: =+M5+M6+M7 -> 13675240.3 | N8: =+N5+N6+N7 -> 20065047.6 | P8: RPPTOUMID | Q8: =E23 -> 0.09400040565 | R8: =E43 -> 0.01698008584 | S8: =S7 -> 0.1189999962 | T8: 0.135980082 | U8: -0.04197967637 | V8: 1381419.861 | W8: 129854.0273 | X8: 23456.62781 | Y8: 164388.9582 | Z8: -57991.55869
B9: microFIT | C9: 45215.08 | D9: 940.85 | E9: =D9/C9 -> 0.02080832324 | P9: RPPTOUOFF | Q9: =E24 -> 0.06500022001 | R9: =R8 -> 0.01698008584 | S9: 0.1189999962 | T9: 0.135980082 | U9: -0.07097986201 | V9: 4660906.665 | W9: 302959.9587 | X9: 79142.59525 | Y9: 554647.8754 | Z9: -330830.5119
B10: WHOLESALE | C10: 19271102.23 | D10: 347679.95 | E10: =D10/C10 -> 0.01804151864 | K10: Estimated Retail Volume Revenue Data (TLF Included) | L10: RPP/non-RPP Ratios | M10: GA Volumes | N10: Energy Volumes | P10: RPPTOUON | Q10: 0.1320005619 | R10: =R9 -> 0.01698008584 | S10: 0.1189999962 | T10: 0.135980082 | U10: -0.003979520135 | V10: 1450916.957 | W10: 191521.8536 | X10: 24636.69447 | Y10: 172659.1124 | Z10: -5773.953244
A11: Total Wholesale Electricity | B11: Grand Total | C11: 20065047.6 | D11: 363993.92 | K11: Estimated Retail Revenue Data (Net of Retail Billed/Unbilled) | M11: =+M15 -> 13675240.3 | N11: =+N15 -> 20065047.6 | P11: RPPULOMID | Q11: 0 | R11: 0 | S11: 0 | T11: 0 | U11: 0 | V11: 0 | W11: 0 | X11: 0 | Y11: 0 | Z11: 0
P12: RPPULOOFF | Q12: 0 | R12: 0 | S12: 0 | T12: 0 | U12: 0 | V12: 0 | W12: 0 | X12: 0 | Y12: 0 | Z12: 0
K13: Estimated RPP Sales Quantities | L13: =SUM(C20:C25)/(C30-B64) -> 0.607305195 | M13: =M8*L13 -> 8305044.477 | N13: =M13 -> 8305044.477 | P13: RPPULOON | Q13: 0 | R13: 0 | S13: 0 | T13: 0 | U13: 0 | V13: 0 | W13: 0 | X13: 0 | Y13: 0 | Z13: 0
A14: RPP Revenue Volume and Price Data | K14: Estimated non-RPP Sales Quantities | L14: =1-L13 -> 0.392694805 | M14: =M8*L14 -> 5370195.823 | N14: =N8-N13 -> 11760003.12 | P14: RPPULOOVN | Q14: 0 | R14: 0 | S14: 0 | T14: 0 | U14: 0 | V14: 0 | W14: 0 | X14: 0 | Y14: 0 | Z14: 0
B15: bill_year | C15: 2018 | K15: Estimated Retail Revenue kWh Volumes | L15: =+L13+L14 -> 1 | M15: =+M13+M14 -> 13675240.3 | N15: =+N13+N14 -> 20065047.6 | V15: =SUM(V6:V14) -> 8305044.477 | W15: =SUM(W6:W14) -> 690967.3798 | X15: =SUM(X6:X14) -> 140302.3479 | Y15: =SUM(Y6:Y14) -> 988300.2611 | Z15: =SUM(Z6:Z14) -> -437635.2292
B16: bill_month | C16: 6 | Z16: =W15-X15-Y15-Z15 -> 0
K17: Estimated RPP Revenue Volume and Price Data | L17: Actual % | M17: kWh Volumes
B18: Row Labels | C18: usagebilled | D18: amountbilled | E18: Rate | K18: RPPT1 | L18: =C20/SUM($C$20:$C$25) -> 0.05638029201 | M18: =$M$13*L18 -> 468240.8328
B19: RPPTIER | K19: RPPT2 | L19: =C21/SUM($C$20:$C$25) -> 0.04136764862 | M19: =$M$13*L19 -> 343560.1617
B20: RPPT1 | C20: 490669.7029 | D20: 37781.63745 | E20: =D20/C20 -> 0.07700014333 | K20: RPPTOUMID | L20: =C23/SUM($C$20:$C$25) -> 0.1663350346 | M20: 1381419.861
B21: RPPT2 | C21: 360016.7919 | D21: 32041.57275 | E21: =D21/C21 -> 0.08900021741 | K21: RPPTOUOFF | L21: =C24/SUM($C$20:$C$25) -> 0.5612139318 | M21: 4660906.665
B22: RPPTOU | K22: RPPTOUON | L22: 0.1747030929 | M22: 1450916.957
B23: RPPTOUMID | C23: 1447590.268 | D23: 136074.0724 | E23: 0.09400040565 | K23: RPPULOMID | L23: 0 | M23: 0
B24: RPPTOUOFF | C24: 4884165.43 | D24: 317471.8275 | E24: 0.06500022001 | K24: RPPULOOFF | L24: 0 | M24: 0
B25: RPPTOUON | C25: 1520416.295 | D25: 200695.8052 | E25: 0.1320005619 | K25: RPPULOON | L25: 0 | M25: 0
B26: RETAIL | K26: RPPULOOVN | L26: 0 | M26: 0
B27: NSLS | C27: 4145011.256 | D27: 68200.06259 | E27: 0.01645352892 | L27: =SUM(L18:L26) -> 1 | M27: =SUM(M18:M26) -> 8305044.477
B28: INTERVAL
B29: HOEP | C29: 7872225.785 | D29: 130833.3071 | E29: 0.01661960805
B30: Grand Total | C30: 20720095.53 | D30: 923098.285
K31: Global Adjustment | L31: per kWh
C32: =C30/C11-1 -> 0.03264621853 | K32: Class B - GA actual8 | L32: =B69/100 -> 0.1189999962 | N32: GA Posted Price
K33: Class B - GA actual IESO billed | L33: =+M33/M8 -> 0.118979842 | M33: =B76 -> 1627077.93 | N33: GA Billed by IESO CT 148
A37: RPP COP Volume and Price Data
B38: bill_year | C38: 2018
B39: bill_month | C39: 6
B41: Row Labels | C41: usagebilled | D41: amountbilled | E41: Rate
B42: RPPTIERED | C42: 843468.6955 | D42: 13576.14129 | E42: =D42/C42 -> 0.01609560777
B43: RPPTOU | C43: 7850995.784 | D43: 133310.5823 | E43: 0.01698008584
B44: Grand Total | C44: 8694464.48 | D44: 146886.7236
C46: =SUM(C20:C25)-C44 -> 8394.007909
C47: =C46/C44 -> 0.0009654427744
A60: Year | B60: 2018
A62: Class A | B62: Value
A63: kWh
A64: 201806 | B64: 6389807.3
A67: ga_actual | B67: year
A68: month | B68: 2018
A69: 201806 | B69: 11.89999962
A72: chargetype | B72: 148
A74: Sum of chargeamount | B74: year
A75: month | B75: 2018
A76: 201806 | B76: 1627077.93

Sheet I13 Input Rev 06 Init
A1: Reverse IESO Posted
A5: =Admin!B23 -> 201806
A6: RPP Revenue Prices | B6: kWh Volumes | C6: $ RPP Settlement
A7: RPPTiered_1 | B7: 527332.15 | C7: 20688.32
A8: RPPTiered_2 | B8: 380908.19 | C8: 10321.77
A9: RPPTOU_MID | B9: 1260173.95 | C9: 29045.17
A10: RPPTOU_OFF | B10: 4191810.38 | C10: 219009.01
A11: RPPTOU_ON | B11: 1275520.95 | C11: -18832.18
A12: Grand Total | B12: 7635745.62 | C12: 260232.09

Sheet I14 Input 07 Trueup Sett
A1: Date: | B1: =Admin!B8+6 -> 201807 | C1: Trueup | K1: ="Data for 1st True up of RPP Settlement based on Actual IESO Invoice" -> Data for 1st True up of RPP Settlement based on Actual IESO Invoice | P1: For Reconciliation
A3: Wholesale Electricty | B3: Year | C3: 2018 | E3: Rate | P3: Actual RPP Revenue and GA
B4: dateref | C4: 201807 | K4: Wholesale Volume data per IESO Power Bill: | L4: GA RPP/non-RPP Ratios | M4: GA Volumes | N4: Energy Volumes | P4: =B1 -> 201807
K5: AQEW | M5: =C10 -> 22315542.25 | N5: =+M5 -> 22315542.25 | P5: RPP Revenue Prices | Q5: RPP Rate | R5: Estimated RPP Energy Price | S5: GA actual IESO billed | T5: Total Commodity | U5: Difference | V5: kWh Volumes | W5: $ Estimated RPP Revenue | X5: $ Estimated RPP Energy | Y5: $ Estimated GA | Z5: $ Estimated RPP Settlement
B6: Wholesale | K6: Embedded Generation | M6: =SUM(C8:C9) -> 911331.83 | N6: =+M6 -> 911331.83 | P6: RPPT1 | Q6: =E20 -> 0.07699965038 | R6: =E42 -> 0.03064975929 | S6: =L32 -> 0.07739999771 | T6: =R6+S6 -> 0.108049757 | U6: =+Q6-T6 -> -0.03105010662 | V6: =M18 -> 542696.1739 | W6: =Q6*V6 -> 41787.41565 | X6: =R6*V6 -> 16633.50709 | Y6: =+V6*S6 -> 42004.68261 | Z6: =W6-X6-Y6 -> -16850.77406
A7: FIT/mFIT | B7: Source | C7: kWh | D7: Total Cost | K7: Class A customer Volumes for GA (TLF included) | M7: =-B64 -> -6468771.54 | P7: RPPT2 | Q7: =E21 -> 0.08899988329 | R7: =R6 -> 0.03064975929 | S7: =S6 -> 0.07739999771 | T7: =R7+S7 -> 0.108049757 | U7: =+Q7-T7 -> -0.01904987371 | V7: =M19 -> 466945.3493 | W7: =Q7*V7 -> 41558.08159 | X7: =R7*V7 -> 14311.76256 | Y7: =+V7*S7 -> 36141.56897 | Z7: =W7-X7-Y7 -> -8895.249935
B8: FIT | C8: 859001.89 | D8: 28396.92 | E8: =D8/C8 -> 0.03305804135 | M8: =+M5+M6+M7 -> 16758102.54 | N8: =+N5+N6+N7 -> 23226874.08 | P8: RPPTOUMID | Q8: =E23 -> 0.09400046942 | R8: =E43 -> 0.03025493847 | S8: =S7 -> 0.07739999771 | T8: 0.1076549362 | U8: -0.01365446677 | V8: 1800594.376 | W8: 169256.7165 | X8: 54476.87205 | Y8: 139366.0005 | Z8: -24586.15607
B9: microFIT | C9: 52329.94 | D9: 1738.58 | E9: =D9/C9 -> 0.03322342812 | P9: RPPTOUOFF | Q9: =E24 -> 0.06500014407 | R9: =R8 -> 0.03025493847 | S9: 0.07739999771 | T9: 0.1076549362 | U9: -0.04265479212 | V9: 5979398.598 | W9: 388661.7703 | X9: 180906.3367 | Y9: 462805.4378 | Z9: -255050.0042
B10: WHOLESALE | C10: 22315542.25 | D10: 684072.42 | E10: =D10/C10 -> 0.03065452824 | K10: Estimated Retail Volume Revenue Data (TLF Included) | L10: RPP/non-RPP Ratios | M10: GA Volumes | N10: Energy Volumes | P10: RPPTOUON | Q10: 0.1320006984 | R10: =R9 -> 0.03025493847 | S10: 0.07739999771 | T10: 0.1076549362 | U10: 0.02434576225 | V10: 2018713.502 | W10: 266471.5922 | X10: 61076.05279 | Y10: 156248.4204 | Z10: 49147.11897
A11: Total Wholesale Electricity | B11: Grand Total | C11: 23226874.08 | D11: 714207.92 | K11: Estimated Retail Revenue Data (Net of Retail Billed/Unbilled) | M11: =+M15 -> 16758102.54 | N11: =+N15 -> 23226874.08 | P11: RPPULOMID | Q11: 0 | R11: 0 | S11: 0 | T11: 0 | U11: 0 | V11: 0 | W11: 0 | X11: 0 | Y11: 0 | Z11: 0
P12: RPPULOOFF | Q12: 0 | R12: 0 | S12: 0 | T12: 0 | U12: 0 | V12: 0 | W12: 0 | X12: 0 | Y12: 0 | Z12: 0
K13: Estimated RPP Sales Quantities | L13: =SUM(C20:C25)/(C30-B64) -> 0.6449625172 | M13: =M8*L13 -> 10808348 | N13: =M13 -> 10808348 | P13: RPPULOON | Q13: 0 | R13: 0 | S13: 0 | T13: 0 | U13: 0 | V13: 0 | W13: 0 | X13: 0 | Y13: 0 | Z13: 0
A14: RPP Revenue Volume and Price Data | K14: Estimated non-RPP Sales Quantities | L14: =1-L13 -> 0.3550374828 | M14: =M8*L14 -> 5949754.542 | N14: =N8-N13 -> 12418526.08 | P14: RPPULOOVN | Q14: 0 | R14: 0 | S14: 0 | T14: 0 | U14: 0 | V14: 0 | W14: 0 | X14: 0 | Y14: 0 | Z14: 0
B15: bill_year | C15: 2018 | K15: Estimated Retail Revenue kWh Volumes | L15: =+L13+L14 -> 1 | M15: =+M13+M14 -> 16758102.54 | N15: =+N13+N14 -> 23226874.08 | V15: =SUM(V6:V14) -> 10808348 | W15: =SUM(W6:W14) -> 907735.5762 | X15: =SUM(X6:X14) -> 327404.5312 | Y15: =SUM(Y6:Y14) -> 836566.1103 | Z15: =SUM(Z6:Z14) -> -256235.0653
B16: bill_month | C16: 7 | Z16: =W15-X15-Y15-Z15 -> 0
K17: Estimated RPP Revenue Volume and Price Data | L17: Actual % | M17: kWh Volumes
B18: Row Labels | C18: usagebilled | D18: amountbilled | E18: Rate | K18: RPPT1 | L18: =C20/SUM($C$20:$C$25) -> 0.05021083462 | M18: =$M$13*L18 -> 542696.1739
B19: RPPTIER | K19: RPPT2 | L19: =C21/SUM($C$20:$C$25) -> 0.04320228673 | M19: =$M$13*L19 -> 466945.3493
B20: RPPT1 | C20: 535638.9636 | D20: 41244.01293 | E20: =D20/C20 -> 0.07699965038 | K20: RPPTOUMID | L20: =C23/SUM($C$20:$C$25) -> 0.1665929313 | M20: 1800594.376
B21: RPPT2 | C21: 460873.2013 | D21: 41017.66112 | E21: =D21/C21 -> 0.08899988329 | K21: RPPTOUOFF | L21: =C24/SUM($C$20:$C$25) -> 0.5532203995 | M21: 5979398.598
B22: RPPTOU | K22: RPPTOUON | L22: 0.1867735478 | M22: 2018713.502
B23: RPPTOUMID | C23: 1777179.482 | D23: 167055.7056 | E23: 0.09400046942 | K23: RPPULOMID | L23: 0 | M23: 0
B24: RPPTOUOFF | C24: 5901642.617 | D24: 383607.6204 | E24: 0.06500014407 | K24: RPPULOOFF | L24: 0 | M24: 0
B25: RPPTOUON | C25: 1992462.191 | D25: 263006.4009 | E25: 0.1320006984 | K25: RPPULOON | L25: 0 | M25: 0
B26: RETAIL | K26: RPPULOOVN | L26: 0 | M26: 0
B27: NSLS | C27: 4361820.837 | D27: 132461.1711 | E27: 0.03036832002 | L27: =SUM(L18:L26) -> 1 | M27: =SUM(M18:M26) -> 10808348
B28: INTERVAL
B29: HOEP | C29: 7979334.755 | D29: 239720.2775 | E29: 0.0300426395
B30: Grand Total | C30: 23008952.05 | D30: 1268112.849
K31: Global Adjustment | L31: per kWh
C32: =C30/C11-1 -> -0.00938232287 | K32: Class B - GA actual8 | L32: =B69/100 -> 0.07739999771 | N32: GA Posted Price
K33: Class B - GA actual IESO billed | L33: =+M33/M8 -> 0.07838430138 | M33: =B76 -> 1313572.16 | N33: GA Billed by IESO CT 148
A37: RPP COP Volume and Price Data
B38: bill_year | C38: 2018
B39: bill_month | C39: 7
B41: Row Labels | C41: usagebilled | D41: amountbilled | E41: Rate
B42: RPPTIERED | C42: 991507.7458 | D42: 30389.47374 | E42: =D42/C42 -> 0.03064975929
B43: RPPTOU | C43: 9670496.583 | D43: 292580.2792 | E43: 0.03025493847
B44: Grand Total | C44: 10662004.33 | D44: 322969.7529
C46: =SUM(C20:C25)-C44 -> 5792.126559
C47: =C46/C44 -> 0.000543249316
A60: Year | B60: 2018
A62: Class A | B62: Value
A63: kWh
A64: 201807 | B64: 6468771.54
A67: ga_actual | B67: year
A68: month | B68: 2018
A69: 201807 | B69: 7.739999771
A72: chargetype | B72: 148
A74: Sum of chargeamount | B74: year
A75: month | B75: 2018
A76: 201807 | B76: 1313572.16

Sheet I15 Input Rev 07 Init
A1: Reverse IESO Posted
A5: =Admin!B26 -> 201807
A6: RPP Revenue Prices | B6: kWh Volumes | C6: $ RPP Settlement
A7: RPPTiered_1 | B7: 446806.33 | C7: 23828.16
A8: RPPTiered_2 | B8: 333572.21 | C8: 13785.74
A9: RPPTOU_MID | B9: 1444533.69 | C9: 49798.54
A10: RPPTOU_OFF | B10: 4934599.08 | C10: 313145.57
A11: RPPTOU_ON | B11: 1485316.27 | C11: -5250.15
A12: Grand Total | B12: 8644827.58 | C12: 395307.86

Sheet I16 Input 08 Trueup Sett
A1: Date: | B1: =Admin!B8+7 -> 201808 | C1: Trueup | K1: ="Data for 1st True up of RPP Settlement based on Actual IESO Invoice" -> Data for 1st True up of RPP Settlement based on Actual IESO Invoice | P1: For Reconciliation
A3: Wholesale Electricty | B3: Year | C3: 2018 | E3: Rate | P3: Actual RPP Revenue and GA
B4: dateref | C4: 201808 | K4: Wholesale Volume data per IESO Power Bill: | L4: GA RPP/non-RPP Ratios | M4: GA Volumes | N4: Energy Volumes | P4: =B1 -> 201808
K5: AQEW | M5: =C10 -> 22796500.54 | N5: =+M5 -> 22796500.54 | P5: RPP Revenue Prices | Q5: RPP Rate | R5: Estimated RPP Energy Price | S5: GA actual IESO billed | T5: Total Commodity | U5: Difference | V5: kWh Volumes | W5: $ Estimated RPP Revenue | X5: $ Estimated RPP Energy | Y5: $ Estimated GA | Z5: $ Estimated RPP Settlement
B6: Wholesale | K6: Embedded Generation | M6: =SUM(C8:C9) -> 715916.48 | N6: =+M6 -> 715916.48 | P6: RPPT1 | Q6: =E20 -> 0.07699961646 | R6: =E42 -> 0.03152042913 | S6: =L32 -> 0.07489999771 | T6: =R6+S6 -> 0.1064204268 | U6: =+Q6-T6 -> -0.02942081038 | V6: =M18 -> 537726.0961 | W6: =Q6*V6 -> 41404.70316 | X6: =R6*V6 -> 16949.3573 | Y6: =+V6*S6 -> 40275.68337 | Z6: =W6-X6-Y6 -> -15820.33751
A7: FIT/mFIT | B7: Source | C7: kWh | D7: Total Cost | K7: Class A customer Volumes for GA (TLF included) | M7: =-B64 -> -6845988.12 | P7: RPPT2 | Q7: =E21 -> 0.08899982011 | R7: =R6 -> 0.03152042913 | S7: =S6 -> 0.07489999771 | T7: =R7+S7 -> 0.1064204268 | U7: =+Q7-T7 -> -0.01742060673 | V7: =M19 -> 429544.9512 | W7: =Q7*V7 -> 38229.42338 | X7: =R7*V7 -> 13539.44119 | Y7: =+V7*S7 -> 32172.91586 | Z7: =W7-X7-Y7 -> -7482.933668
B8: FIT | C8: 674265.1 | D8: 24024.45 | E8: =D8/C8 -> 0.03563057023 | M8: =+M5+M6+M7 -> 16666428.9 | N8: =+N5+N6+N7 -> 23512417.02 | P8: RPPTOUMID | Q8: =E23 -> 0.09400019841 | R8: =E43 -> 0.0327533688 | S8: =S7 -> 0.07489999771 | T8: 0.1076533665 | U8: -0.01365316809 | V8: 1764456.675 | W8: 165859.2776 | X8: 57791.90022 | Y8: 132157.801 | Z8: -24090.42359
B9: microFIT | C9: 41651.38 | D9: 1494.2 | E9: =D9/C9 -> 0.03587396144 | P9: RPPTOUOFF | Q9: =E24 -> 0.06500010534 | R9: =R8 -> 0.0327533688 | S9: 0.07489999771 | T9: 0.1076533665 | U9: -0.04265326117 | V9: 6061515.024 | W9: 393999.1151 | X9: 198535.0371 | Y9: 454007.4614 | Z9: -258543.3834
B10: WHOLESALE | C10: 22796500.54 | D10: 697098.07 | E10: =D10/C10 -> 0.0305791702 | K10: Estimated Retail Volume Revenue Data (TLF Included) | L10: RPP/non-RPP Ratios | M10: GA Volumes | N10: Energy Volumes | P10: RPPTOUON | Q10: 0.1320003841 | R10: =R9 -> 0.0327533688 | S10: 0.07489999771 | T10: 0.1076533665 | U10: 0.02434701757 | V10: 1981447.204 | W10: 261551.7919 | X10: 64899.07102 | Y10: 148410.391 | Z10: 48242.32988
A11: Total Wholesale Electricity | B11: Grand Total | C11: 23512417.02 | D11: 722616.72 | K11: Estimated Retail Revenue Data (Net of Retail Billed/Unbilled) | M11: =+M15 -> 16666428.9 | N11: =+N15 -> 23512417.02 | P11: RPPULOMID | Q11: 0 | R11: 0 | S11: 0 | T11: 0 | U11: 0 | V11: 0 | W11: 0 | X11: 0 | Y11: 0 | Z11: 0
P12: RPPULOOFF | Q12: 0 | R12: 0 | S12: 0 | T12: 0 | U12: 0 | V12: 0 | W12: 0 | X12: 0 | Y12: 0 | Z12: 0
K13: Estimated RPP Sales Quantities | L13: =SUM(C20:C25)/(C30-B64) -> 0.6464906199 | M13: =M8*L13 -> 10774689.95 | N13: =M13 -> 10774689.95 | P13: RPPULOON | Q13: 0 | R13: 0 | S13: 0 | T13: 0 | U13: 0 | V13: 0 | W13: 0 | X13: 0 | Y13: 0 | Z13: 0
A14: RPP Revenue Volume and Price Data | K14: Estimated non-RPP Sales Quantities | L14: =1-L13 -> 0.3535093801 | M14: =M8*L14 -> 5891738.949 | N14: =N8-N13 -> 12737727.07 | P14: RPPULOOVN | Q14: 0 | R14: 0 | S14: 0 | T14: 0 | U14: 0 | V14: 0 | W14: 0 | X14: 0 | Y14: 0 | Z14: 0
B15: bill_year | C15: 2018 | K15: Estimated Retail Revenue kWh Volumes | L15: =+L13+L14 -> 1 | M15: =+M13+M14 -> 16666428.9 | N15: =+N13+N14 -> 23512417.02 | V15: =SUM(V6:V14) -> 10774689.95 | W15: =SUM(W6:W14) -> 901044.3111 | X15: =SUM(X6:X14) -> 351714.8068 | Y15: =SUM(Y6:Y14) -> 807024.2527 | Z15: =SUM(Z6:Z14) -> -257694.7483
B16: bill_month | C16: 8 | Z16: =W15-X15-Y15-Z15 -> 0
K17: Estimated RPP Revenue Volume and Price Data | L17: Actual % | M17: kWh Volumes
B18: Row Labels | C18: usagebilled | D18: amountbilled | E18: Rate | K18: RPPT1 | L18: =C20/SUM($C$20:$C$25) -> 0.04990641017 | M18: =$M$13*L18 -> 537726.0961
B19: RPPTIER | K19: RPPT2 | L19: =C21/SUM($C$20:$C$25) -> 0.03986610781 | M19: =$M$13*L19 -> 429544.9512
B20: RPPT1 | C20: 532970.6838 | D20: 41038.53824 | E20: =D20/C20 -> 0.07699961646 | K20: RPPTOUMID | L20: =C23/SUM($C$20:$C$25) -> 0.163759392 | M20: 1764456.675
B21: RPPT2 | C21: 425746.2452 | D21: 37891.33923 | E21: =D21/C21 -> 0.08899982011 | K21: RPPTOUOFF | L21: =C24/SUM($C$20:$C$25) -> 0.5625697864 | M21: 6061515.024
B22: RPPTOU | K22: RPPTOUON | L22: 0.1838983036 | M22: 1981447.204
B23: RPPTOUMID | C23: 1748852.599 | D23: 164392.4913 | E23: 0.09400019841 | K23: RPPULOMID | L23: 0 | M23: 0
B24: RPPTOUOFF | C24: 6007909.66 | D24: 390514.7608 | E24: 0.06500010534 | K24: RPPULOOFF | L24: 0 | M24: 0
B25: RPPTOUON | C25: 1963924.159 | D25: 259238.7433 | E25: 0.1320003841 | K25: RPPULOON | L25: 0 | M25: 0
B26: RETAIL | K26: RPPULOOVN | L26: 0 | M26: 0
B27: NSLS | C27: 4945455.203 | D27: 149391.6742 | E27: 0.03020787129 | L27: =SUM(L18:L26) -> 1 | M27: =SUM(M18:M26) -> 10774689.95
B28: INTERVAL
B29: HOEP | C29: 7740167.927 | D29: 232625.3216 | E29: 0.03005429905
B30: Grand Total | C30: 23365026.48 | D30: 1275092.869
K31: Global Adjustment | L31: per kWh
C32: =C30/C11-1 -> -0.006268625707 | K32: Class B - GA actual8 | L32: =B69/100 -> 0.07489999771 | N32: GA Posted Price
K33: Class B - GA actual IESO billed | L33: =+M33/M8 -> 0.07607040342 | M33: =B76 -> 1267821.97 | N33: GA Billed by IESO CT 148
A37: RPP COP Volume and Price Data
B38: bill_year | C38: 2018
B39: bill_month | C39: 8
B41: Row Labels | C41: usagebilled | D41: amountbilled | E41: Rate
B42: RPPTIERED | C42: 954772.2143 | D42: 30094.82992 | E42: =D42/C42 -> 0.03152042913
B43: RPPTOU | C43: 9719748.88 | D43: 318354.5197 | E43: 0.0327533688
B44: Grand Total | C44: 10674521.09 | D44: 348449.3496
C46: =SUM(C20:C25)-C44 -> 4882.253631
C47: =C46/C44 -> 0.000457374489
A60: Year | B60: 2018
A62: Class A | B62: Value
A63: kWh
A64: 201808 | B64: 6845988.12
A67: ga_actual | B67: year
A68: month | B68: 2018
A69: 201808 | B69: 7.489999771
A72: chargetype | B72: 148
A74: Sum of chargeamount | B74: year
A75: month | B75: 2018
A76: 201808 | B76: 1267821.97

Sheet I17 Input Rev 08 Init
A1: Reverse IESO Posted
A5: =Admin!B29 -> 201808
A6: RPP Revenue Prices | B6: kWh Volumes | C6: $ RPP Settlement
A7: RPPTiered_1 | B7: 563491.76 | C7: 20822.92
A8: RPPTiered_2 | B8: 467510.43 | C8: 11665.9
A9: RPPTOU_MID | B9: 1788418.77 | C9: 37187.28
A10: RPPTOU_OFF | B10: 5863841.06 | C10: 291949.12
A11: RPPTOU_ON | B11: 1988256.15 | C11: -34192.01
A12: Grand Total | B12: 10671518.17 | C12: 327433.21

Sheet I18 Input 09 Trueup Sett
A1: Date: | B1: =Admin!B8+8 -> 201809 | C1: Trueup | K1: ="Data for 1st True up of RPP Settlement based on Actual IESO Invoice" -> Data for 1st True up of RPP Settlement based on Actual IESO Invoice | P1: For Reconciliation
A3: Wholesale Electricty | B3: Year | C3: 2018 | E3: Rate | P3: Actual RPP Revenue and GA
B4: dateref | C4: 201809 | K4: Wholesale Volume data per IESO Power Bill: | L4: GA RPP/non-RPP Ratios | M4: GA Volumes | N4: Energy Volumes | P4: =B1 -> 201809
K5: AQEW | M5: =C10 -> 20589196.15 | N5: =+M5 -> 20589196.15 | P5: RPP Revenue Prices | Q5: RPP Rate | R5: Estimated RPP Energy Price | S5: GA actual IESO billed | T5: Total Commodity | U5: Difference | V5: kWh Volumes | W5: $ Estimated RPP Revenue | X5: $ Estimated RPP Energy | Y5: $ Estimated GA | Z5: $ Estimated RPP Settlement
B6: Wholesale | K6: Embedded Generation | M6: =SUM(C8:C9) -> 622869.9 | N6: =+M6 -> 622869.9 | P6: RPPT1 | Q6: =E20 -> 0.07700007974 | R6: =E42 -> 0.0297169758 | S6: =L32 -> 0.08579999924 | T6: =R6+S6 -> 0.115516975 | U6: =+Q6-T6 -> -0.0385168953 | V6: =M18 -> 596425.8849 | W6: =Q6*V6 -> 45924.84069 | X6: =R6*V6 -> 17723.97359 | Y6: =+V6*S6 -> 51173.34047 | Z6: =W6-X6-Y6 -> -22972.47336
A7: FIT/mFIT | B7: Source | C7: kWh | D7: Total Cost | K7: Class A customer Volumes for GA (TLF included) | M7: =-B64 -> -6767357.55 | P7: RPPT2 | Q7: =E21 -> 0.08900029281 | R7: =R6 -> 0.0297169758 | S7: =S6 -> 0.08579999924 | T7: =R7+S7 -> 0.115516975 | U7: =+Q7-T7 -> -0.02651668223 | V7: =M19 -> 379643.2271 | W7: =Q7*V7 -> 33788.35838 | X7: =R7*V7 -> 11281.84859 | Y7: =+V7*S7 -> 32573.3886 | Z7: =W7-X7-Y7 -> -10066.87881
B8: FIT | C8: 586359.59 | D8: 19786.35 | E8: =D8/C8 -> 0.03374439565 | M8: =+M5+M6+M7 -> 14444708.5 | N8: =+N5+N6+N7 -> 21212066.05 | P8: RPPTOUMID | Q8: =E23 -> 0.09400010815 | R8: =E43 -> 0.02748127274 | S8: =S7 -> 0.08579999924 | T8: 0.113281272 | U8: -0.01928116382 | V8: 1530586.458 | W8: 143875.2926 | X8: 42062.4639 | Y8: 131324.3169 | Z8: -29511.48824
B9: microFIT | C9: 36510.31 | D9: 1257.58 | E9: =D9/C9 -> 0.03444451718 | P9: RPPTOUOFF | Q9: =E24 -> 0.06500017791 | R9: =R8 -> 0.02748127274 | S9: 0.08579999924 | T9: 0.113281272 | U9: -0.04828109406 | V9: 4911720.055 | W9: 319262.6774 | X9: 134980.3185 | Y9: 421425.577 | Z9: -237143.218
B10: WHOLESALE | C10: 20589196.15 | D10: 611381.56 | E10: =D10/C10 -> 0.02969428993 | K10: Estimated Retail Volume Revenue Data (TLF Included) | L10: RPP/non-RPP Ratios | M10: GA Volumes | N10: Energy Volumes | P10: RPPTOUON | Q10: 0.1320004045 | R10: =R9 -> 0.02748127274 | S10: 0.08579999924 | T10: 0.113281272 | U10: 0.01871913255 | V10: 1652704.701 | W10: 218157.689 | X10: 45418.42863 | Y10: 141802.062 | Z10: 30937.19835
A11: Total Wholesale Electricity | B11: Grand Total | C11: 21212066.05 | D11: 632425.49 | K11: Estimated Retail Revenue Data (Net of Retail Billed/Unbilled) | M11: =+M15 -> 14444708.5 | N11: =+N15 -> 21212066.05 | P11: RPPULOMID | Q11: 0 | R11: 0 | S11: 0 | T11: 0 | U11: 0 | V11: 0 | W11: 0 | X11: 0 | Y11: 0 | Z11: 0
P12: RPPULOOFF | Q12: 0 | R12: 0 | S12: 0 | T12: 0 | U12: 0 | V12: 0 | W12: 0 | X12: 0 | Y12: 0 | Z12: 0
K13: Estimated RPP Sales Quantities | L13: =SUM(C20:C25)/(C30-B64) -> 0.6279863886 | M13: =M8*L13 -> 9071080.326 | N13: =M13 -> 9071080.326 | P13: RPPULOON | Q13: 0 | R13: 0 | S13: 0 | T13: 0 | U13: 0 | V13: 0 | W13: 0 | X13: 0 | Y13: 0 | Z13: 0
A14: RPP Revenue Volume and Price Data | K14: Estimated non-RPP Sales Quantities | L14: =1-L13 -> 0.3720136114 | M14: =M8*L14 -> 5373628.174 | N14: =N8-N13 -> 12140985.72 | P14: RPPULOOVN | Q14: 0 | R14: 0 | S14: 0 | T14: 0 | U14: 0 | V14: 0 | W14: 0 | X14: 0 | Y14: 0 | Z14: 0
B15: bill_year | C15: 2018 | K15: Estimated Retail Revenue kWh Volumes | L15: =+L13+L14 -> 1 | M15: =+M13+M14 -> 14444708.5 | N15: =+N13+N14 -> 21212066.05 | V15: =SUM(V6:V14) -> 9071080.326 | W15: =SUM(W6:W14) -> 761008.8581 | X15: =SUM(X6:X14) -> 251467.0332 | Y15: =SUM(Y6:Y14) -> 778298.685 | Z15: =SUM(Z6:Z14) -> -268756.8601
B16: bill_month | C16: 9 | Z16: =W15-X15-Y15-Z15 -> 0
K17: Estimated RPP Revenue Volume and Price Data | L17: Actual % | M17: kWh Volumes
B18: Row Labels | C18: usagebilled | D18: amountbilled | E18: Rate | K18: RPPT1 | L18: =C20/SUM($C$20:$C$25) -> 0.06575025945 | M18: =$M$13*L18 -> 596425.8849
B19: RPPTIER | K19: RPPT2 | L19: =C21/SUM($C$20:$C$25) -> 0.04185204116 | M19: =$M$13*L19 -> 379643.2271
B20: RPPT1 | C20: 599590.4644 | D20: 46168.51357 | E20: =D20/C20 -> 0.07700007974 | K20: RPPTOUMID | L20: =C23/SUM($C$20:$C$25) -> 0.1687325438 | M20: 1530586.458
B21: RPPT2 | C21: 381657.5783 | D21: 33967.63622 | E21: =D21/C21 -> 0.08900029281 | K21: RPPTOUOFF | L21: =C24/SUM($C$20:$C$25) -> 0.5414702416 | M21: 4911720.055
B22: RPPTOU | K22: RPPTOUON | L22: 0.1821949141 | M22: 1652704.701
B23: RPPTOUMID | C23: 1538707.605 | D23: 144638.6813 | E23: 0.09400010815 | K23: RPPULOMID | L23: 0 | M23: 0
B24: RPPTOUOFF | C24: 4937781.178 | D24: 320956.6551 | E24: 0.06500017791 | K24: RPPULOOFF | L24: 0 | M24: 0
B25: RPPTOUON | C25: 1661473.796 | D25: 219315.2131 | E25: 0.1320004045 | K25: RPPULOON | L25: 0 | M25: 0
B26: RETAIL | K26: RPPULOOVN | L26: 0 | M26: 0
B27: NSLS | C27: 4642899.16 | D27: 130824.6668 | E27: 0.02817736555 | L27: =SUM(L18:L26) -> 1 | M27: =SUM(M18:M26) -> 9071080.326
B28: INTERVAL
B29: HOEP | C29: 7526598.529 | D29: 210512.3786 | E29: 0.02796912546
B30: Grand Total | C30: 21288708.31 | D30: 1106383.745
K31: Global Adjustment | L31: per kWh
C32: =C30/C11-1 -> 0.003613144539 | K32: Class B - GA actual8 | L32: =B69/100 -> 0.08579999924 | N32: GA Posted Price
K33: Class B - GA actual IESO billed | L33: =+M33/M8 -> 0.08584517299 | M33: =B76 -> 1240008.5 | N33: GA Billed by IESO CT 148
A37: RPP COP Volume and Price Data
B38: bill_year | C38: 2018
B39: bill_month | C39: 9
B41: Row Labels | C41: usagebilled | D41: amountbilled | E41: Rate
B42: RPPTIERED | C42: 875455.9875 | D42: 26015.90439 | E42: =D42/C42 -> 0.0297169758
B43: RPPTOU | C43: 8137231.65 | D43: 223621.4823 | E43: 0.02748127274
B44: Grand Total | C44: 9012687.637 | D44: 249637.3867
C46: =SUM(C20:C25)-C44 -> 106522.9851
C47: =C46/C44 -> 0.01181922523
A60: Year | B60: 2018
A62: Class A | B62: Value
A63: kWh
A64: 201809 | B64: 6767357.55
A67: ga_actual | B67: year
A68: month | B68: 2018
A69: 201809 | B69: 8.579999924
A72: chargetype | B72: 148
A74: Sum of chargeamount | B74: year
A75: month | B75: 2018
A76: 201809 | B76: 1240008.5

Sheet I19 Input Rev 09 Init
A1: Reverse IESO Posted
A5: =Admin!B32 -> 201809
A6: RPP Revenue Prices | B6: kWh Volumes | C6: $ RPP Settlement
A7: RPPTiered_1 | B7: 557198.01 | C7: 16561
A8: RPPTiered_2 | B8: 454695.65 | C8: 8058
A9: RPPTOU_MID | B9: 1719307.94 | C9: 26548.93
A10: RPPTOU_OFF | B10: 5958363.35 | C10: 264779.44
A11: RPPTOU_ON | B11: 1945205.24 | C11: -43883.24
A12: Grand Total | B12: 10634770.19 | C12: 272064.13

Sheet I20 Input 10 Trueup Sett
A1: Date: | B1: =Admin!B8+9 -> 201810 | C1: Trueup | K1: ="Data for 1st True up of RPP Settlement based on Actual IESO Invoice" -> Data for 1st True up of RPP Settlement based on Actual IESO Invoice | P1: For Reconciliation
A3: Wholesale Electricty | B3: Year | C3: 2018 | E3: Rate | P3: Actual RPP Revenue and GA
B4: dateref | C4: 201810 | K4: Wholesale Volume data per IESO Power Bill: | L4: GA RPP/non-RPP Ratios | M4: GA Volumes | N4: Energy Volumes | P4: =B1 -> 201810
K5: AQEW | M5: =C10 -> 20418670.07 | N5: =+M5 -> 20418670.07 | P5: RPP Revenue Prices | Q5: RPP Rate | R5: Estimated RPP Energy Price | S5: GA actual IESO billed | T5: Total Commodity | U5: Difference | V5: kWh Volumes | W5: $ Estimated RPP Revenue | X5: $ Estimated RPP Energy | Y5: $ Estimated GA | Z5: $ Estimated RPP Settlement
B6: Wholesale | K6: Embedded Generation | M6: =SUM(C8:C9) -> 359886.43 | N6: =+M6 -> 359886.43 | P6: RPPT1 | Q6: =E20 -> 0.07699950966 | R6: =E42 -> 0.0153774719 | S6: =L32 -> 0.1206000042 | T6: =R6+S6 -> 0.1359774761 | U6: =+Q6-T6 -> -0.05897796644 | V6: =M18 -> 526982.2384 | W6: =Q6*V6 -> 40577.37396 | X6: =R6*V6 -> 8103.654565 | Y6: =+V6*S6 -> 63554.06016 | Z6: =W6-X6-Y6 -> -31080.34077
A7: FIT/mFIT | B7: Source | C7: kWh | D7: Total Cost | K7: Class A customer Volumes for GA (TLF included) | M7: =-B64 -> -6747660.48 | P7: RPPT2 | Q7: =E21 -> 0.08899990617 | R7: =R6 -> 0.0153774719 | S7: =S6 -> 0.1206000042 | T7: =R7+S7 -> 0.1359774761 | U7: =+Q7-T7 -> -0.04697756993 | V7: =M19 -> 349534.8197 | W7: =Q7*V7 -> 31108.56616 | X7: =R7*V7 -> 5374.96187 | Y7: =+V7*S7 -> 42153.90072 | Z7: =W7-X7-Y7 -> -16420.29644
B8: FIT | C8: 337675.41 | D8: 4259.97 | E8: =D8/C8 -> 0.0126155766 | M8: =+M5+M6+M7 -> 14030896.02 | N8: =+N5+N6+N7 -> 20778556.5 | P8: RPPTOUMID | Q8: =E23 -> 0.09399967937 | R8: =E43 -> 0.01716826108 | S8: =S7 -> 0.1206000042 | T8: 0.1377682653 | U8: -0.0437685859 | V8: 1510652.113 | W8: 142000.8143 | X8: 25935.26988 | Y8: 182184.6512 | Z8: -66119.1068
B9: microFIT | C9: 22211.02 | D9: 275.97 | E9: =D9/C9 -> 0.0124249134 | P9: RPPTOUOFF | Q9: =E24 -> 0.06500006237 | R9: =R8 -> 0.01716826108 | S9: 0.1206000042 | T9: 0.1377682653 | U9: -0.0727682029 | V9: 4839425.616 | W9: 314562.9669 | X9: 83084.52245 | Y9: 583634.7496 | Z9: -352156.3052
B10: WHOLESALE | C10: 20418670.07 | D10: 284016.5 | E10: =D10/C10 -> 0.01390964735 | K10: Estimated Retail Volume Revenue Data (TLF Included) | L10: RPP/non-RPP Ratios | M10: GA Volumes | N10: Energy Volumes | P10: RPPTOUON | Q10: 0.1320006579 | R10: =R9 -> 0.01716826108 | S10: 0.1206000042 | T10: 0.1377682653 | U10: -0.005767607353 | V10: 1502440.926 | W10: 198323.1907 | X10: 25794.29807 | Y10: 181194.3819 | Z10: -8665.48933
A11: Total Wholesale Electricity | B11: Grand Total | C11: 20778556.5 | D11: 288552.44 | K11: Estimated Retail Revenue Data (Net of Retail Billed/Unbilled) | M11: =+M15 -> 14030896.02 | N11: =+N15 -> 20778556.5 | P11: RPPULOMID | Q11: 0 | R11: 0 | S11: 0 | T11: 0 | U11: 0 | V11: 0 | W11: 0 | X11: 0 | Y11: 0 | Z11: 0
P12: RPPULOOFF | Q12: 0 | R12: 0 | S12: 0 | T12: 0 | U12: 0 | V12: 0 | W12: 0 | X12: 0 | Y12: 0 | Z12: 0
K13: Estimated RPP Sales Quantities | L13: =SUM(C20:C25)/(C30-B64) -> 0.6221295989 | M13: =M8*L13 -> 8729035.713 | N13: =M13 -> 8729035.713 | P13: RPPULOON | Q13: 0 | R13: 0 | S13: 0 | T13: 0 | U13: 0 | V13: 0 | W13: 0 | X13: 0 | Y13: 0 | Z13: 0
A14: RPP Revenue Volume and Price Data | K14: Estimated non-RPP Sales Quantities | L14: =1-L13 -> 0.3778704011 | M14: =M8*L14 -> 5301860.307 | N14: =N8-N13 -> 12049520.79 | P14: RPPULOOVN | Q14: 0 | R14: 0 | S14: 0 | T14: 0 | U14: 0 | V14: 0 | W14: 0 | X14: 0 | Y14: 0 | Z14: 0
B15: bill_year | C15: 2018 | K15: Estimated Retail Revenue kWh Volumes | L15: =+L13+L14 -> 1 | M15: =+M13+M14 -> 14030896.02 | N15: =+N13+N14 -> 20778556.5 | V15: =SUM(V6:V14) -> 8729035.713 | W15: =SUM(W6:W14) -> 726572.912 | X15: =SUM(X6:X14) -> 148292.7068 | Y15: =SUM(Y6:Y14) -> 1052721.744 | Z15: =SUM(Z6:Z14) -> -474441.5385
B16: bill_month | C16: 10 | Z16: =W15-X15-Y15-Z15 -> 0
K17: Estimated RPP Revenue Volume and Price Data | L17: Actual % | M17: kWh Volumes
B18: Row Labels | C18: usagebilled | D18: amountbilled | E18: Rate | K18: RPPT1 | L18: =C20/SUM($C$20:$C$25) -> 0.06037118597 | M18: =$M$13*L18 -> 526982.2384
B19: RPPTIER | K19: RPPT2 | L19: =C21/SUM($C$20:$C$25) -> 0.04004277576 | M19: =$M$13*L19 -> 349534.8197
B20: RPPT1 | C20: 530166.2731 | D20: 40822.54307 | E20: =D20/C20 -> 0.07699950966 | K20: RPPTOUMID | L20: =C23/SUM($C$20:$C$25) -> 0.1730605949 | M20: 1510652.113
B21: RPPT2 | C21: 351646.7144 | D21: 31296.52459 | E21: =D21/C21 -> 0.08899990617 | K21: RPPTOUOFF | L21: =C24/SUM($C$20:$C$25) -> 0.5544055237 | M21: 4839425.616
B22: RPPTOU | K22: RPPTOUON | L22: 0.1721199196 | M22: 1502440.926
B23: RPPTOUMID | C23: 1519779.497 | D23: 142858.7854 | E23: 0.09399967937 | K23: RPPULOMID | L23: 0 | M23: 0
B24: RPPTOUOFF | C24: 4868665.5 | D24: 316463.5612 | E24: 0.06500006237 | K24: RPPULOOFF | L24: 0 | M24: 0
B25: RPPTOUON | C25: 1511518.697 | D25: 199521.4624 | E25: 0.1320006579 | K25: RPPULOON | L25: 0 | M25: 0
B26: RETAIL | K26: RPPULOOVN | L26: 0 | M26: 0
B27: NSLS | C27: 4498040.679 | D27: 62982.77625 | E27: 0.01400226915 | L27: =SUM(L18:L26) -> 1 | M27: =SUM(M18:M26) -> 8729035.713
B28: INTERVAL
B29: HOEP | C29: 7583514.029 | D29: 106359.7226 | E29: 0.01402512373
B30: Grand Total | C30: 20863331.39 | D30: 900305.3755
K31: Global Adjustment | L31: per kWh
C32: =C30/C11-1 -> 0.004079921947 | K32: Class B - GA actual8 | L32: =B69/100 -> 0.1206000042 | N32: GA Posted Price
K33: Class B - GA actual IESO billed | L33: =+M33/M8 -> 0.118570203 | M33: =B76 -> 1663646.19 | N33: GA Billed by IESO CT 148
A37: RPP COP Volume and Price Data
B38: bill_year | C38: 2018
B39: bill_month | C39: 10
B41: Row Labels | C41: usagebilled | D41: amountbilled | E41: Rate
B42: RPPTIERED | C42: 927266.4791 | D42: 14259.01423 | E42: =D42/C42 -> 0.0153774719
B43: RPPTOU | C43: 7709818.754 | D43: 132364.1812 | E43: 0.01716826108
B44: Grand Total | C44: 8637085.233 | D44: 146623.1955
C46: =SUM(C20:C25)-C44 -> 144691.4481
C47: =C46/C44 -> 0.01675234691
A60: Year | B60: 2018
A62: Class A | B62: Value
A63: kWh
A64: 201810 | B64: 6747660.48
A67: ga_actual | B67: year
A68: month | B68: 2018
A69: 201810 | B69: 12.06000042
A72: chargetype | B72: 148
A74: Sum of chargeamount | B74: year
A75: month | B75: 2018
A76: 201810 | B76: 1663646.19

Sheet I21 Input Rev 10 Init
A1: Reverse IESO Posted
A5: =Admin!B35 -> 201810
A6: RPP Revenue Prices | B6: kWh Volumes | C6: $ RPP Settlement
A7: RPPTiered_1 | B7: 465326.45 | C7: 18530.24
A8: RPPTiered_2 | B8: 366373.56 | C8: 10193.16
A9: RPPTOU_MID | B9: 1628677.78 | C9: 33452.94
A10: RPPTOU_OFF | B10: 5263267.96 | C10: 260723.46
A11: RPPTOU_ON | B11: 1788800.39 | C11: -31235.33
A12: Grand Total | B12: 9512446.14 | C12: 291664.47

Sheet I22 Input 11 Trueup Sett
A1: Date: | B1: =Admin!B8+10 -> 201811 | C1: Trueup | K1: ="Data for 1st True up of RPP Settlement based on Actual IESO Invoice" -> Data for 1st True up of RPP Settlement based on Actual IESO Invoice | P1: For Reconciliation
A3: Wholesale Electricty | B3: Year | C3: 2018 | E3: Rate | P3: Actual RPP Revenue and GA
B4: dateref | C4: 201811 | K4: Wholesale Volume data per IESO Power Bill: | L4: GA RPP/non-RPP Ratios | M4: GA Volumes | N4: Energy Volumes | P4: =B1 -> 201811
K5: AQEW | M5: =C10 -> 21385719.45 | N5: =+M5 -> 21385719.45 | P5: RPP Revenue Prices | Q5: RPP Rate | R5: Estimated RPP Energy Price | S5: GA actual IESO billed | T5: Total Commodity | U5: Difference | V5: kWh Volumes | W5: $ Estimated RPP Revenue | X5: $ Estimated RPP Energy | Y5: $ Estimated GA | Z5: $ Estimated RPP Settlement
B6: Wholesale | K6: Embedded Generation | M6: =SUM(C8:C9) -> 186988.39 | N6: =+M6 -> 186988.39 | P6: RPPT1 | Q6: =E21 -> 0.07699997403 | R6: =E43 -> 0.02566756068 | S6: =L32 -> 0.09859999657 | T6: =R6+S6 -> 0.1242675572 | U6: =+Q6-T6 -> -0.04726758321 | V6: =M18 -> 636524.2737 | W6: =Q6*V6 -> 49012.35255 | X6: =R6*V6 -> 16338.02542 | Y6: =+V6*S6 -> 62761.29121 | Z6: =W6-X6-Y6 -> -30086.96408
A7: FIT/mFIT | B7: Source | C7: kWh | D7: Total Cost | K7: Class A customer Volumes for GA (TLF included) | M7: =-B64 -> -6289711.44 | P7: RPPT2 | Q7: =E22 -> 0.08900027336 | R7: =R6 -> 0.02566756068 | S7: =S6 -> 0.09859999657 | T7: =R7+S7 -> 0.1242675572 | U7: =+Q7-T7 -> -0.03526728389 | V7: =M19 -> 446404.1176 | W7: =Q7*V7 -> 39730.08849 | X7: =R7*V7 -> 11458.10478 | Y7: =+V7*S7 -> 44015.44446 | Z7: =W7-X7-Y7 -> -15743.46075
B8: FIT | C8: 174325.29 | D8: 4334.18 | E8: =D8/C8 -> 0.02486260026 | M8: =+M5+M6+M7 -> 15282996.4 | N8: =+N5+N6+N7 -> 21572707.84 | P8: RPPTOUMID | Q8: =E24 -> 0.09399982232 | R8: =E44 -> 0.02574826304 | S8: =S7 -> 0.09859999657 | T8: 0.1243482596 | U8: -0.03034843728 | V8: 1662353.135 | W8: 156260.8993 | X8: 42802.70578 | Y8: 163908.0134 | Z8: -50449.81986
B9: microFIT | C9: 12663.1 | D9: 305.56 | E9: =D9/C9 -> 0.02412995238 | P9: RPPTOUOFF | Q9: =E25 -> 0.06500007169 | R9: =R8 -> 0.02574826304 | S9: 0.09859999657 | T9: 0.1243482596 | U9: -0.05934818791 | V9: 5385329.758 | W9: 350046.8204 | X9: 138662.8872 | Y9: 530993.4956 | Z9: -319609.5624
B10: WHOLESALE | C10: 21385719.45 | D10: 544797.13 | E10: =D10/C10 -> 0.02547480955 | K10: Estimated Retail Volume Revenue Data (TLF Included) | L10: RPP/non-RPP Ratios | M10: GA Volumes | N10: Energy Volumes | P10: RPPTOUON | Q10: 0.1320008131 | R10: =R9 -> 0.02574826304 | S10: 0.09859999657 | T10: 0.1243482596 | U10: 0.007652553521 | V10: 1722973.088 | W10: 227433.8486 | X10: 44363.56428 | Y10: 169885.1406 | Z10: 13185.14377
A11: Total Wholesale Electricity | B11: Grand Total | C11: 21572707.84 | D11: 549436.87 | K11: Estimated Retail Revenue Data (Net of Retail Billed/Unbilled) | M11: =+M15 -> 15282996.4 | N11: =+N15 -> 21572707.84 | P11: RPPULOMID | Q11: 0 | R11: 0 | S11: 0 | T11: 0 | U11: 0 | V11: 0 | W11: 0 | X11: 0 | Y11: 0 | Z11: 0
P12: RPPULOOFF | Q12: 0 | R12: 0 | S12: 0 | T12: 0 | U12: 0 | V12: 0 | W12: 0 | X12: 0 | Y12: 0 | Z12: 0
K13: Estimated RPP Sales Quantities | L13: =SUM(C21:C26)/(C31-B64) -> 0.6447416537 | M13: =M8*L13 -> 9853584.372 | N13: =M13 -> 9853584.372 | P13: RPPULOON | Q13: 0 | R13: 0 | S13: 0 | T13: 0 | U13: 0 | V13: 0 | W13: 0 | X13: 0 | Y13: 0 | Z13: 0
A14: RPP Revenue Volume and Price Data | K14: Estimated non-RPP Sales Quantities | L14: =1-L13 -> 0.3552583463 | M14: =M8*L14 -> 5429412.028 | N14: =N8-N13 -> 11719123.47 | P14: RPPULOOVN | Q14: 0 | R14: 0 | S14: 0 | T14: 0 | U14: 0 | V14: 0 | W14: 0 | X14: 0 | Y14: 0 | Z14: 0
K15: Estimated Retail Revenue kWh Volumes | L15: =+L13+L14 -> 1 | M15: =+M13+M14 -> 15282996.4 | N15: =+N13+N14 -> 21572707.84 | V15: =SUM(V6:V14) -> 9853584.372 | W15: =SUM(W6:W14) -> 822484.0093 | X15: =SUM(X6:X14) -> 253625.2874 | Y15: =SUM(Y6:Y14) -> 971563.3853 | Z15: =SUM(Z6:Z14) -> -402704.6633
B16: bill_year | C16: 2018
B17: bill_month | C17: 11 | K17: Estimated RPP Revenue Volume and Price Data | L17: Actual % | M17: kWh Volumes
K18: RPPT1 | L18: =C21/SUM($C$21:$C$26) -> 0.06459824666 | M18: =$M$13*L18 -> 636524.2737
B19: Row Labels | C19: usagebilled | D19: amountbilled | E19: Rate | K19: RPPT2 | L19: =C22/SUM($C$21:$C$26) -> 0.04530372915 | M19: =$M$13*L19 -> 446404.1176
B20: RPPTIER | K20: RPPTOUMID | L20: =C24/SUM($C$21:$C$26) -> 0.1687054246 | M20: 1662353.135
B21: RPPT1 | C21: 631577.58 | D21: 48631.45726 | E21: =D21/C21 -> 0.07699997403 | K21: RPPTOUOFF | L21: =C25/SUM($C$21:$C$26) -> 0.5465351038 | M21: 5385329.758
B22: RPPT2 | C22: 442934.9263 | D22: 39421.32952 | E22: =D22/C22 -> 0.08900027336 | K22: RPPTOUON | L22: 0.1748574958 | M22: 1722973.088
B23: RPPTOU | K23: RPPULOMID | L23: 0 | M23: 0
B24: RPPTOUMID | C24: 1649434.3 | D24: 155046.5312 | E24: =D24/C24 -> 0.09399982232 | K24: RPPULOOFF | L24: 0 | M24: 0
B25: RPPTOUOFF | C25: 5343478.13 | D25: 347326.4615 | E25: 0.06500007169 | K25: RPPULOON | L25: 0 | M25: 0
B26: RPPTOUON | C26: 1709583.15 | D26: 225666.366 | E26: 0.1320008131 | K26: RPPULOOVN | L26: 0 | M26: 0
B27: RETAIL | L27: =SUM(L18:L26) -> 1 | M27: =SUM(M18:M26) -> 9853584.372
B28: NSLS | C28: 4371789.043 | D28: 109252.223 | E28: =D28/C28 -> 0.02499027787
B29: INTERVAL
B30: HOEP | C30: 7305140.215 | D30: 184511.4823 | E30: 0.02525776054
B31: Grand Total | C31: 21453937.35 | D31: 1109855.851 | E31: 0.05173203561 | K31: Global Adjustment | L31: per kWh
C32: =C31/C11-1 -> -0.005505590479 | K32: Class B - GA actual8 | L32: =B69/100 -> 0.09859999657 | N32: GA Posted Price
K33: Class B - GA actual IESO billed | L33: =+M33/M8 -> 0.1029319512 | M33: =B76 -> 1573108.64 | N33: GA Billed by IESO CT 148
A38: RPP COP Volume and Price Data
B39: bill_year | C39: 2018
B40: bill_month | C40: 11
B42: Row Labels | C42: usagebilled | D42: amountbilled | E42: Rate
B43: RPPTIERED | C43: 1075599.247 | D43: 27608.00895 | E43: =D43/C43 -> 0.02566756068
B44: RPPTOU | C44: 8516231.752 | D44: 219278.1752 | E44: 0.02574826304
B45: Grand Total | C45: 9591830.999 | D45: 246886.1842
C47: =SUM(C21:C26)-C45 -> 185177.0879
C48: =C47/C45 -> 0.01930570794
A60: Year | B60: 2018
A62: Class A | B62: Value
A63: kWh
A64: 201811 | B64: 6289711.44
A67: ga_actual | B67: year
A68: month | B68: 2018
A69: 201811 | B69: 9.859999657
A72: chargetype | B72: 148
A74: Sum of chargeamount | B74: year
A75: month | B75: 2018
A76: 201811 | B76: 1573108.64

Sheet I23 Input Rev 11 Init
A1: Reverse IESO Posted
A5: =Admin!B38 -> 201811
A6: RPP Revenue Prices | B6: kWh Volumes | C6: $ RPP Settlement
A7: RPPTiered_1 | B7: 529133.21 | C7: 51696.76
A8: RPPTiered_2 | B8: 394528.04 | C8: 45725.65
A9: RPPTOU_MID | B9: 1447704.63 | C9: 122168.24
A10: RPPTOU_OFF | B10: 4652857.2 | C10: 452159.94
A11: RPPTOU_ON | B11: 1449269.91 | C11: 113914.52
A12: Grand Total | B12: 8473492.99 | C12: 785665.11

Sheet I24 Input 12 Trueup Sett
A1: Date: | B1: =Admin!B8+11 -> 201812 | C1: Trueup | K1: ="Data for 1st True up of RPP Settlement based on Actual IESO Invoice" -> Data for 1st True up of RPP Settlement based on Actual IESO Invoice | P1: For Reconciliation
A3: Wholesale Electricty | B3: Year | C3: 2018 | E3: Rate | P3: Actual RPP Revenue and GA
B4: dateref | C4: 201812 | K4: Wholesale Volume data per IESO Power Bill: | L4: GA RPP/non-RPP Ratios | M4: GA Volumes | N4: Energy Volumes | P4: =B1 -> 201812
K5: AQEW | M5: =C10 -> 21478911.76 | N5: =+M5 -> 21478911.76 | P5: RPP Revenue Prices | Q5: RPP Rate | R5: Estimated RPP Energy Price | S5: GA actual IESO billed | T5: Total Commodity | U5: Difference | V5: kWh Volumes | W5: $ Estimated RPP Revenue | X5: $ Estimated RPP Energy | Y5: $ Estimated GA | Z5: $ Estimated RPP Settlement
B6: Wholesale | K6: Embedded Generation | M6: =SUM(C8:C9) -> 178118.02 | N6: =+M6 -> 178118.02 | P6: RPPT1 | Q6: =E21 -> 0.07699977704 | R6: =E43 -> 0.02919046012 | S6: =L32 -> 0.07400000095 | T6: =R6+S6 -> 0.1031904611 | U6: =+Q6-T6 -> -0.02619068403 | V6: =M18 -> 736323.9417 | W6: =Q6*V6 -> 56696.77933 | X6: =R6*V6 -> 21493.63465 | Y6: =+V6*S6 -> 54487.97238 | Z6: =W6-X6-Y6 -> -19284.8277
A7: FIT/mFIT | B7: Source | C7: kWh | D7: Total Cost | K7: Class A customer Volumes for GA (TLF included) | M7: =-B64 -> -5310488.18 | P7: RPPT2 | Q7: =E22 -> 0.08899990546 | R7: =R6 -> 0.02919046012 | S7: =S6 -> 0.07400000095 | T7: =R7+S7 -> 0.1031904611 | U7: =+Q7-T7 -> -0.01419055561 | V7: =M19 -> 546757.2282 | W7: =Q7*V7 -> 48661.34162 | X7: =R7*V7 -> 15960.09506 | Y7: =+V7*S7 -> 40460.03541 | Z7: =W7-X7-Y7 -> -7758.788853
B8: FIT | C8: 166882.77 | D8: 5139.54 | E8: =D8/C8 -> 0.0307973076 | M8: =+M5+M6+M7 -> 16346541.6 | N8: =+N5+N6+N7 -> 21657029.78 | P8: RPPTOUMID | Q8: =E24 -> 0.09400054125 | R8: =E44 -> 0.02724162366 | S8: =S7 -> 0.07400000095 | T8: 0.1012416246 | U8: -0.007241083372 | V8: 1632765.319 | W8: 153480.8237 | X8: 44479.17835 | Y8: 120824.6352 | Z8: -11822.9898
B9: microFIT | C9: 11235.25 | D9: 348.17 | E9: =D9/C9 -> 0.03098907456 | P9: RPPTOUOFF | Q9: =E25 -> 0.06500013563 | R9: =R8 -> 0.02724162366 | S9: 0.07400000095 | T9: 0.1012416246 | U9: -0.03624148899 | V9: 5867257.88 | W9: 381372.5579 | X9: 159833.6311 | Y9: 434177.0887 | Z9: -212638.1618
B10: WHOLESALE | C10: 21478911.76 | D10: 611525.75 | E10: =D10/C10 -> 0.02847098386 | K10: Estimated Retail Volume Revenue Data (TLF Included) | L10: RPP/non-RPP Ratios | M10: GA Volumes | N10: Energy Volumes | P10: RPPTOUON | Q10: 0.1320008659 | R10: =R9 -> 0.02724162366 | S10: 0.07400000095 | T10: 0.1012416246 | U10: 0.03075924126 | V10: 1690317.568 | W10: 223123.3826 | X10: 46046.99506 | Y10: 125083.5017 | Z10: 51992.88589
A11: Total Wholesale Electricity | B11: Grand Total | C11: 21657029.78 | D11: 617013.46 | K11: Estimated Retail Revenue Data (Net of Retail Billed/Unbilled) | M11: =+M15 -> 16346541.6 | N11: =+N15 -> 21657029.78 | P11: RPPULOMID | Q11: 0 | R11: =E45 -> 0 | S11: 0.07400000095 | T11: 0.07400000095 | U11: -0.07400000095 | V11: 0 | W11: 0 | X11: 0 | Y11: 0 | Z11: 0
P12: RPPULOOFF | Q12: 0 | R12: =R11 -> 0 | S12: 0.07400000095 | T12: 0.07400000095 | U12: -0.07400000095 | V12: 0 | W12: 0 | X12: 0 | Y12: 0 | Z12: 0
K13: Estimated RPP Sales Quantities | L13: =SUM(C21:C26)/(C31-B64) -> 0.6407117905 | M13: =M8*L13 -> 10473421.94 | N13: =M13 -> 10473421.94 | P13: RPPULOON | Q13: 0 | R13: =R12 -> 0 | S13: 0.07400000095 | T13: 0.07400000095 | U13: -0.07400000095 | V13: 0 | W13: 0 | X13: 0 | Y13: 0 | Z13: 0
A14: RPP Revenue Volume and Price Data | K14: Estimated non-RPP Sales Quantities | L14: =1-L13 -> 0.3592882095 | M14: =M8*L14 -> 5873119.663 | N14: =N8-N13 -> 11183607.84 | P14: RPPULOOVN | Q14: 0 | R14: 0 | S14: 0.07400000095 | T14: 0.07400000095 | U14: -0.07400000095 | V14: 0 | W14: 0 | X14: 0 | Y14: 0 | Z14: 0
K15: Estimated Retail Revenue kWh Volumes | L15: =+L13+L14 -> 1 | M15: =+M13+M14 -> 16346541.6 | N15: =+N13+N14 -> 21657029.78 | V15: =SUM(V6:V14) -> 10473421.94 | W15: =SUM(W6:W14) -> 863334.8852 | X15: =SUM(X6:X14) -> 287813.5342 | Y15: =SUM(Y6:Y14) -> 775033.2333 | Z15: =SUM(Z6:Z14) -> -199511.8823
B16: bill_year | C16: 2018
B17: bill_month | C17: 12 | K17: Estimated RPP Revenue Volume and Price Data | L17: Actual % | M17: kWh Volumes
K18: RPPT1 | L18: =C21/SUM($C$21:$C$26) -> 0.07030404639 | M18: =$M$13*L18 -> 736323.9417
B19: Row Labels | C19: usagebilled | D19: amountbilled | E19: Rate | K19: RPPT2 | L19: =C22/SUM($C$21:$C$26) -> 0.0522042587 | M19: =$M$13*L19 -> 546757.2282
B20: RPPTIER | K20: RPPTOUMID | L20: =C24/SUM($C$21:$C$26) -> 0.15589607 | M20: 1632765.319
B21: RPPT1 | C21: 689488.9711 | D21: 53090.49704 | E21: =D21/C21 -> 0.07699977704 | K21: RPPTOUOFF | L21: =C25/SUM($C$21:$C$26) -> 0.560204479 | M21: 5867257.88
B22: RPPT2 | C22: 511979.9281 | D22: 45566.1652 | E22: 0.08899990546 | K22: RPPTOUON | L22: 0.1613911459 | M22: 1690317.568
B23: RPPTOU | K23: RPPULOMID | L23: 0 | M23: 0
B24: RPPTOUMID | C24: 1528910.872 | D24: 143718.4495 | E24: 0.09400054125 | K24: RPPULOOFF | L24: 0 | M24: 0
B25: RPPTOUOFF | C25: 5494062.286 | D25: 357114.7938 | E25: 0.06500013563 | K25: RPPULOON | L25: 0 | M25: 0
B26: RPPTOUON | C26: 1582802.426 | D26: 208931.2907 | E26: 0.1320008659 | K26: RPPULOOVN | L26: 0 | M26: 0
B27: RETAIL | L27: =SUM(L18:L26) -> 1 | M27: =SUM(M18:M26) -> 10473421.94
B28: NSLS | C28: 4075837.762 | D28: 119481.8698 | E28: 0.02931467758
B29: INTERVAL
B30: HOEP | C30: 6734201.641 | D30: 195352.9543 | E30: 0.02900907408
B31: Grand Total | C31: 20617283.89 | D31: 1123256.02 | E31: 0.0544812802 | K31: Global Adjustment | L31: per kWh
C32: =C31/C11-1 -> -0.04800962573 | K32: Class B - GA actual8 | L32: =B69/100 -> 0.07400000095 | N32: GA Posted Price
K33: Class B - GA actual IESO billed | L33: =+M33/M8 -> 0.05575397061 | M33: =B76 -> 911384.6 | N33: GA Billed by IESO CT 148
A38: RPP COP Volume and Price Data
B39: bill_year | C39: 2018
B40: bill_month | C40: 12
B42: Row Labels | C42: usagebilled | D42: amountbilled | E42: Rate
B43: RPPTIERED | C43: 1197122.368 | D43: 34944.55273 | E43: =D43/C43 -> 0.02919046012
B44: RPPTOU | C44: 8605158.12 | D44: 234418.4791 | E44: 0.02724162366
B45: Grand Total | C45: 9802280.488 | D45: 269363.0318
C47: =SUM(C21:C26)-C45 -> 4963.994977
C48: =C47/C45 -> 0.0005064122562
A60: Year | B60: 2018
A62: Class A | B62: Value
A63: kWh
A64: 201812 | B64: 5310488.18
A67: ga_actual | B67: year
A68: month | B68: 2018
A69: 201812 | B69: 7.400000095
A72: chargetype | B72: 148
A74: Sum of chargeamount | B74: year
A75: month | B75: 2018
A76: 201812 | B76: 911384.6

Sheet I25 Input Rev 12 Init
A1: Reverse IESO Posted
A5: =Admin!B41 -> 201812
A6: RPP Revenue Prices | B6: kWh Volumes | C6: $ RPP Settlement
A7: RPPTiered_1 | B7: 626102.3 | C7: 30652.28
A8: RPPTiered_2 | B8: 451400.91 | C8: 16682.37
A9: RPPTOU_MID | B9: 1673179.37 | C9: 53294.59
A10: RPPTOU_OFF | B10: 5337917.77 | C10: 324810.51
A11: RPPTOU_ON | B11: 1699858.38 | C11: -10445.33
A12: Grand Total | B12: 9788458.73 | C12: 414994.42

Sheet Rec1 1588 Commodity
A1: Lakefront Utilities Inc.
A2: =ProcessYear[Process Year]& " 1588 Commodity RSVA" -> 2018 1588 Commodity RSVA
A3: Commodity
B5: 4006-4055 | E5: 4705 | L5: 1588
B6: GL Revenue | C6: Unbilled | D6: Total Revenue | E6: Energy Cost (code 101) | F6: RPP GA (code 148) | G6: IESO RPP Settlement | H6: FIT/mFIT | I6: Misc | J6: IESO Code 118 - Energy Rebate | K6: Total Cost | L6: Variance | M6: Y.T.D. | N6: G.L. Balance
A7: Opening Balance
A8: January | B8: -1207295.28 | C8: =D8-B8 -> -170341.2071 | D8: =-'I1a ER Summary'!AF5 -> -1377636.487 | E8: ='I1a ER Summary'!K5 -> 783460.62 | F8: ='I1a ER Summary'!E5 -> 827732.7728 | G8: ='I1a ER Summary'!F5 -> -191257.4946 | H8: ='I1a ER Summary'!M5 -> 4045.37 | K8: =SUM(E8:J8) -> 1423981.268 | L8: =D8+K8 -> 46344.78113 | M8: =L8 -> 46344.78113 | N8: =N7+L8 -> 46344.78113
A9: February | B9: -1373808.28 | C9: =D9-B9 -> 334316.3297 | D9: =-'I1a ER Summary'!AF6 -> -1039491.95 | E9: ='I1a ER Summary'!K6 -> 395293.48 | F9: ='I1a ER Summary'!E6 -> 798768.5989 | G9: ='I1a ER Summary'!F6 -> -182791.9765 | H9: ='I1a ER Summary'!M6 -> 2384.56 | K9: 1013654.662 | L9: -25837.28785 | M9: =M8+L9 -> 20507.49328 | N9: =N8+L9 -> 20507.49328
A10: March | B10: -1113004.46 | C10: 41571.83674 | D10: =-'I1a ER Summary'!AF7 -> -1071432.623 | E10: ='I1a ER Summary'!K7 -> 375756.1 | F10: ='I1a ER Summary'!E7 -> 960700.906 | G10: ='I1a ER Summary'!F7 -> -314886.9807 | H10: ='I1a ER Summary'!M7 -> 7787.83 | K10: 1029357.855 | L10: -42074.768 | M10: =M9+L10 -> -21567.27472 | N10: -21567.27472
A11: April | B11: -990491.98 | C11: -216752.1701 | D11: =-'I1a ER Summary'!AF8 -> -1207244.15 | E11: ='I1a ER Summary'!K8 -> 608147.27 | F11: ='I1a ER Summary'!E8 -> 964546.9914 | G11: ='I1a ER Summary'!F8 -> -408704.3577 | H11: ='I1a ER Summary'!M8 -> 15840.3 | K11: 1179830.204 | L11: -27413.94636 | M11: -48981.22108 | N11: -48981.22108
A12: May | B12: -1238019.74 | C12: 421458.5818 | D12: =-'I1a ER Summary'!AF9 -> -816561.1582 | E12: ='I1a ER Summary'!K9 -> 251072.58 | F12: ='I1a ER Summary'!E9 -> 871101.1238 | G12: ='I1a ER Summary'!F9 -> -297101.7841 | H12: ='I1a ER Summary'!M9 -> 12472.73 | K12: 837544.6497 | L12: 20983.49155 | M12: -27997.72953 | N12: -27997.72953
A13: June | B13: -774309.37 | C13: -148788.915 | D13: =-'I1a ER Summary'!AF10 -> -923098.285 | E13: ='I1a ER Summary'!K10 -> 347679.95 | F13: ='I1a ER Summary'!E10 -> 988300.2611 | G13: ='I1a ER Summary'!F10 -> -437635.2292 | H13: ='I1a ER Summary'!M10 -> 16313.97 | K13: 914658.9519 | L13: -8439.333059 | M13: -36437.06259 | N13: -36437.06259
A14: July | B14: -902592.96 | C14: -365519.8894 | D14: =-'I1a ER Summary'!AF11 -> -1268112.849 | E14: ='I1a ER Summary'!K11 -> 684072.42 | F14: ='I1a ER Summary'!E11 -> 836566.1103 | G14: ='I1a ER Summary'!F11 -> -256235.0653 | H14: ='I1a ER Summary'!M11 -> 30135.5 | K14: 1294538.965 | L14: 26426.11565 | M14: -10010.94694 | N14: -10010.94694
A15: August | B15: -1266251.66 | C15: -8841.2087 | D15: =-'I1a ER Summary'!AF12 -> -1275092.869 | E15: ='I1a ER Summary'!K12 -> 697098.07 | F15: ='I1a ER Summary'!E12 -> 807024.2527 | G15: ='I1a ER Summary'!F12 -> -257694.7483 | H15: ='I1a ER Summary'!M12 -> 25518.65 | K15: 1271946.224 | L15: -3146.644351 | M15: -13157.59129 | N15: -13157.59129
A16: September | B16: -1279467.72 | C16: 173083.9753 | D16: =-'I1a ER Summary'!AF13 -> -1106383.745 | E16: ='I1a ER Summary'!K13 -> 611381.56 | F16: ='I1a ER Summary'!E13 -> 778298.685 | G16: ='I1a ER Summary'!F13 -> -268756.8601 | H16: ='I1a ER Summary'!M13 -> 21043.93 | K16: 1141967.315 | L16: 35583.57023 | M16: 22425.97894 | N16: 22425.97894
A17: October | B17: -1156296.46 | C17: 255991.0845 | D17: =-'I1a ER Summary'!AF14 -> -900305.3755 | E17: ='I1a ER Summary'!K14 -> 284016.5 | F17: ='I1a ER Summary'!E14 -> 1052721.744 | G17: ='I1a ER Summary'!F14 -> -474441.5385 | H17: ='I1a ER Summary'!M14 -> 4535.94 | K17: 866832.6452 | L17: -33472.73031 | M17: -11046.75137 | N17: -11046.75137
A18: November | B18: -869604.9 | C18: -240250.9507 | D18: =-'I1a ER Summary'!AF15 -> -1109855.851 | E18: ='I1a ER Summary'!K15 -> 544797.13 | F18: ='I1a ER Summary'!E15 -> 971563.3853 | G18: ='I1a ER Summary'!F15 -> -402704.6633 | H18: ='I1a ER Summary'!M15 -> 4639.74 | K18: 1118295.592 | L18: 8439.741208 | M18: -2607.010163 | N18: -2607.010163
A19: December | B19: -1106837.35 | C19: -16418.67028 | D19: =-'I1a ER Summary'!AF16 -> -1123256.02 | E19: ='I1a ER Summary'!K16 -> 611525.75 | F19: ='I1a ER Summary'!E16 -> 775033.2333 | G19: ='I1a ER Summary'!F16 -> -199511.8823 | H19: ='I1a ER Summary'!M16 -> 5487.71 | K19: 1192534.811 | L19: 69278.7907 | M19: 66671.78054 | N19: 66671.78054
B20: =SUM(B8:B19) -> -13277980.16 | C20: =SUM(C8:C19) -> 59508.79689 | D20: -13218471.36 | E20: 6194301.43 | F20: 10632358.06 | G20: -3691722.581 | H20: 150206.23 | I20: 0 | J20: 0 | K20: 13285143.14 | L20: 66671.78054
A22: Per GL | F22: 9149999 | G22: -4238715.66
A23: Adjustments | F23: =F20-F22 -> 1482359.064 | G23: =G20-G22 -> 546993.0794
F25: 4705-0002 | G25: 4705-0001
E28: diff | F28: =F23+'Rec2 1589 Class B'!J23 -> 2089998.36

Sheet Rec2 1589 Class B
A1: Lakefront Utilities Inc.
A2: =ProcessYear[Process Year]& " 1589 ClassB RSVA" -> 2018 1589 ClassB RSVA
A3: Global Adjustment Class B Only
B5: 4006-4055 | E5: 4707 | K5: 1589
B6: Revenue - Class B only | C6: Unbilled | D6: Total Revenue | E6: IESO Code 148 | F6: RPP GA (code 148) | G6: Class B GA (Code 148) | H6: Class B Deferral | I6: Misc | J6: Class B GA | K6: Variance | L6: Y.T.D. | M6: G.L. Balance
A7: Opening Balance
A8: January | B8: -516913.57 | C8: =D8-B8 -> -16090.20843 | D8: -533003.7784 | E8: ='I1a ER Summary'!Q5 -> 1249604.37 | F8: =-'Rec1 1588 Commodity'!F8 -> -827732.7728 | G8: =E8+F8 -> 421871.5972 | J8: =SUM(G8:I8) -> 421871.5972 | K8: =D8+J8 -> -111132.1812 | L8: =K8 -> -111132.1812 | M8: =M7+K8 -> -111132.1812
A9: February | B9: -513184.09 | C9: =D9-B9 -> 86797.50784 | D9: -426386.5822 | E9: ='I1a ER Summary'!Q6 -> 1250565.67 | F9: =-'Rec1 1588 Commodity'!F9 -> -798768.5989 | G9: =E9+F9 -> 451797.0711 | J9: =SUM(G9:I9) -> 451797.0711 | K9: =D9+J9 -> 25410.48896 | L9: =L8+K9 -> -85721.69227 | M9: =M8+K9 -> -85721.69227
A10: March | B10: -451246.93 | C10: -19544.26167 | D10: -470791.1917 | E10: ='I1a ER Summary'!Q7 -> 1512535.39 | F10: =-'Rec1 1588 Commodity'!F10 -> -960700.906 | G10: 551834.484 | J10: 551834.484 | K10: 81043.29233 | L10: =L9+K10 -> -4678.399944 | M10: -4678.399944
A11: April | B11: -425140.82 | C11: -98164.08563 | D11: -523304.9056 | E11: ='I1a ER Summary'!Q8 -> 1683605.45 | F11: =-'Rec1 1588 Commodity'!F11 -> -964546.9914 | G11: 719058.4586 | J11: 719058.4586 | K11: 195753.553 | L11: 191075.153 | M11: 191075.153
A12: May | B12: -515284.21 | C12: -15057.13723 | D12: -530341.3472 | E12: ='I1a ER Summary'!Q9 -> 1448166.72 | F12: =-'Rec1 1588 Commodity'!F12 -> -871101.1238 | G12: 577065.5962 | J12: 577065.5962 | K12: 46724.24896 | L12: 237799.402 | M12: 237799.402
A13: June | B13: -511188.49 | C13: -178665.8311 | D13: -689854.3211 | E13: ='I1a ER Summary'!Q10 -> 1627077.93 | F13: =-'Rec1 1588 Commodity'!F13 -> -988300.2611 | G13: 638777.6689 | J13: 638777.6689 | K13: -51076.65224 | L13: 186722.7497 | M13: 186722.7497
A14: July | B14: -698939.81 | C14: 177253.2063 | D14: -521686.6037 | E14: ='I1a ER Summary'!Q11 -> 1313572.16 | F14: =-'Rec1 1588 Commodity'!F14 -> -836566.1103 | G14: 477006.0497 | J14: 477006.0497 | K14: -44680.55397 | L14: 142042.1958 | M14: 142042.1958
A15: August | B15: -523065.82 | C15: 61212.91199 | D15: -461852.908 | E15: ='I1a ER Summary'!Q12 -> 1267821.97 | F15: =-'Rec1 1588 Commodity'!F15 -> -807024.2527 | G15: 460797.7173 | J15: 460797.7173 | K15: -1055.190665 | L15: 140987.0051 | M15: 140987.0051
A16: September | B16: -480087.16 | C16: -8231.007521 | D16: -488318.1675 | E16: ='I1a ER Summary'!Q13 -> 1240008.5 | F16: =-'Rec1 1588 Commodity'!F16 -> -778298.685 | G16: 461709.815 | J16: 461709.815 | K16: -26608.35254 | L16: 114378.6526 | M16: 114378.6526
A17: October | B17: -478434.35 | C17: 9852.329953 | D17: -468582.02 | E17: ='I1a ER Summary'!Q14 -> 1663646.19 | F17: =-'Rec1 1588 Commodity'!F17 -> -1052721.744 | G17: 610924.4463 | J17: 610924.4463 | K17: 142342.4263 | L17: 256721.0789 | M17: 256721.0789
A18: November | B18: -472055.97 | C18: -143140.1678 | D18: -615196.1378 | E18: ='I1a ER Summary'!Q15 -> 1573108.64 | F18: =-'Rec1 1588 Commodity'!F18 -> -971563.3853 | G18: 601545.2547 | J18: 601545.2547 | K18: -13650.88306 | L18: 243070.1958 | M18: 243070.1958
A19: December | B19: -618491.43 | C19: 105629.4124 | D19: -512862.0176 | E19: ='I1a ER Summary'!Q16 -> 911384.6 | F19: =-'Rec1 1588 Commodity'!F19 -> -775033.2333 | G19: 136351.3667 | J19: 136351.3667 | K19: -376510.6509 | L19: -133440.4552 | M19: -133440.4552
B20: =SUM(B8:B19) -> -6204032.65 | C20: -38147.33094 | D20: -6242179.981 | E20: 16741097.59 | F20: -10632358.06 | G20: 6108739.526 | H20: 0 | I20: 0 | J20: 6108739.526 | K20: -133440.4552
A22: Per GL | J22: 5501100.23
A23: Adjustments | J23: =J20-J22 -> 607639.2958
E24: Explanation of Difference
D25: Per GL 1588 | E25: ='Rec1 1588 Commodity'!F22 -> 9149999 | J25: 4707-0000
D26: Per GL 1589 | E26: =J22 -> 5501100.23
E27: =SUM(E25:E26) -> 14651099.23 | I27: diff | J27: =J23+'Rec1 1588 Commodity'!F23 -> 2089998.36
D29: Difference Feb 2018 Adjust | E29: =E20-E27 -> 2089998.36

Sheet Rev1UFE
A1: Lakefront Utilities Inc.
A2: 2023 RSVA
A3: Unaccounted for Energy Summary For USoA 1588
C5: Total Energy Purchases | D5: Total Retail Sales | E5: Uaccounted for Energy | F5: UFE | G5: Total Energy Purchases | H5: Total Retail Sales | I5: UFE | J5: UFE | N5: Energy Purchases RPP and non-RPP | P5: RPP Settlement Amounts | T5: Energy Sales Revenue | V5: Energy Sales Volumes | X5: Energy Sales/kWh
B6: Version | C6: kWH | D6: kWh | E6: kWh | F6: % | G6: $ Amount | H6: $ Amount | I6: $ Amount | J6: % | K6: Revenue Per kWh | L6: UFE $ Cost per kWh | N6: Energy for RPP and non-RPP | O6: Final GA for RPP | P6: Initial Settlement | Q6: First True-Up | R6: Final True-Up | S6: RPP Settlement Amount | T6: RPP Sales | U6: Non-RPP Sales | V6: RPP kWh | W6: Non-RPP kWH | X6: RPP | Y6: Non-RPP
A7: January | B7: Final | C7: ='I1a ER Summary'!S5 -> 24349175.41 | D7: ='I1a ER Summary'!T5 -> 24171467.22 | E7: =+C7-D7 -> 177708.1865 | F7: =+E7/C7 -> 0.007298324624 | G7: =+N7+O7+S7 -> 1423981.268 | H7: =+T7+U7 -> 1377636.487 | I7: =+G7-H7 -> 46344.78113 | J7: =+I7/G7 -> 0.03254592048 | K7: =+H7/D7 -> 0.05699432617 | L7: =+I7/E7 -> 0.260791481 | N7: ='I1a ER Summary'!O5 -> 787505.99 | O7: ='I1a ER Summary'!E5 -> 827732.7728 | P7: 0 | Q7: 0 | R7: ='I1a ER Summary'!F5 -> -191257.4946 | S7: =SUM(P7:R7) -> -191257.4946 | T7: ='I1a ER Summary'!C5 -> 1015753.537 | U7: ='I1a ER Summary'!AH5 -> 361882.9497 | V7: ='I1a ER Summary'!AJ5 -> 12163240.33 | W7: ='I1a ER Summary'!AK5 -> 12008226.89 | X7: =+T7/V7 -> 0.08351010993 | Y7: 0.03013625184
A8: February | B8: Final | C8: ='I1a ER Summary'!S6 -> 20956473.44 | D8: ='I1a ER Summary'!T6 -> 21282435.32 | E8: =+C8-D8 -> -325961.8757 | F8: =+E8/C8 -> -0.01555423324 | G8: =+N8+O8+S8 -> 1013654.662 | H8: =+T8+U8 -> 1039491.95 | I8: =+G8-H8 -> -25837.28785 | J8: =+I8/G8 -> -0.02548924087 | K8: =+H8/D8 -> 0.0488427163 | L8: 0.07926475386 | N8: ='I1a ER Summary'!O6 -> 397678.04 | O8: ='I1a ER Summary'!E6 -> 798768.5989 | P8: 0 | Q8: 0 | R8: ='I1a ER Summary'!F6 -> -182791.9765 | S8: -182791.9765 | T8: ='I1a ER Summary'!C6 -> 809696.5338 | U8: ='I1a ER Summary'!AH6 -> 229795.4165 | V8: ='I1a ER Summary'!AJ6 -> 9983387.481 | W8: ='I1a ER Summary'!AK6 -> 11299047.84 | X8: 0.0811043882 | Y8: 0.02033759126
A9: March | B9: Final | C9: ='I1a ER Summary'!S7 -> 22201541.26 | D9: ='I1a ER Summary'!T7 -> 22357425.17 | E9: -155883.9064 | F9: -0.007021310122 | G9: 1029357.855 | H9: 1071432.623 | I9: -42074.768 | J9: -0.04087477235 | K9: 0.04792289878 | L9: 0.2699109163 | N9: ='I1a ER Summary'!O7 -> 383543.93 | O9: ='I1a ER Summary'!E7 -> 960700.906 | P9: 0 | Q9: 0 | R9: ='I1a ER Summary'!F7 -> -314886.9807 | S9: -314886.9807 | T9: ='I1a ER Summary'!C7 -> 842583.1691 | U9: ='I1a ER Summary'!AH7 -> 228849.4542 | V9: ='I1a ER Summary'!AJ7 -> 10233000.34 | W9: ='I1a ER Summary'!AK7 -> 12124424.83 | X9: 0.08233979686 | Y9: 0.01887507716
A10: April | B10: Final | C10: ='I1a ER Summary'!S8 -> 20981036.6 | D10: ='I1a ER Summary'!T8 -> 22196816.68 | E10: -1215780.084 | F10: -0.05794661662 | G10: 1179830.204 | H10: 1207244.15 | I10: -27413.94636 | J10: -0.02323550141 | K10: 0.05438816598 | L10: 0.02254844171 | N10: ='I1a ER Summary'!O8 -> 623987.57 | O10: ='I1a ER Summary'!E8 -> 964546.9914 | P10: 0 | Q10: 0 | R10: ='I1a ER Summary'!F8 -> -408704.3577 | S10: -408704.3577 | T10: ='I1a ER Summary'!C8 -> 805902.9397 | U10: ='I1a ER Summary'!AH8 -> 401341.2104 | V10: ='I1a ER Summary'!AJ8 -> 10484579.9 | W10: ='I1a ER Summary'!AK8 -> 11712236.79 | X10: 0.07686554421 | Y10: 0.03426682859
A11: May | B11: Final | C11: ='I1a ER Summary'!S9 -> 20130156.2 | D11: ='I1a ER Summary'!T9 -> 20238962.5 | E11: -108806.3044 | F11: -0.005405139599 | G11: 837544.6497 | H11: 816561.1582 | I11: 20983.49155 | J11: 0.0250535796 | K11: 0.04034599886 | L11: -0.192851799 | N11: ='I1a ER Summary'!O9 -> 263545.31 | O11: ='I1a ER Summary'!E9 -> 871101.1238 | P11: 0 | Q11: 0 | R11: ='I1a ER Summary'!F9 -> -297101.7841 | S11: -297101.7841 | T11: ='I1a ER Summary'!C9 -> 669685.4261 | U11: ='I1a ER Summary'!AH9 -> 146875.7321 | V11: ='I1a ER Summary'!AJ9 -> 8138668.484 | W11: ='I1a ER Summary'!AK9 -> 12100294.02 | X11: 0.0822843967 | Y11: 0.01213819531
A12: June | B12: Final | C12: ='I1a ER Summary'!S10 -> 20065047.6 | D12: ='I1a ER Summary'!T10 -> 20720095.53 | E12: -655047.9288 | F12: -0.03264621853 | G12: 914658.9519 | H12: 923098.285 | I12: -8439.333059 | J12: -0.009226753908 | K12: 0.04455087013 | L12: 0.01288353522 | N12: ='I1a ER Summary'!O10 -> 363993.92 | O12: ='I1a ER Summary'!E10 -> 988300.2611 | P12: 0 | Q12: 0 | R12: ='I1a ER Summary'!F10 -> -437635.2292 | S12: -437635.2292 | T12: ='I1a ER Summary'!C10 -> 690967.3798 | U12: ='I1a ER Summary'!AH10 -> 232130.9051 | V12: ='I1a ER Summary'!AJ10 -> 8702858.487 | W12: ='I1a ER Summary'!AK10 -> 12017237.04 | X12: 0.0793954516 | Y12: 0.01931649549
A13: July | B13: Final | C13: ='I1a ER Summary'!S11 -> 23226874.08 | D13: ='I1a ER Summary'!T11 -> 23008952.05 | E13: 217922.0319 | F13: 0.00938232287 | G13: 1294538.965 | H13: 1268112.849 | I13: 26426.11565 | J13: 0.02041353437 | K13: 0.05511388988 | L13: 0.1212640843 | N13: ='I1a ER Summary'!O11 -> 714207.92 | O13: ='I1a ER Summary'!E11 -> 836566.1103 | P13: 0 | Q13: 0 | R13: ='I1a ER Summary'!F11 -> -256235.0653 | S13: -256235.0653 | T13: ='I1a ER Summary'!C11 -> 907735.5762 | U13: ='I1a ER Summary'!AH11 -> 360377.2732 | V13: ='I1a ER Summary'!AJ11 -> 10667796.46 | W13: ='I1a ER Summary'!AK11 -> 12341155.59 | X13: 0.0850911976 | Y13: 0.02920125838
A14: August | B14: Final | C14: ='I1a ER Summary'!S12 -> 23512417.02 | D14: ='I1a ER Summary'!T12 -> 23365026.48 | E14: 147390.5418 | F14: 0.006268625707 | G14: 1271946.224 | H14: 1275092.869 | I14: -3146.644351 | J14: -0.002473881593 | K14: 0.05457271234 | L14: -0.02134902493 | N14: ='I1a ER Summary'!O12 -> 722616.72 | O14: ='I1a ER Summary'!E12 -> 807024.2527 | P14: 0 | Q14: 0 | R14: ='I1a ER Summary'!F12 -> -257694.7483 | S14: -257694.7483 | T14: ='I1a ER Summary'!C12 -> 901044.3111 | U14: ='I1a ER Summary'!AH12 -> 374048.5576 | V14: ='I1a ER Summary'!AJ12 -> 10679403.35 | W14: ='I1a ER Summary'!AK12 -> 12685623.13 | X14: 0.08437215842 | Y14: 0.02948602159
A15: September | B15: Final | C15: ='I1a ER Summary'!S13 -> 21212066.05 | D15: ='I1a ER Summary'!T13 -> 21288708.31 | E15: -76642.26062 | F15: -0.003613144539 | G15: 1141967.315 | H15: 1106383.745 | I15: 35583.57023 | J15: 0.03115988502 | K15: 0.05197044971 | L15: -0.464281324 | N15: ='I1a ER Summary'!O13 -> 632425.49 | O15: ='I1a ER Summary'!E13 -> 778298.685 | P15: 0 | Q15: 0 | R15: ='I1a ER Summary'!F13 -> -268756.8601 | S15: -268756.8601 | T15: ='I1a ER Summary'!C13 -> 761008.8581 | U15: ='I1a ER Summary'!AH13 -> 345374.8866 | V15: ='I1a ER Summary'!AJ13 -> 9119210.622 | W15: ='I1a ER Summary'!AK13 -> 12169497.69 | X15: 0.08345117682 | Y15: 0.02838037324
A16: October | B16: Final | C16: ='I1a ER Summary'!S14 -> 20778556.5 | D16: ='I1a ER Summary'!T14 -> 20863331.39 | E16: -84774.8887 | F16: -0.004079921947 | G16: 866832.6452 | H16: 900305.3755 | I16: -33472.73031 | J16: -0.03861498583 | K16: 0.04315252242 | L16: 0.3948425156 | N16: ='I1a ER Summary'!O14 -> 288552.44 | O16: ='I1a ER Summary'!E14 -> 1052721.744 | P16: 0 | Q16: 0 | R16: ='I1a ER Summary'!F14 -> -474441.5385 | S16: -474441.5385 | T16: ='I1a ER Summary'!C14 -> 726572.912 | U16: ='I1a ER Summary'!AH14 -> 173732.4635 | V16: ='I1a ER Summary'!AJ14 -> 8781776.681 | W16: ='I1a ER Summary'!AK14 -> 12081554.71 | X16: 0.08273643687 | Y16: 0.01437997573
A17: November | B17: Final | C17: ='I1a ER Summary'!S15 -> 21572707.84 | D17: ='I1a ER Summary'!T15 -> 21453937.35 | E17: 118770.4949 | F17: 0.005505590479 | G17: 1118295.592 | H17: 1109855.851 | I17: 8439.741208 | J17: 0.007546968144 | K17: 0.05173203561 | L17: 0.07105924089 | N17: ='I1a ER Summary'!O15 -> 549436.87 | O17: ='I1a ER Summary'!E15 -> 971563.3853 | P17: 0 | Q17: 0 | R17: ='I1a ER Summary'!F15 -> -402704.6633 | S17: -402704.6633 | T17: ='I1a ER Summary'!C15 -> 822484.0093 | U17: ='I1a ER Summary'!AH15 -> 287371.8414 | V17: ='I1a ER Summary'!AJ15 -> 8067424.936 | W17: ='I1a ER Summary'!AK15 -> 13386512.41 | X17: 0.1019512441 | Y17: 0.0214672674
A18: December | B18: Final | C18: ='I1a ER Summary'!S16 -> 21657029.78 | D18: ='I1a ER Summary'!T16 -> 20617283.89 | E18: 1039745.894 | F18: 0.04800962573 | G18: 1192534.811 | H18: 1123256.02 | I18: 69278.7907 | J18: 0.05809372612 | K18: 0.0544812802 | L18: 0.06663050183 | N18: ='I1a ER Summary'!O16 -> 617013.46 | O18: ='I1a ER Summary'!E16 -> 775033.2333 | P18: 0 | Q18: 0 | R18: ='I1a ER Summary'!F16 -> -199511.8823 | S18: -199511.8823 | T18: ='I1a ER Summary'!C16 -> 863334.8852 | U18: ='I1a ER Summary'!AH16 -> 259921.1351 | V18: ='I1a ER Summary'!AJ16 -> 8224442.058 | W18: ='I1a ER Summary'!AK16 -> 12392841.83 | X18: 0.1049718484 | Y18: 0.02097348927
A19: Total | C19: =SUM(C7:C18) -> 260643081.8 | D19: =SUM(D7:D18) -> 261564441.9 | E19: =SUM(E7:E18) -> -921360.0997 | F19: -0.003534949378 | G19: =SUM(G7:G18) -> 13285143.14 | H19: =SUM(H7:H18) -> 13218471.36 | I19: =SUM(I7:I18) -> 66671.78054 | J19: 0.005018521804 | K19: 0.05053619394 | L19: -0.0723623484 | N19: =SUM(N7:N18) -> 6344507.66 | O19: 10632358.06 | P19: 0 | Q19: 0 | R19: -3691722.581 | S19: -3691722.581 | T19: 11382095.66 | U19: 3626059.63 | V19: 115245789.1 | W19: 146318652.8 | X19: 0.09876365766 | Y19: 0.02478193697

Sheet Rev2 GA Purchases
A1: Lakefront Utilities Inc.
A2: 2023 RSVA
A3: Non-RPP Global Adjustment
B5: Non-RPP Class B GA | E5: RPP Class B GA | H5: Total Class B GA | M5: GA non-RPP Cost Amounts Booked
B6: Cost Amount | C6: kWh | D6: Avg Cost | E6: Cost Amount | F6: kWh | G6: Avg Cost | H6: Cost Amount | I6: kWh | J6: Avg Cost | M6: G/L 4707 | N6: True-Ups | O6: Total | P6: Difference
A7: January | B7: ='Rec2 1589 Class B'!J8 -> 421871.5972 | C7: ='I1a ER Summary'!AK5 -> 12008226.89 | D7: =+B7/C7 -> 0.03513188093 | E7: ='Rec1 1588 Commodity'!F8 -> 827732.7728 | F7: ='I1a ER Summary'!AJ5 -> 12163240.33 | G7: =+E7/F7 -> 0.0680519952 | H7: =+B7+E7 -> 1249604.37 | I7: 24171467.22 | J7: =+H7/I7 -> 0.05169749765 | M7: 368354.797 | O7: =+M7+N7 -> 368354.797 | P7: =+O7-B7 -> -53516.80023
A8: February | B8: ='Rec2 1589 Class B'!J9 -> 451797.0711 | C8: ='I1a ER Summary'!AK6 -> 11299047.84 | D8: 0.03998541096 | E8: ='Rec1 1588 Commodity'!F9 -> 798768.5989 | F8: ='I1a ER Summary'!AJ6 -> 9983387.481 | G8: 0.08000977628 | H8: 1250565.67 | I8: 21282435.32 | J8: 0.0587604591 | M8: 517400.4514 | O8: =+M8+N8 -> 517400.4514 | P8: 65603.38025
A9: March | B9: ='Rec2 1589 Class B'!J10 -> 551834.484 | C9: ='I1a ER Summary'!AK7 -> 12124424.83 | D9: 0.04551428144 | E9: ='Rec1 1588 Commodity'!F10 -> 960700.906 | F9: ='I1a ER Summary'!AJ7 -> 10233000.34 | G9: 0.09388262233 | H9: 1512535.39 | I9: 22357425.17 | J9: 0.06765248586 | M9: 550805.5586 | O9: =+N9+M9 -> 550805.5586 | P9: -1028.925394
A10: April | B10: ='Rec2 1589 Class B'!J11 -> 719058.4586 | C10: ='I1a ER Summary'!AK8 -> 11712236.79 | D10: 0.06139377744 | E10: ='Rec1 1588 Commodity'!F11 -> 964546.9914 | F10: ='I1a ER Summary'!AJ8 -> 10484579.9 | G10: 0.09199672288 | H10: 1683605.45 | I10: 22196816.68 | J10: 0.07584895951 | M10: 582775.4046 | O10: 582775.4046 | P10: -136283.054
A11: May | B11: ='Rec2 1589 Class B'!J12 -> 577065.5962 | C11: ='I1a ER Summary'!AK9 -> 12100294.02 | D11: 0.04769021275 | E11: ='Rec1 1588 Commodity'!F12 -> 871101.1238 | F11: ='I1a ER Summary'!AJ9 -> 8138668.484 | G11: 0.1070323881 | H11: 1448166.72 | I11: 20238962.5 | J11: 0.07155340693 | M11: 606116.3272 | O11: 606116.3272 | P11: 29050.731
A12: June | B12: ='Rec2 1589 Class B'!J13 -> 638777.6689 | C12: ='I1a ER Summary'!AK10 -> 12017237.04 | D12: 0.05315511932 | E12: ='Rec1 1588 Commodity'!F13 -> 988300.2611 | F12: ='I1a ER Summary'!AJ10 -> 8702858.487 | G12: 0.1135604195 | H12: 1627077.93 | I12: 20720095.53 | J12: 0.07852656508 | M12: 513680.4991 | O12: 513680.4991 | P12: -125097.1698
A13: July | B13: ='Rec2 1589 Class B'!J14 -> 477006.0497 | C13: ='I1a ER Summary'!AK11 -> 12341155.59 | D13: 0.03865165187 | E13: ='Rec1 1588 Commodity'!F14 -> 836566.1103 | F13: ='I1a ER Summary'!AJ11 -> 10667796.46 | G13: 0.0784197668 | H13: 1313572.16 | I13: 23008952.05 | J13: 0.05708961265 | M13: 337855.3545 | O13: 337855.3545 | P13: -139150.6952
A14: August | B14: ='Rec2 1589 Class B'!J15 -> 460797.7173 | C14: ='I1a ER Summary'!AK12 -> 12685623.13 | D14: 0.0363244054 | E14: ='Rec1 1588 Commodity'!F15 -> 807024.2527 | F14: ='I1a ER Summary'!AJ12 -> 10679403.35 | G14: 0.07556829032 | H14: 1267821.97 | I14: 23365026.48 | J14: 0.05426152507 | M14: 484646.4102 | O14: 484646.4102 | P14: 23848.69286
A15: September | B15: ='Rec2 1589 Class B'!J16 -> 461709.815 | C15: ='I1a ER Summary'!AK13 -> 12169497.69 | D15: 0.0379399238 | E15: ='Rec1 1588 Commodity'!F16 -> 778298.685 | F15: ='I1a ER Summary'!AJ13 -> 9119210.622 | G15: 0.08534715528 | H15: 1240008.5 | I15: 21288708.31 | J15: 0.05824723989 | M15: 351972.6143 | O15: 351972.6143 | P15: -109737.2007
A16: October | B16: ='Rec2 1589 Class B'!J17 -> 610924.4463 | C16: ='I1a ER Summary'!AK14 -> 12081554.71 | D16: 0.05056670777 | E16: ='Rec1 1588 Commodity'!F17 -> 1052721.744 | F16: ='I1a ER Summary'!AJ14 -> 8781776.681 | G16: 0.1198757133 | H16: 1663646.19 | I16: 20863331.39 | J16: 0.07974019868 | M16: 508645.545 | O16: 508645.545 | P16: -102278.9013
A17: November | B17: ='Rec2 1589 Class B'!J18 -> 601545.2547 | C17: ='I1a ER Summary'!AK15 -> 13386512.41 | D17: 0.04493666732 | E17: ='Rec1 1588 Commodity'!F18 -> 971563.3853 | F17: ='I1a ER Summary'!AJ15 -> 8067424.936 | G17: 0.1204304215 | H17: 1573108.64 | I17: 21453937.35 | J17: 0.07332493867 | M17: 446213.3479 | O17: 446213.3479 | P17: -155331.9068
A18: December | B18: ='Rec2 1589 Class B'!J19 -> 136351.3667 | C18: ='I1a ER Summary'!AK16 -> 12392841.83 | D18: 0.01100242935 | E18: ='Rec1 1588 Commodity'!F19 -> 775033.2333 | F18: ='I1a ER Summary'!AJ16 -> 8224442.058 | G18: 0.09423535698 | H18: 911384.6 | I18: 20617283.89 | J18: 0.04420488194 | M18: 408485.058 | O18: 408485.058 | P18: 272133.6913
B19: =SUM(B7:B18) -> 6108739.526 | C19: =SUM(C7:C18) -> 146318652.8 | D19: 0.04174956105 | E19: =SUM(E7:E18) -> 10632358.06 | F19: =SUM(F7:F18) -> 115245789.1 | G19: 0.09225810457 | H19: =SUM(H7:H18) -> 16741097.59 | I19: =SUM(I7:I18) -> 261564441.9 | J19: 0.06400372111 | M19: =SUM(M7:M18) -> 5676951.368 | N19: =SUM(N7:N18) -> 0 | O19: =SUM(O7:O18) -> 5676951.368 | P19: =SUM(P7:P18) -> -431788.158

Sheet Rev3 GA Analysis
F2: Consumption Data Excluding for Loss Factor (Data to agree with RRR as applicable)
F3: Year | H3: =ProcessYear[Process Year] -> 2018
F4: Total Metered excluding WMP | G4: C = A+B | H4: =H5+H6 -> 261564441.9 | I4: kWh | J4: 1
F5: RPP | G5: A | H5: ='Rev2 GA Purchases'!F19 -> 115245789.1 | I5: kWh | J5: 0.5303752085
F6: Non RPP | G6: B = D+E | H6: =H7+H8 -> 146318652.8 | I6: kWh | J6: 0.4696247915
F7: Non-RPP Class A | G7: D | H7: ='I1a ER Summary'!AN17 -> 75373730.26 | I7: kWh | J7: 0.1815554551
F8: Non-RPP Class B* | G8: E | H8: ='Rev2 GA Purchases'!C19-H7 -> 70944922.5 | I8: kWh | J8: 0.2880693364
F9: *Non-RPP Class B consumption reported in this table is not expected to directly agree with the Non-RPP Class B Including Loss Adjusted Billed Consumption in the GA Analysis of Expected Balance table below. The difference should be equal to the loss factor.
A12: Note 4 | B12: Analysis of Expected GA Amount
B13: Year | C13: =ProcessYear[Process Year] -> 2018
B14: Calendar Month | C14: Non-RPP Class B Including Loss Factor Billed Consumption (kWh) | D14: Deduct Previous Month Unbilled Loss Adjusted Consumption (kWh) | E14: Add Current Month Unbilled Loss Adjusted Consumption (kWh) | F14: Non-RPP Class B Including Loss Adjusted Consumption, Adjusted for Unbilled (kWh) | G14: GA Rate Billed ($/kWh) | H14: $ Consumption at GA Rate Billed | I14: GA Actual Rate Paid ($/kWh) | J14: $ Consumption at Actual Rate Paid | K14: Expected GA Variance ($) | M14: Revenue per Continuity Schedule | N14: Difference | P14: Expense per Continuity Schedule | Q14: Difference | T14: 2018
C15: F | D15: G | E15: H | F15: I = F-G+H | G15: J | H15: K = I*J | I15: L | J15: M = I*L | K15: =M-K | N15: =H-M | Q15: =J-P | S15: ($/kWh) | T15: First Estimate | U15: Second Estimate | V15: Actual
B16: January | C16: ='I1a ER Summary'!AP5 -> 6207277.409 | F16: =C16-D16+E16 -> 6207277.409 | G16: =T16 -> 0.08777 | H16: =F16*G16 -> 544812.7382 | I16: =V16 -> 0.06736 | J16: =F16*I16 -> 418122.2063 | K16: =J16-H16 -> -126690.5319 | M16: ='Rec2 1589 Class B'!D8 -> -533003.7784 | N16: =H16+M16 -> 11808.95978 | P16: ='Rec2 1589 Class B'!J8 -> 421871.5972 | Q16: =J16-P16 -> -3749.390918 | S16: January | T16: =87.77/1000 -> 0.08777 | U16: =63.7/1000 -> 0.0637 | V16: =67.36/1000 -> 0.06736
B17: February | C17: ='I1a ER Summary'!AP6 -> 5772558.445 | F17: =C17-D17+E17 -> 5772558.445 | G17: =T17 -> 0.07333 | H17: =F17*G17 -> 423301.7108 | I17: =V17 -> 0.08167 | J17: =F17*I17 -> 471444.8482 | K17: =J17-H17 -> 48143.13743 | M17: ='Rec2 1589 Class B'!D9 -> -426386.5822 | N17: =H17+M17 -> -3084.871383 | P17: ='Rec2 1589 Class B'!J9 -> 451797.0711 | Q17: =J17-P17 -> 19647.77709 | S17: February | T17: =73.33/1000 -> 0.07333 | U17: =77.05/1000 -> 0.07705 | V17: =81.67/1000 -> 0.08167
B18: March | C18: ='I1a ER Summary'!AP7 -> 5875814.808 | F18: =C18-D18+E18 -> 5875814.808 | G18: 0.07877 | H18: =F18*G18 -> 462837.9325 | I18: 0.09481 | J18: =F18*I18 -> 557086.002 | K18: 94248.06953 | M18: ='Rec2 1589 Class B'!D10 -> -470791.1917 | N18: -7953.259213 | P18: ='Rec2 1589 Class B'!J10 -> 551834.484 | Q18: 5251.517988 | S18: March | T18: =78.77/1000 -> 0.07877 | U18: =85.95/1000 -> 0.08595 | V18: =94.81/1000 -> 0.09481
B19: April | C19: ='I1a ER Summary'!AP8 -> 5441669.917 | F19: =C19-D19+E19 -> 5441669.917 | G19: 0.0981 | H19: =F19*G19 -> 533827.8188 | I19: 0.09959 | J19: =F19*I19 -> 541935.907 | K19: 8108.088176 | M19: ='Rec2 1589 Class B'!D11 -> -523304.9056 | N19: 10522.91318 | P19: ='Rec2 1589 Class B'!J11 -> 719058.4586 | Q19: =J19-P19 -> -177122.5516 | S19: April | T19: =98.1/1000 -> 0.0981 | U19: =100.74/1000 -> 0.10074 | V19: =99.59/1000 -> 0.09959
B20: May | C20: ='I1a ER Summary'!AP9 -> 5392964.131 | F20: 5392964.131 | G20: 0.09392 | H20: 506507.1912 | I20: 0.10793 | J20: =F20*I20 -> 582062.6186 | K20: =J20-H20 -> 75555.42747 | M20: ='Rec2 1589 Class B'!D12 -> -530341.3472 | N20: -23834.15605 | P20: ='Rec2 1589 Class B'!J12 -> 577065.5962 | Q20: =J20-P20 -> 4997.022462 | S20: May | T20: =93.92/1000 -> 0.09392 | U20: =131.99/1000 -> 0.13199 | V20: =107.93/1000 -> 0.10793
B21: June | C21: ='I1a ER Summary'!AP10 -> 5627429.741 | F21: 5627429.741 | G21: 0.13336 | H21: 750474.0303 | I21: 0.11896 | J21: 669439.042 | K21: -81034.98828 | M21: ='Rec2 1589 Class B'!D13 -> -689854.3211 | N21: 60619.70918 | P21: ='Rec2 1589 Class B'!J13 -> 638777.6689 | Q21: 30661.37315 | S21: June | T21: =133.36/1000 -> 0.13336 | U21: =102.39/1000 -> 0.10239 | V21: =118.96/1000 -> 0.11896
B22: July | C22: ='I1a ER Summary'!AP11 -> 5872384.052 | F22: 5872384.052 | G22: 0.08502 | H22: 499270.0921 | I22: 0.07737 | J22: 454346.3541 | K22: -44923.738 | M22: ='Rec2 1589 Class B'!D14 -> -521686.6037 | N22: -22416.51153 | P22: ='Rec2 1589 Class B'!J14 -> 477006.0497 | Q22: -22659.69556 | S22: July | T22: =85.02/1000 -> 0.08502 | U22: =81.23/1000 -> 0.08123 | V22: =77.37/1000 -> 0.07737
B23: August | C23: ='I1a ER Summary'!AP12 -> 5839635.01 | F23: 5839635.01 | G23: 0.0779 | H23: 454907.5673 | I23: 0.0749 | J23: 437388.6623 | K23: -17518.90503 | M23: ='Rec2 1589 Class B'!D15 -> -461852.908 | N23: -6945.340721 | P23: ='Rec2 1589 Class B'!J15 -> 460797.7173 | Q23: -23409.05509 | S23: August | T23: =77.9/1000 -> 0.0779 | U23: =73.24/1000 -> 0.07324 | V23: =74.9/1000 -> 0.0749
B24: September | C24: ='I1a ER Summary'!AP13 -> 5402140.139 | F24: 5402140.139 | G24: 0.08424 | H24: 455076.2853 | I24: 0.08584 | J24: 463719.7095 | K24: 8643.424222 | M24: ='Rec2 1589 Class B'!D16 -> -488318.1675 | N24: -33241.88225 | P24: ='Rec2 1589 Class B'!J16 -> 461709.815 | Q24: 2009.89451 | S24: September | T24: =84.24/1000 -> 0.08424 | U24: =86.6/1000 -> 0.0866 | V24: =85.84/1000 -> 0.08584
B25: October | C25: ='I1a ER Summary'!AP14 -> 5333894.228 | F25: 5333894.228 | G25: 0.08921 | H25: 475836.7041 | I25: 0.12059 | J25: 643214.3049 | K25: 167377.6009 | M25: ='Rec2 1589 Class B'!D17 -> -468582.02 | N25: 7254.684007 | P25: ='Rec2 1589 Class B'!J17 -> 610924.4463 | Q25: 32289.85859 | S25: October | T25: =89.21/1000 -> 0.08921 | U25: =119.98/1000 -> 0.11998 | V25: =120.59/1000 -> 0.12059
B26: November | C26: ='I1a ER Summary'!AP15 -> 7096800.969 | F26: 7096800.969 | G26: 0.12235 | H26: 868293.5985 | I26: 0.09855 | J26: 699389.7355 | K26: -168903.8631 | M26: ='Rec2 1589 Class B'!D18 -> -615196.1378 | N26: 253097.4607 | P26: ='Rec2 1589 Class B'!J18 -> 601545.2547 | Q26: 97844.48073 | S26: November | T26: =122.35/1000 -> 0.12235 | U26: =105.4/1000 -> 0.1054 | V26: =98.55/1000 -> 0.09855
B27: December | C27: ='I1a ER Summary'!AP16 -> 7082353.648 | F27: 7082353.648 | G27: 0.09198 | H27: 651434.8886 | I27: 0.07404 | J27: 524377.4641 | K27: -127057.4244 | M27: ='Rec2 1589 Class B'!D19 -> -512862.0176 | N27: 138572.8709 | P27: ='Rec2 1589 Class B'!J19 -> 136351.3667 | Q27: 388026.0974 | S27: December | T27: =91.98/1000 -> 0.09198 | U27: =70.67/1000 -> 0.07067 | V27: =74.04/1000 -> 0.07404
B29: Net Change in Expected GA Balance in the Year (i.e. Transactions in the Year) | C29: =SUM(C16:C27) -> 70944922.5 | D29: 0 | E29: 0 | F29: =SUM(F16:F27) -> 70944922.5 | H29: =SUM(H16:H27) -> 6626580.558 | J29: =SUM(J16:J27) -> 6462526.855 | K29: =SUM(K16:K27) -> -164053.703 | M29: =SUM(M16:M28) -> -6242179.981 | N29: =SUM(N16:N28) -> 384400.5766 | P29: =SUM(P16:P28) -> 6108739.526 | Q29: =SUM(Q16:Q28) -> 353787.3287
C36: Annual Non-RPP Class B Wholesale kWh * | D36: Annual Non-RPP Class B Retail billed kWh | E36: Annual Unaccounted for Energy Loss kWh | F36: Weighted Average GA Actual Rate Paid ($/kWh)** | G36: Expected GA Volume Variance ($)
C37: O | D37: P | E37: Q=O-P | F37: R | G37: P= Q*R
C38: =(Rev1UFE!C19-H7)*'Rev3 GA Analysis '!H8/(H5+H8) -> 70593853.31 | D38: =F29 -> 70944922.5 | E38: =C38-D38 -> -351069.1822 | F38: =H29/F29 -> 0.09340457815 | G38: =E38*F38 -> -32791.46887 | I38: =D38/C38 -> 1.004973084
C39: *Equal to (AQEW - Class A + embedded generation kWh)*(Non-RPP Class B retail kwh/Total retail Class B kWh)
C40: **Equal to annual Non-RPP Class B $ GA paid (i.e. non-RPP portion of CT 148 on IESO invoice) divided by Non-RPP Class B Wholesale kWh (as quantified in column O in the table above)
F41: Total Expected GA Variance | G41: =K29+G38 -> -196845.1719
A48: Note 5 | B48: Reconciling Items
B50: Item | C50: Applicability of Reconciling Item (Y/N) | D50: Amount (Quantify if it is a significant reconciling item) | E50: Explanation
A51: Net Change in Principal Balance in the GL (i.e. Transactions in the Year) | D51: =M29+P29 -> -133440.4552
A52: 1a | B52: Remove impacts to GA from prior year RPP Settlement true up process that are booked in current year | C52: N
A53: 1b | B53: Add impacts to GA from current year RPP Settlement true up process that are booked in subsequent year | C53: N
A54: 2a | B54: Remove prior year end unbilled to actual revenue differences | C54: N
A55: 2b | B55: Add current year end unbilled to actual revenue differences | C55: N
A56: 3a | B56: Remove difference between prior year accrual to forecast from long term load transfers | C56: N
A57: 3b | B57: Add difference between current year accrual to forecast from long term load transfers | C57: N
A58: 4 | B58: Remove GA balances pertaining to Class A customers | C58: N
A59: 5 | B59: Significant prior period billing adjustments included in current year GL balance but would not be included in the billing consumption used in the GA Analysis | C59: N
A60: 6 | B60: Differences in GA IESO posted rate and rate charged on IESO invoice | C60: N
A61: 7 | D61: 0
A62: 9
A63: 10
A64: Note 6 | B64: Adjusted Net Change in Principal Balance in the GL | D64: =SUM(D51:D63) -> -133440.4552
B65: Net Change in Expected GA Balance in the Year Per Analysis | D65: =G41 -> -196845.1719
B66: Unresolved Difference | D66: =D64-D65 -> 63404.71675
B67: Unresolved Difference as % of Expected GA Payments to IESO | D67: =IF(ISERROR(D66/J29),0,D66/J29) -> 0.00981113397 | E67: =IF(AND(D67<0.01,D67>-0.01),"","Unresolved differences of greater than + or - 1% should be explained") -> 
A70: Note 7 | B70: Summary of GA (if multiple years requested for disposition)
B72: Year | C72: Annual Net Change in Expected GA Balance from GA Analysis (cell K59) | D72: Net Change in Principal Balance in the GL (cell D65) | E72: Reconciling Items (sum of cells D66 to D78) | F72: Adjusted Net Change in Principal Balance in the GL | G72: Unresolved Difference | H72: Payments to IESO (cell J59) | I72: Unresolved Difference as % of Expected GA Payments to IESO
B73: 2023 | C73: =G41 -> -196845.1719 | D73: =D51 -> -133440.4552 | E73: =SUM(D52:D63) -> 0 | F73: =SUM(D73:E73) -> -133440.4552 | G73: =F73-C73 -> 63404.71675 | H73: =J29 -> 6462526.855 | I73: =IF(ISERROR(G73/H73),0,G73/H73) -> 0.00981113397
F74: =SUM(D74:E74) -> 0 | G74: =F74-C74 -> 0 | I74: =IF(ISERROR(G74/H74),0,G74/H74) -> 0
F75: =SUM(D75:E75) -> 0 | G75: =F75-C75 -> 0 | I75: =IF(ISERROR(G75/H75),0,G75/H75) -> 0
F76: =SUM(D76:E76) -> 0 | G76: =F76-C76 -> 0 | I76: =IF(ISERROR(G76/H76),0,G76/H76) -> 0
B77: Cumulative Balance | C77: =SUM(C73:C76) -> -196845.1719 | D77: -133440.4552 | E77: 0 | F77: -133440.4552 | G77: =SUM(G73:G76) -> 63404.71675 | H77: 6462526.855 | I77: N/A
B80: Additional Notes and Comments
B95: Account 1588 Reasonability Test
C97: Account 1588 - RSVA Power | F97: Account 4705 - Power Purchased | G97: Account 1588 as % of Account 4705
B98: Year | C98: Transactions1 | D98: Principal Adjustments1 | E98: Total Activity in Calendar Year
B99: 2023 | D99: ='Rec1 1588 Commodity'!L20 -> 66671.78054 | E99: =SUM(C99:D99) -> 66671.78054 | F99: ='Rec1 1588 Commodity'!K20 -> 13285143.14 | G99: =IFERROR(E99/F99,0) -> 0.005018521804
B102: Notes
B103: 1) The transactions should equal the "Transaction" column in the DVA Continuity Schedule. This is also expected to equal the transactions in the general ledger (excluding transactions relating to the removal of approved disposition amounts as that is shown in a separate column in the DVA Continuity Schedule)
B104: 2) Principal adjustments should equal the "Principal Adjustments" column in the DVA Continuity Schedule. Principal adjustments adjust the transactions in the general ledger to the amount that should be requested for disposition.
